{"text_format":"1","workbook":"xlsx","n_sheets":5,"sheets":["2017","2018","2019","2020","المطلوب بعد عملية الدمج النهائي"],"not_rendered":{"charts":0,"images":0,"macros":1,"external_links":0,"defined_names":1,"comments":0,"pivot_tables":0},"unopened":[],"bounds":{"document_bytes":16777216,"sheet_cells":100000,"rows_first":2000,"rows_last":500,"rows_between":2000,"halvings":0,"cell_chars":16384,"cell_head_chars":4096},"cells_cut":0,"cells_raw":0,"read":"whole","date_system":"1900"}

{"sheet":"2017","index":0,"n_rows":130,"n_cols":28,"rows_kept":130,"cut":false,"hidden":false,"merged":[]}
["الرقم","البيان","يناير 2017","فبراير 2017"," ",null,null,null,null,null,null,null,null,null,null,null,null,null,null,null,null,null,null,null,null,null,null,{"$error":"#N/A"}]
[1112,"شراء كتب",1111,22222]
[1113,"شراء أوراق",211,231]
[1115,"أدوات مطبخ",3463,4432]
[1212,"أدوات مكتبية",4533,7869]
[1214,"كتب ",5433,2323]
[1215,"ملابس",3433,5435]
[1216,"طابعات",3433,3421]
[1217,"ملاعق",7547,5654]
[1218,"صحون",523,546]
[1219,"سكاكين",765,3455]
[1220,"مقص",4654,6574]
[1312,"لوحات",2455,3333]
[1313,"إطارات",543,5323]
[1314,"إضاءة",3452,5234]
[1315,"أدوات قرطاسية",765,7685]
[1316,"بنزين",3454,4342]
[1317,"مرتب العامل",4532,6345]
[1319,"شاشات",765,3543]
[1320,"عطور",7654,4353]
[1321,"بخور",4333,4532]
[1322,"ألعاب",435,6546]
[1812,"أدوات زراعية",453,675]
[2112,"مكيفات",8765,6345]
[12345,"صيانة1",11,12]
[12346,"صيانة2",12,13]
[12347,"صيانة3",13,14]
[12348,"صيانة4",14,15]
[12349,"صيانة5",15,16]
[12350,"صيانة6",16,17]
[12351,"صيانة7",17,18]
[12352,"صيانة8",18,19]
[12353,"صيانة9",19,20]
[12354,"صيانة10",20,21]
[12355,"صيانة11",21,22]
[12356,"صيانة12",22,23]
[12357,"صيانة13",23,24]
[12358,"صيانة14",24,25]
[12359,"صيانة15",25,26]
[12360,"صيانة16",26,27]
[12361,"صيانة17",27,28]
[12362,"صيانة18",28,29]
[12363,"صيانة19",29,30]
[12364,"صيانة20",30,31]
[12365,"صيانة21",31,32]
[12366,"صيانة22",32,33]
[12367,"صيانة23",33,34]
[12368,"صيانة24",34,35]
[12369,"صيانة25",35,36]
[12370,"صيانة26",36,37]
[12371,"صيانة27",37,38]
[12372,"صيانة28",38,39]
[12373,"صيانة29",39,40]
[12374,"صيانة30",40,41]
[12375,"صيانة31",41,42]
[12376,"صيانة32",42,43]
[12377,"صيانة33",43,44]
[12378,"صيانة34",44,45]
[12379,"صيانة35",45,46]
[12380,"صيانة36",46,47]
[12381,"صيانة37",47,48]
[12382,"صيانة38",48,49]
[12383,"صيانة39",49,50]
[12384,"صيانة40",50,51]
[12385,"صيانة41",51,52]
[12386,"صيانة42",52,53]
[12387,"صيانة43",53,54]
[12388,"صيانة44",54,55]
[12389,"صيانة45",55,56]
[12390,"صيانة46",56,57]
[12391,"صيانة47",57,58]
[12392,"صيانة48",58,59]
[12393,"صيانة49",59,60]
[12394,"صيانة50",60,61]
[12395,"صيانة51",61,62]
[12396,"صيانة52",62,63]
[12397,"صيانة53",63,64]
[12398,"صيانة54",64,65]
[12399,"صيانة55",65,66]
[12400,"صيانة56",66,67]
[12401,"صيانة57",67,68]
[12402,"صيانة58",68,69]
[12403,"صيانة59",69,70]
[12404,"صيانة60",70,71]
[12405,"صيانة61",71,72]
[12406,"صيانة62",72,73]
[12407,"صيانة63",73,74]
[12408,"صيانة64",74,75]
[12409,"صيانة65",75,76]
[12410,"صيانة66",76,77]
[12411,"صيانة67",77,78]
[12412,"صيانة68",78,79]
[12413,"صيانة69",79,80]
[12414,"صيانة70",80,81]
[12415,"صيانة71",81,82]
[12416,"صيانة72",82,83]
[12417,"صيانة73",83,84]
[12418,"صيانة74",84,85]
[12419,"صيانة75",85,86]
[12420,"صيانة76",86,87]
[12421,"صيانة77",87,88]
[12422,"صيانة78",88,89]
[12423,"صيانة79",89,90]
[12424,"صيانة80",90,91]
[12425,"صيانة81",91,92]
[12426,"صيانة82",92,93]
[12427,"صيانة83",93,94]
[12428,"صيانة84",94,95]
[12429,"صيانة85",95,96]
[12430,"صيانة86",96,97]
[12431,"صيانة87",97,98]
[12432,"صيانة88",98,99]
[12433,"صيانة89",99,100]
[12434,"صيانة90",100,101]
[12435,"صيانة91",101,102]
[12436,"صيانة92",102,103]
[12437,"صيانة93",103,104]
[12438,"صيانة94",104,105]
[12439,"صيانة95",105,106]
[12440,"صيانة96",106,107]
[12441,"صيانة97",107,108]
[12442,"صيانة98",108,109]
[12443,"صيانة99",109,110]
[12444,"صيانة100",110,111]
[12450,"صيانة106",116,117]
[12451,"صيانة107",117,118]
[12452,"صيانة108",118,119]
[12453,"صيانة109",119,120]
[12454,"صيانة110",120,121]
[12455,"صيانة11111111111","VVFRVR","F FF F"]

{"sheet":"2018","index":1,"n_rows":100,"n_cols":6,"rows_kept":100,"cut":false,"hidden":false,"merged":[]}
["الرقم","البيان","يناير 2018","فبراير 2018"]
[1212,"أدوات مكتبية",765,342,null," "]
[1213,"أحبار",4325,5432]
[1214,"كتب ",345,4325]
[1215,"ملابس",567,8765]
[1218,"صحون",7654,4523]
[1219,"سكاكين",4353,4334]
[1220,"مقص",35,3534]
[1312,"لوحات",3543,4325]
[1313,"إطارات",7657,2345]
[1314,"إضاءة",324,564]
[1315,"أدوات قرطاسية",354,2342]
[1316,"بنزين",2143,343]
[1317,"مرتب العامل",6546,4543]
[1318,"كمبيوتر",2432,412]
[1320,"عطور",5423,452]
[1812,"أدوات زراعية",3233,2343]
[2112,"مكيفات",4343,2342]
[3112,"مراوح",32,2345]
[12345,"صيانة1",11,12]
[12346,"صيانة2",12,13]
[12347,"صيانة3",13,14]
[12348,"صيانة4",14,15]
[12349,"صيانة5",15,16]
[12350,"صيانة6",16,17]
[12351,"صيانة7",17,18]
[12352,"صيانة8",18,19]
[12353,"صيانة9",19,20]
[12354,"صيانة10",20,21]
[12355,"صيانة11",21,22]
[12356,"صيانة12",22,23]
[12357,"صيانة13",23,24]
[12358,"صيانة14",24,25]
[12359,"صيانة15",25,26]
[12360,"صيانة16",26,27]
[12361,"صيانة17",27,28]
[12362,"صيانة18",28,29]
[12363,"صيانة19",29,30]
[12364,"صيانة20",30,31]
[12365,"صيانة21",31,32]
[12366,"صيانة22",32,33]
[12367,"صيانة23",33,34]
[12368,"صيانة24",34,35]
[12369,"صيانة25",35,36]
[12370,"صيانة26",36,37]
[12371,"صيانة27",37,38]
[12372,"صيانة28",38,39]
[12373,"صيانة29",39,40]
[12374,"صيانة30",40,41]
[12375,"صيانة31",41,42]
[12376,"صيانة32",42,43]
[12377,"صيانة33",43,44]
[12378,"صيانة34",44,45]
[12379,"صيانة35",45,46]
[12380,"صيانة36",46,47]
[12381,"صيانة37",47,48]
[12382,"صيانة38",48,49]
[12383,"صيانة39",49,50]
[12384,"صيانة40",50,51]
[12385,"صيانة41",51,52]
[12386,"صيانة42",52,53]
[12387,"صيانة43",53,54]
[12388,"صيانة44",54,55]
[12389,"صيانة45",55,56]
[12390,"صيانة46",56,57]
[12391,"صيانة47",57,58]
[12392,"صيانة48",58,59]
[12393,"صيانة49",59,60]
[12394,"صيانة50",60,61]
[12395,"صيانة51",61,62]
[12396,"صيانة52",62,63]
[12397,"صيانة53",63,64]
[12398,"صيانة54",64,65]
[12399,"صيانة55",65,66]
[12400,"صيانة56",66,67]
[12401,"صيانة57",67,68]
[12402,"صيانة58",68,69]
[12403,"صيانة59",69,70]
[12404,"صيانة60",70,71]
[12405,"صيانة61",71,72]
[12406,"صيانة62",72,73]
[12407,"صيانة63",73,74]
[12408,"صيانة64",74,75]
[12409,"صيانة65",75,76]
[12410,"صيانة66",76,77]
[12411,"صيانة67",77,78]
[12412,"صيانة68",78,79]
[12413,"صيانة69",79,80]
[12414,"صيانة70",80,81]
[12415,"صيانة71",81,82]
[12416,"صيانة72",82,83]
[12417,"صيانة73",83,84]
[12418,"صيانة74",84,85]
[12419,"صيانة75",85,86]
[12420,"صيانة76",86,87]
[12421,"صيانة77",87,88]
[12422,"صيانة78",88,89]
[12423,"صيانة79",89,90]
[12427,"صيانة83",93,94]
[111112428,"صيانة84111111111","EDDD","DDEECED"]

{"sheet":"2019","index":2,"n_rows":125,"n_cols":5,"rows_kept":125,"cut":false,"hidden":false,"merged":[]}
["الرقم","البيان","يناير 2019","فبراير 2019"]
[1113,"شراء أوراق",6434,8767," "]
[1115,"أدوات مطبخ",255,423]
[1213,"أحبار",342,232]
[1215,"ملابس",4234,2433]
[1216,"طابعات",45,342]
[1217,"ملاعق",5443,5433]
[1218,"صحون",3464,3433]
[1219,"سكاكين",5678,6573]
[1220,"مقص",453,2342]
[1312,"لوحات",56768,343]
[1313,"إطارات",98576,5756]
[1314,"إضاءة",4332,2333]
[1315,"أدوات قرطاسية",5342,3222]
[1316,"بنزين",9876,323]
[1318,"كمبيوتر",4643,5766]
[1319,"شاشات",34678,421]
[1321,"بخور",678765,3474]
[1322,"ألعاب",8765,3456]
[1812,"أدوات زراعية",8765,2355]
[2112,"مكيفات",876,3456]
[3112,"مراوح",4536,2434]
[12345,"صيانة1",11,12]
[12346,"صيانة2",12,13]
[12347,"صيانة3",13,14]
[12348,"صيانة4",14,15]
[12349,"صيانة5",15,16]
[12350,"صيانة6",16,17]
[12351,"صيانة7",17,18]
[12352,"صيانة8",18,19]
[12353,"صيانة9",19,20]
[12354,"صيانة10",20,21]
[12355,"صيانة11",21,22]
[12356,"صيانة12",22,23]
[12357,"صيانة13",23,24]
[12358,"صيانة14",24,25]
[12359,"صيانة15",25,26]
[12360,"صيانة16",26,27]
[12361,"صيانة17",27,28]
[12362,"صيانة18",28,29]
[12363,"صيانة19",29,30]
[12364,"صيانة20",30,31]
[12365,"صيانة21",31,32]
[12366,"صيانة22",32,33]
[12367,"صيانة23",33,34]
[12368,"صيانة24",34,35]
[12369,"صيانة25",35,36]
[12370,"صيانة26",36,37]
[12371,"صيانة27",37,38]
[12372,"صيانة28",38,39]
[12373,"صيانة29",39,40]
[12374,"صيانة30",40,41]
[12375,"صيانة31",41,42]
[12376,"صيانة32",42,43]
[12377,"صيانة33",43,44]
[12378,"صيانة34",44,45]
[12379,"صيانة35",45,46]
[12380,"صيانة36",46,47]
[12381,"صيانة37",47,48]
[12382,"صيانة38",48,49]
[12383,"صيانة39",49,50]
[12384,"صيانة40",50,51]
[12385,"صيانة41",51,52]
[12386,"صيانة42",52,53]
[12387,"صيانة43",53,54]
[12388,"صيانة44",54,55]
[12389,"صيانة45",55,56]
[12390,"صيانة46",56,57]
[12391,"صيانة47",57,58]
[12392,"صيانة48",58,59]
[12393,"صيانة49",59,60]
[12394,"صيانة50",60,61]
[12395,"صيانة51",61,62]
[12396,"صيانة52",62,63]
[12397,"صيانة53",63,64]
[12398,"صيانة54",64,65]
[12399,"صيانة55",65,66]
[12400,"صيانة56",66,67]
[12401,"صيانة57",67,68]
[12402,"صيانة58",68,69]
[12403,"صيانة59",69,70]
[12404,"صيانة60",70,71]
[12405,"صيانة61",71,72]
[12406,"صيانة62",72,73]
[12407,"صيانة63",73,74]
[12408,"صيانة64",74,75]
[12409,"صيانة65",75,76]
[12410,"صيانة66",76,77]
[12411,"صيانة67",77,78]
[12412,"صيانة68",78,79]
[12413,"صيانة69",79,80]
[12414,"صيانة70",80,81]
[12415,"صيانة71",81,82]
[12416,"صيانة72",82,83]
[12417,"صيانة73",83,84]
[12418,"صيانة74",84,85]
[12419,"صيانة75",85,86]
[12420,"صيانة76",86,87]
[12421,"صيانة77",87,88]
[12422,"صيانة78",88,89]
[12423,"صيانة79",89,90]
[12424,"صيانة80",90,91]
[12425,"صيانة81",91,92]
[12426,"صيانة82",92,93]
[12427,"صيانة83",93,94]
[12428,"صيانة84",94,95]
[12429,"صيانة85",95,96]
[12430,"صيانة86",96,97]
[12431,"صيانة87",97,98]
[12432,"صيانة88",98,99]
[12433,"صيانة89",99,100]
[12434,"صيانة90",100,101]
[12435,"صيانة91",101,102]
[12436,"صيانة92",102,103]
[12437,"صيانة93",103,104]
[12438,"صيانة94",104,105]
[12439,"صيانة95",105,106]
[12440,"صيانة96",106,107]
[12441,"صيانة97",107,108]
[12442,"صيانة98",108,109]
[12443,"صيانة99",109,110]
[12454,"صيانة110",120,121]
[12455,"صيانة111",121,122]
[12456,"صيانة112",122,123]
[1111112457,"صيانة113WEEFE","EEEFEFR","GBVCXZ\\"]

{"sheet":"2020","index":3,"n_rows":111,"n_cols":5,"rows_kept":111,"cut":false,"hidden":false,"merged":[]}
["الرقم","البيان","يناير 2020","فبراير 2020"]
[1113,"شراء أوراق",6434,8767," "]
[1115,"أدوات مطبخ",255,423]
[1213,"أحبار",342,232]
[1215,"ملابس",4234,2433]
[1216,"طابعات",45,342]
[1217,"ملاعق",5443,5433]
[1218,"صحون",3464,3433]
[1219,"سكاكين",5678,6573]
[1220,"مقص",453,2342]
[1312,"لوحات",56768,343]
[1313,"إطارات",98576,5756]
[1314,"إضاءة",4332,2333]
[1315,"أدوات قرطاسية",5342,3222]
[1316,"بنزين",9876,323]
[1318,"كمبيوتر",4643,5766]
[1319,"شاشات",34678,421]
[1321,"بخور",678765,3474]
[1322,"ألعاب",8765,3456]
[1812,"أدوات زراعية",8765,2355]
[2112,"مكيفات",876,3456]
[3112,"مراوح",4536,2434]
[12345,"صيانة1",11,12]
[12346,"صيانة2",12,13]
[12347,"صيانة3",13,14]
[12348,"صيانة4",14,15]
[12349,"صيانة5",15,16]
[12350,"صيانة6",16,17]
[12351,"صيانة7",17,18]
[12352,"صيانة8",18,19]
[12353,"صيانة9",19,20]
[12354,"صيانة10",20,21]
[12355,"صيانة11",21,22]
[12356,"صيانة12",22,23]
[12357,"صيانة13",23,24]
[12358,"صيانة14",24,25]
[12359,"صيانة15",25,26]
[12360,"صيانة16",26,27]
[12361,"صيانة17",27,28]
[12362,"صيانة18",28,29]
[12363,"صيانة19",29,30]
[12364,"صيانة20",30,31]
[12365,"صيانة21",31,32]
[12366,"صيانة22",32,33]
[12367,"صيانة23",33,34]
[12368,"صيانة24",34,35]
[12369,"صيانة25",35,36]
[12370,"صيانة26",36,37]
[12371,"صيانة27",37,38]
[12372,"صيانة28",38,39]
[12373,"صيانة29",39,40]
[12374,"صيانة30",40,41]
[12375,"صيانة31",41,42]
[12376,"صيانة32",42,43]
[12377,"صيانة33",43,44]
[12378,"صيانة34",44,45]
[12379,"صيانة35",45,46]
[12380,"صيانة36",46,47]
[12381,"صيانة37",47,48]
[12382,"صيانة38",48,49]
[12383,"صيانة39",49,50]
[12384,"صيانة40",50,51]
[12385,"صيانة41",51,52]
[12386,"صيانة42",52,53]
[12387,"صيانة43",53,54]
[12388,"صيانة44",54,55]
[12389,"صيانة45",55,56]
[12390,"صيانة46",56,57]
[12391,"صيانة47",57,58]
[12392,"صيانة48",58,59]
[12393,"صيانة49",59,60]
[12394,"صيانة50",60,61]
[12395,"صيانة51",61,62]
[12396,"صيانة52",62,63]
[12397,"صيانة53",63,64]
[12398,"صيانة54",64,65]
[12399,"صيانة55",65,66]
[12400,"صيانة56",66,67]
[12401,"صيانة57",67,68]
[12402,"صيانة58",68,69]
[12403,"صيانة59",69,70]
[12404,"صيانة60",70,71]
[12405,"صيانة61",71,72]
[12406,"صيانة62",72,73]
[12407,"صيانة63",73,74]
[12408,"صيانة64",74,75]
[12409,"صيانة65","HHHHH","GGG"]
[12410,"صيانة66",76,77]
[12411,"صيانة67",77,78]
[12412,"صيانة68",78,79]
[12413,"صيانة69",79,80]
[12414,"صيانة70",80,81]
[12415,"صيانة71",81,82]
[12416,"صيانة72",82,83]
[12417,"صيانة73",83,84]
[12418,"صيانة74",84,85]
[12419,"صيانة75",85,86]
[12420,"صيانة76",86,87]
[12421,"صيانة77",87,88]
[12422,"صيانة78",88,89]
[12423,"صيانة79",89,90]
[12424,"صيانة80",90,91]
[12445,"صيانة101",111,112]
[12446,"صيانة102",112,113]
[12447,"صيانة103",113,114]
[12452,"صيانة108",118,119]
[12453,"صيانة109",119,120]
[12454,"صيانة110",120,121]
[12455,"صيانة111",121,122]
[12456,"صيانة112",122,123]
["HHHHHH","FGDGDDDGDG","DDGDG","DDGDD"]

{"sheet":"المطلوب بعد عملية الدمج النهائي","index":4,"n_rows":551,"n_cols":36,"rows_kept":551,"cut":false,"hidden":false,"merged":[]}
["الرقم","البيان","يناير 2017","فبراير 2017","يناير 2018","فبراير 2018","يناير 2019","فبراير 2019","يناير 2020","فبراير 2020"]
[{"$f":"INDEX($AI$2:$AI$550,MATCH(0,COUNTIF(A1:$A$1,$AI$2:$AI$550),0),0)","v":1112},{"$f":"IF(A2=\"\",\"\",VLOOKUP(A2,$AI$2:$AJ$550,2,0))","v":"شراء كتب"},1111,22222,null,null,null,null,null,null,null,null,null,null,null,null,null,null,null,null,null,null,null,null,null,null,null,null,null,null,null,null,null,null,{"$f":"'2017'!A2","v":1112},{"$f":"'2017'!B2","v":"شراء كتب"}]
[{"$f":"INDEX($AI$2:$AI$550,MATCH(0,COUNTIF(A$1:$A2,$AI$2:$AI$550),0),0)","v":1113},{"$f":"IF(A3=\"\",\"\",VLOOKUP(A3,$AI$2:$AJ$550,2,0))","v":"شراء أوراق"},211,231,null,null,6434,8767,6434,8767,null,null,null,null,null,null,null,null,null,null,null,null,null,null,null,null,null,null,null,null,null,null,null,null,{"$f":"'2017'!A3","v":1113},{"$f":"'2017'!B3","v":"شراء أوراق"}]
[{"$f":"INDEX($AI$2:$AI$550,MATCH(0,COUNTIF(A$1:$A3,$AI$2:$AI$550),0),0)","v":1115},"أدوات مطبخ",3463,4432,null,null,255,423,255,423,null,null,null,null,null,null,null,null,null,null,null,null,null,null,null,null,null,null,null,null,null,null,null,null,{"$f":"'2017'!A4","v":1115},{"$f":"'2017'!B4","v":"أدوات مطبخ"}]
[{"$f":"INDEX($AI$2:$AI$550,MATCH(0,COUNTIF(A$1:$A4,$AI$2:$AI$550),0),0)","v":1212},"أدوات مكتبية",4533,7869,765,342,null,null,null,null,null,null,null,null,null,null,null,null,null,null,null,null,null,null,null,null,null,null,null,null,null,null,null,null,{"$f":"'2017'!A5","v":1212},{"$f":"'2017'!B5","v":"أدوات مكتبية"}]
[{"$f":"INDEX($AI$2:$AI$550,MATCH(0,COUNTIF(A$1:$A5,$AI$2:$AI$550),0),0)","v":1214},"كتب ",5433,2323,345,4325,null,null,null,null,null,null,null,null,null,null,null,null,null,null,null,null,null,null,null,null,null,null,null,null,null,null,null,null,{"$f":"'2017'!A6","v":1214},{"$f":"'2017'!B6","v":"كتب "}]
[{"$f":"INDEX($AI$2:$AI$550,MATCH(0,COUNTIF(A$1:$A6,$AI$2:$AI$550),0),0)","v":1215},"ملابس",3433,5435,567,8765,4234,2433,4234,2433,null,null,null,null,null,null,null,null,null,null,null,null,null,null,null,null,null,null,null,null,null,null,null,null,{"$f":"'2017'!A7","v":1215},{"$f":"'2017'!B7","v":"ملابس"}]
[{"$f":"INDEX($AI$2:$AI$550,MATCH(0,COUNTIF(A$1:$A7,$AI$2:$AI$550),0),0)","v":1216},"طابعات",3433,3421,null,null,45,342,45,342,null,null,null,null,null,null,null,null,null,null,null,null,null,null,null,null,null,null,null,null,null,null,null,null,{"$f":"'2017'!A8","v":1216},{"$f":"'2017'!B8","v":"طابعات"}]
[{"$f":"INDEX($AI$2:$AI$550,MATCH(0,COUNTIF(A$1:$A8,$AI$2:$AI$550),0),0)","v":1217},"ملاعق",7547,5654,null,null,5443,5433,5443,5433,null,null,null,null,null,null,null,null,null,null,null,null,null,null,null,null,null,null,null,null,null,null,null,null,{"$f":"'2017'!A9","v":1217},{"$f":"'2017'!B9","v":"ملاعق"}]
[{"$f":"INDEX($AI$2:$AI$550,MATCH(0,COUNTIF(A$1:$A9,$AI$2:$AI$550),0),0)","v":1218},"صحون",523,546,7654,4523,3464,3433,3464,3433,null,null,null,null,null,null,null,null,null,null,null,null,null,null,null,null,null,null,null,null,null,null,null,null,{"$f":"'2017'!A10","v":1218},{"$f":"'2017'!B10","v":"صحون"}]
[{"$f":"INDEX($AI$2:$AI$550,MATCH(0,COUNTIF(A$1:$A10,$AI$2:$AI$550),0),0)","v":1219},"سكاكين",765,3455,4353,4334,5678,6573,5678,6573,null,null,null,null,null,null,null,null,null,null,null,null,null,null,null,null,null,null,null,null,null,null,null,null,{"$f":"'2017'!A11","v":1219},{"$f":"'2017'!B11","v":"سكاكين"}]
[{"$f":"INDEX($AI$2:$AI$550,MATCH(0,COUNTIF(A$1:$A11,$AI$2:$AI$550),0),0)","v":1220},"مقص",4654,6574,35,3534,453,2342,453,2342,null,null,null,null,null,null,null,null,null,null,null,null,null,null,null,null,null,null,null,null,null,null,null,null,{"$f":"'2017'!A12","v":1220},{"$f":"'2017'!B12","v":"مقص"}]
[{"$f":"INDEX($AI$2:$AI$550,MATCH(0,COUNTIF(A$1:$A12,$AI$2:$AI$550),0),0)","v":1312},"لوحات",2455,3333,3543,4325,56768,343,56768,343,null,null,null,null,null,null,null,null,null,null,null,null,null,null,null,null,null,null,null,null,null,null,null,null,{"$f":"'2017'!A13","v":1312},{"$f":"'2017'!B13","v":"لوحات"}]
[{"$f":"INDEX($AI$2:$AI$550,MATCH(0,COUNTIF(A$1:$A13,$AI$2:$AI$550),0),0)","v":1313},"إطارات",543,5323,7657,2345,98576,5756,98576,5756,null,null,null,null,null,null,null,null,null,null,null,null,null,null,null,null,null,null,null,null,null,null,null,null,{"$f":"'2017'!A14","v":1313},{"$f":"'2017'!B14","v":"إطارات"}]
[{"$f":"INDEX($AI$2:$AI$550,MATCH(0,COUNTIF(A$1:$A14,$AI$2:$AI$550),0),0)","v":1314},"إضاءة",3452,5234,324,564,4332,2333,4332,2333,null,null,null,null,null,null,null,null,null,null,null,null,null,null,null,null,null,null,null,null,null,null,null,null,{"$f":"'2017'!A15","v":1314},{"$f":"'2017'!B15","v":"إضاءة"}]
[{"$f":"INDEX($AI$2:$AI$550,MATCH(0,COUNTIF(A$1:$A15,$AI$2:$AI$550),0),0)","v":1315},"أدوات قرطاسية",765,7685,354,2342,5342,3222,5342,3222,null,null,null,null,null,null,null,null,null,null,null,null,null,null,null,null,null,null,null,null,null,null,null,null,{"$f":"'2017'!A16","v":1315},{"$f":"'2017'!B16","v":"أدوات قرطاسية"}]
[{"$f":"INDEX($AI$2:$AI$550,MATCH(0,COUNTIF(A$1:$A16,$AI$2:$AI$550),0),0)","v":1316},"بنزين",3454,4342,2143,343,9876,323,9876,323,null,null,null,null,null,null,null,null,null,null,null,null,null,null,null,null,null,null,null,null,null,null,null,null,{"$f":"'2017'!A17","v":1316},{"$f":"'2017'!B17","v":"بنزين"}]
[{"$f":"INDEX($AI$2:$AI$550,MATCH(0,COUNTIF(A$1:$A17,$AI$2:$AI$550),0),0)","v":1317},"مرتب العامل",4532,6345,6546,4543,null,null,null,null,null,null,null,null,null,null,null,null,null,null,null,null,null,null,null,null,null,null,null,null,null,null,null,null,{"$f":"'2017'!A18","v":1317},{"$f":"'2017'!B18","v":"مرتب العامل"}]
[{"$f":"INDEX($AI$2:$AI$550,MATCH(0,COUNTIF(A$1:$A18,$AI$2:$AI$550),0),0)","v":1319},"شاشات",765,3543,null,null,34678,421,34678,421,null,null,null,null,null,null,null,null,null,null,null,null,null,null,null,null,null,null,null,null,null,null,null,null,{"$f":"'2017'!A19","v":1319},{"$f":"'2017'!B19","v":"شاشات"}]
[{"$f":"INDEX($AI$2:$AI$550,MATCH(0,COUNTIF(A$1:$A19,$AI$2:$AI$550),0),0)","v":1320},"عطور",7654,4353,5423,452,null,null,null,null,null,null,null,null,null,null,null,null,null,null,null,null,null,null,null,null,null,null,null,null,null,null,null,null,{"$f":"'2017'!A20","v":1320},{"$f":"'2017'!B20","v":"عطور"}]
[{"$f":"INDEX($AI$2:$AI$550,MATCH(0,COUNTIF(A$1:$A20,$AI$2:$AI$550),0),0)","v":1321},"بخور",4333,4532,null,null,678765,3474,678765,3474,null,null,null,null,null,null,null,null,null,null,null,null,null,null,null,null,null,null,null,null,null,null,null,null,{"$f":"'2017'!A21","v":1321},{"$f":"'2017'!B21","v":"بخور"}]
[{"$f":"INDEX($AI$2:$AI$550,MATCH(0,COUNTIF(A$1:$A21,$AI$2:$AI$550),0),0)","v":1322},"ألعاب",435,6546,null,null,8765,3456,8765,3456,null,null,null,null,null,null,null,null,null,null,null,null,null,null,null,null,null,null,null,null,null,null,null,null,{"$f":"'2017'!A22","v":1322},{"$f":"'2017'!B22","v":"ألعاب"}]
[{"$f":"INDEX($AI$2:$AI$550,MATCH(0,COUNTIF(A$1:$A22,$AI$2:$AI$550),0),0)","v":1812},"أدوات زراعية",453,675,3233,2343,8765,2355,8765,2355,null,null,null,null,null,null,null,null,null,null,null,null,null,null,null,null,null,null,null,null,null,null,null,null,{"$f":"'2017'!A23","v":1812},{"$f":"'2017'!B23","v":"أدوات زراعية"}]
[{"$f":"INDEX($AI$2:$AI$550,MATCH(0,COUNTIF(A$1:$A23,$AI$2:$AI$550),0),0)","v":2112},"مكيفات",8765,6345,4343,2342,876,3456,876,3456,null,null,null,null,null,null,null,null,null,null,null,null,null,null,null,null,null,null,null,null,null,null,null,null,{"$f":"'2017'!A24","v":2112},{"$f":"'2017'!B24","v":"مكيفات"}]
[{"$f":"INDEX($AI$2:$AI$550,MATCH(0,COUNTIF(A$1:$A24,$AI$2:$AI$550),0),0)","v":12345},"صيانة1",11,12,11,12,11,12,11,12,null,null,null,null,null,null,null,null,null,null,null,null,null,null,null,null,null,null,null,null,null,null,null,null,{"$f":"'2017'!A25","v":12345},{"$f":"'2017'!B25","v":"صيانة1"}]
[{"$f":"INDEX($AI$2:$AI$550,MATCH(0,COUNTIF(A$1:$A25,$AI$2:$AI$550),0),0)","v":12346},"صيانة2",12,13,12,13,12,13,12,13,null,null,null,null,null,null,null,null,null,null,null,null,null,null,null,null,null,null,null,null,null,null,null,null,{"$f":"'2017'!A26","v":12346},{"$f":"'2017'!B26","v":"صيانة2"}]
[{"$f":"INDEX($AI$2:$AI$550,MATCH(0,COUNTIF(A$1:$A26,$AI$2:$AI$550),0),0)","v":12347},"صيانة3",13,14,13,14,13,14,13,14,null,null,null,null,null,null,null,null,null,null,null,null,null,null,null,null,null,null,null,null,null,null,null,null,{"$f":"'2017'!A27","v":12347},{"$f":"'2017'!B27","v":"صيانة3"}]
[{"$f":"INDEX($AI$2:$AI$550,MATCH(0,COUNTIF(A$1:$A27,$AI$2:$AI$550),0),0)","v":12348},"صيانة4",14,15,14,15,14,15,14,15,null,null,null,null,null,null,null,null,null,null,null,null,null,null,null,null,null,null,null,null,null,null,null,null,{"$f":"'2017'!A28","v":12348},{"$f":"'2017'!B28","v":"صيانة4"}]
[{"$f":"INDEX($AI$2:$AI$550,MATCH(0,COUNTIF(A$1:$A28,$AI$2:$AI$550),0),0)","v":12349},"صيانة5",15,16,15,16,15,16,15,16,null,null,null,null,null,null,null,null,null,null,null,null,null,null,null,null,null,null,null,null,null,null,null,null,{"$f":"'2017'!A29","v":12349},{"$f":"'2017'!B29","v":"صيانة5"}]
[{"$f":"INDEX($AI$2:$AI$550,MATCH(0,COUNTIF(A$1:$A29,$AI$2:$AI$550),0),0)","v":12350},"صيانة6",16,17,16,17,16,17,16,17,null,null,null,null,null,null,null,null,null,null,null,null,null,null,null,null,null,null,null,null,null,null,null,null,{"$f":"'2017'!A30","v":12350},{"$f":"'2017'!B30","v":"صيانة6"}]
[{"$f":"INDEX($AI$2:$AI$550,MATCH(0,COUNTIF(A$1:$A30,$AI$2:$AI$550),0),0)","v":12351},"صيانة7",17,18,17,18,17,18,17,18,null,null,null,null,null,null,null,null,null,null,null,null,null,null,null,null,null,null,null,null,null,null,null,null,{"$f":"'2017'!A31","v":12351},{"$f":"'2017'!B31","v":"صيانة7"}]
[{"$f":"INDEX($AI$2:$AI$550,MATCH(0,COUNTIF(A$1:$A31,$AI$2:$AI$550),0),0)","v":12352},"صيانة8",18,19,18,19,18,19,18,19,null,null,null,null,null,null,null,null,null,null,null,null,null,null,null,null,null,null,null,null,null,null,null,null,{"$f":"'2017'!A32","v":12352},{"$f":"'2017'!B32","v":"صيانة8"}]
[{"$f":"INDEX($AI$2:$AI$550,MATCH(0,COUNTIF(A$1:$A32,$AI$2:$AI$550),0),0)","v":12353},"صيانة9",19,20,19,20,19,20,19,20,null,null,null,null,null,null,null,null,null,null,null,null,null,null,null,null,null,null,null,null,null,null,null,null,{"$f":"'2017'!A33","v":12353},{"$f":"'2017'!B33","v":"صيانة9"}]
[{"$f":"INDEX($AI$2:$AI$550,MATCH(0,COUNTIF(A$1:$A33,$AI$2:$AI$550),0),0)","v":12354},"صيانة10",20,21,20,21,20,21,20,21,null,null,null,null,null,null,null,null,null,null,null,null,null,null,null,null,null,null,null,null,null,null,null,null,{"$f":"'2017'!A34","v":12354},{"$f":"'2017'!B34","v":"صيانة10"}]
[{"$f":"INDEX($AI$2:$AI$550,MATCH(0,COUNTIF(A$1:$A34,$AI$2:$AI$550),0),0)","v":12355},"صيانة11",21,22,21,22,21,22,21,22,null,null,null,null,null,null,null,null,null,null,null,null,null,null,null,null,null,null,null,null,null,null,null,null,{"$f":"'2017'!A35","v":12355},{"$f":"'2017'!B35","v":"صيانة11"}]
[{"$f":"INDEX($AI$2:$AI$550,MATCH(0,COUNTIF(A$1:$A35,$AI$2:$AI$550),0),0)","v":12356},"صيانة12",22,23,22,23,22,23,22,23,null,null,null,null,null,null,null,null,null,null,null,null,null,null,null,null,null,null,null,null,null,null,null,null,{"$f":"'2017'!A36","v":12356},{"$f":"'2017'!B36","v":"صيانة12"}]
[{"$f":"INDEX($AI$2:$AI$550,MATCH(0,COUNTIF(A$1:$A36,$AI$2:$AI$550),0),0)","v":12357},"صيانة13",23,24,23,24,23,24,23,24,null,null,null,null,null,null,null,null,null,null,null,null,null,null,null,null,null,null,null,null,null,null,null,null,{"$f":"'2017'!A37","v":12357},{"$f":"'2017'!B37","v":"صيانة13"}]
[{"$f":"INDEX($AI$2:$AI$550,MATCH(0,COUNTIF(A$1:$A37,$AI$2:$AI$550),0),0)","v":12358},"صيانة14",24,25,24,25,24,25,24,25,null,null,null,null,null,null,null,null,null,null,null,null,null,null,null,null,null,null,null,null,null,null,null,null,{"$f":"'2017'!A38","v":12358},{"$f":"'2017'!B38","v":"صيانة14"}]
[{"$f":"INDEX($AI$2:$AI$550,MATCH(0,COUNTIF(A$1:$A38,$AI$2:$AI$550),0),0)","v":12359},"صيانة15",25,26,25,26,25,26,25,26,null,null,null,null,null,null,null,null,null,null,null,null,null,null,null,null,null,null,null,null,null,null,null,null,{"$f":"'2017'!A39","v":12359},{"$f":"'2017'!B39","v":"صيانة15"}]
[{"$f":"INDEX($AI$2:$AI$550,MATCH(0,COUNTIF(A$1:$A39,$AI$2:$AI$550),0),0)","v":12360},"صيانة16",26,27,26,27,26,27,26,27,null,null,null,null,null,null,null,null,null,null,null,null,null,null,null,null,null,null,null,null,null,null,null,null,{"$f":"'2017'!A40","v":12360},{"$f":"'2017'!B40","v":"صيانة16"}]
[{"$f":"INDEX($AI$2:$AI$550,MATCH(0,COUNTIF(A$1:$A40,$AI$2:$AI$550),0),0)","v":12361},"صيانة17",27,28,27,28,27,28,27,28,null,null,null,null,null,null,null,null,null,null,null,null,null,null,null,null,null,null,null,null,null,null,null,null,{"$f":"'2017'!A41","v":12361},{"$f":"'2017'!B41","v":"صيانة17"}]
[{"$f":"INDEX($AI$2:$AI$550,MATCH(0,COUNTIF(A$1:$A41,$AI$2:$AI$550),0),0)","v":12362},"صيانة18",28,29,28,29,28,29,28,29,null,null,null,null,null,null,null,null,null,null,null,null,null,null,null,null,null,null,null,null,null,null,null,null,{"$f":"'2017'!A42","v":12362},{"$f":"'2017'!B42","v":"صيانة18"}]
[{"$f":"INDEX($AI$2:$AI$550,MATCH(0,COUNTIF(A$1:$A42,$AI$2:$AI$550),0),0)","v":12363},"صيانة19",29,30,29,30,29,30,29,30,null,null,null,null,null,null,null,null,null,null,null,null,null,null,null,null,null,null,null,null,null,null,null,null,{"$f":"'2017'!A43","v":12363},{"$f":"'2017'!B43","v":"صيانة19"}]
[{"$f":"INDEX($AI$2:$AI$550,MATCH(0,COUNTIF(A$1:$A43,$AI$2:$AI$550),0),0)","v":12364},"صيانة20",30,31,30,31,30,31,30,31,null,null,null,null,null,null,null,null,null,null,null,null,null,null,null,null,null,null,null,null,null,null,null,null,{"$f":"'2017'!A44","v":12364},{"$f":"'2017'!B44","v":"صيانة20"}]
[{"$f":"INDEX($AI$2:$AI$550,MATCH(0,COUNTIF(A$1:$A44,$AI$2:$AI$550),0),0)","v":12365},"صيانة21",31,32,31,32,31,32,31,32,null,null,null,null,null,null,null,null,null,null,null,null,null,null,null,null,null,null,null,null,null,null,null,null,{"$f":"'2017'!A45","v":12365},{"$f":"'2017'!B45","v":"صيانة21"}]
[{"$f":"INDEX($AI$2:$AI$550,MATCH(0,COUNTIF(A$1:$A45,$AI$2:$AI$550),0),0)","v":12366},"صيانة22",32,33,32,33,32,33,32,33,null,null,null,null,null,null,null,null,null,null,null,null,null,null,null,null,null,null,null,null,null,null,null,null,{"$f":"'2017'!A46","v":12366},{"$f":"'2017'!B46","v":"صيانة22"}]
[{"$f":"INDEX($AI$2:$AI$550,MATCH(0,COUNTIF(A$1:$A46,$AI$2:$AI$550),0),0)","v":12367},"صيانة23",33,34,33,34,33,34,33,34,null,null,null,null,null,null,null,null,null,null,null,null,null,null,null,null,null,null,null,null,null,null,null,null,{"$f":"'2017'!A47","v":12367},{"$f":"'2017'!B47","v":"صيانة23"}]
[{"$f":"INDEX($AI$2:$AI$550,MATCH(0,COUNTIF(A$1:$A47,$AI$2:$AI$550),0),0)","v":12368},"صيانة24",34,35,34,35,34,35,34,35,null,null,null,null,null,null,null,null,null,null,null,null,null,null,null,null,null,null,null,null,null,null,null,null,{"$f":"'2017'!A48","v":12368},{"$f":"'2017'!B48","v":"صيانة24"}]
[{"$f":"INDEX($AI$2:$AI$550,MATCH(0,COUNTIF(A$1:$A48,$AI$2:$AI$550),0),0)","v":12369},"صيانة25",35,36,35,36,35,36,35,36,null,null,null,null,null,null,null,null,null,null,null,null,null,null,null,null,null,null,null,null,null,null,null,null,{"$f":"'2017'!A49","v":12369},{"$f":"'2017'!B49","v":"صيانة25"}]
[{"$f":"INDEX($AI$2:$AI$550,MATCH(0,COUNTIF(A$1:$A49,$AI$2:$AI$550),0),0)","v":12370},"صيانة26",36,37,36,37,36,37,36,37,null,null,null,null,null,null,null,null,null,null,null,null,null,null,null,null,null,null,null,null,null,null,null,null,{"$f":"'2017'!A50","v":12370},{"$f":"'2017'!B50","v":"صيانة26"}]
[{"$f":"INDEX($AI$2:$AI$550,MATCH(0,COUNTIF(A$1:$A50,$AI$2:$AI$550),0),0)","v":12371},"صيانة27",37,38,37,38,37,38,37,38,null,null,null,null,null,null,null,null,null,null,null,null,null,null,null,null,null,null,null,null,null,null,null,null,{"$f":"'2017'!A51","v":12371},{"$f":"'2017'!B51","v":"صيانة27"}]
[{"$f":"INDEX($AI$2:$AI$550,MATCH(0,COUNTIF(A$1:$A51,$AI$2:$AI$550),0),0)","v":12372},"صيانة28",38,39,38,39,38,39,38,39,null,null,null,null,null,null,null,null,null,null,null,null,null,null,null,null,null,null,null,null,null,null,null,null,{"$f":"'2017'!A52","v":12372},{"$f":"'2017'!B52","v":"صيانة28"}]
[{"$f":"INDEX($AI$2:$AI$550,MATCH(0,COUNTIF(A$1:$A52,$AI$2:$AI$550),0),0)","v":12373},"صيانة29",39,40,39,40,39,40,39,40,null,null,null,null,null,null,null,null,null,null,null,null,null,null,null,null,null,null,null,null,null,null,null,null,{"$f":"'2017'!A53","v":12373},{"$f":"'2017'!B53","v":"صيانة29"}]
[{"$f":"INDEX($AI$2:$AI$550,MATCH(0,COUNTIF(A$1:$A53,$AI$2:$AI$550),0),0)","v":12374},"صيانة30",40,41,40,41,40,41,40,41,null,null,null,null,null,null,null,null,null,null,null,null,null,null,null,null,null,null,null,null,null,null,null,null,{"$f":"'2017'!A54","v":12374},{"$f":"'2017'!B54","v":"صيانة30"}]
[{"$f":"INDEX($AI$2:$AI$550,MATCH(0,COUNTIF(A$1:$A54,$AI$2:$AI$550),0),0)","v":12375},"صيانة31",41,42,41,42,41,42,41,42,null,null,null,null,null,null,null,null,null,null,null,null,null,null,null,null,null,null,null,null,null,null,null,null,{"$f":"'2017'!A55","v":12375},{"$f":"'2017'!B55","v":"صيانة31"}]
[{"$f":"INDEX($AI$2:$AI$550,MATCH(0,COUNTIF(A$1:$A55,$AI$2:$AI$550),0),0)","v":12376},"صيانة32",42,43,42,43,42,43,42,43,null,null,null,null,null,null,null,null,null,null,null,null,null,null,null,null,null,null,null,null,null,null,null,null,{"$f":"'2017'!A56","v":12376},{"$f":"'2017'!B56","v":"صيانة32"}]
[{"$f":"INDEX($AI$2:$AI$550,MATCH(0,COUNTIF(A$1:$A56,$AI$2:$AI$550),0),0)","v":12377},"صيانة33",43,44,43,44,43,44,43,44,null,null,null,null,null,null,null,null,null,null,null,null,null,null,null,null,null,null,null,null,null,null,null,null,{"$f":"'2017'!A57","v":12377},{"$f":"'2017'!B57","v":"صيانة33"}]
[{"$f":"INDEX($AI$2:$AI$550,MATCH(0,COUNTIF(A$1:$A57,$AI$2:$AI$550),0),0)","v":12378},"صيانة34",44,45,44,45,44,45,44,45,null,null,null,null,null,null,null,null,null,null,null,null,null,null,null,null,null,null,null,null,null,null,null,null,{"$f":"'2017'!A58","v":12378},{"$f":"'2017'!B58","v":"صيانة34"}]
[{"$f":"INDEX($AI$2:$AI$550,MATCH(0,COUNTIF(A$1:$A58,$AI$2:$AI$550),0),0)","v":12379},"صيانة35",45,46,45,46,45,46,45,46,null,null,null,null,null,null,null,null,null,null,null,null,null,null,null,null,null,null,null,null,null,null,null,null,{"$f":"'2017'!A59","v":12379},{"$f":"'2017'!B59","v":"صيانة35"}]
[{"$f":"INDEX($AI$2:$AI$550,MATCH(0,COUNTIF(A$1:$A59,$AI$2:$AI$550),0),0)","v":12380},"صيانة36",46,47,46,47,46,47,46,47,null,null,null,null,null,null,null,null,null,null,null,null,null,null,null,null,null,null,null,null,null,null,null,null,{"$f":"'2017'!A60","v":12380},{"$f":"'2017'!B60","v":"صيانة36"}]
[{"$f":"INDEX($AI$2:$AI$550,MATCH(0,COUNTIF(A$1:$A60,$AI$2:$AI$550),0),0)","v":12381},"صيانة37",47,48,47,48,47,48,47,48,null,null,null,null,null,null,null,null,null,null,null,null,null,null,null,null,null,null,null,null,null,null,null,null,{"$f":"'2017'!A61","v":12381},{"$f":"'2017'!B61","v":"صيانة37"}]
[{"$f":"INDEX($AI$2:$AI$550,MATCH(0,COUNTIF(A$1:$A61,$AI$2:$AI$550),0),0)","v":12382},"صيانة38",48,49,48,49,48,49,48,49,null,null,null,null,null,null,null,null,null,null,null,null,null,null,null,null,null,null,null,null,null,null,null,null,{"$f":"'2017'!A62","v":12382},{"$f":"'2017'!B62","v":"صيانة38"}]
[{"$f":"INDEX($AI$2:$AI$550,MATCH(0,COUNTIF(A$1:$A62,$AI$2:$AI$550),0),0)","v":12383},"صيانة39",49,50,49,50,49,50,49,50,null,null,null,null,null,null,null,null,null,null,null,null,null,null,null,null,null,null,null,null,null,null,null,null,{"$f":"'2017'!A63","v":12383},{"$f":"'2017'!B63","v":"صيانة39"}]
[{"$f":"INDEX($AI$2:$AI$550,MATCH(0,COUNTIF(A$1:$A63,$AI$2:$AI$550),0),0)","v":12384},"صيانة40",50,51,50,51,50,51,50,51,null,null,null,null,null,null,null,null,null,null,null,null,null,null,null,null,null,null,null,null,null,null,null,null,{"$f":"'2017'!A64","v":12384},{"$f":"'2017'!B64","v":"صيانة40"}]
[{"$f":"INDEX($AI$2:$AI$550,MATCH(0,COUNTIF(A$1:$A64,$AI$2:$AI$550),0),0)","v":12385},"صيانة41",51,52,51,52,51,52,51,52,null,null,null,null,null,null,null,null,null,null,null,null,null,null,null,null,null,null,null,null,null,null,null,null,{"$f":"'2017'!A65","v":12385},{"$f":"'2017'!B65","v":"صيانة41"}]
[{"$f":"INDEX($AI$2:$AI$550,MATCH(0,COUNTIF(A$1:$A65,$AI$2:$AI$550),0),0)","v":12386},"صيانة42",52,53,52,53,52,53,52,53,null,null,null,null,null,null,null,null,null,null,null,null,null,null,null,null,null,null,null,null,null,null,null,null,{"$f":"'2017'!A66","v":12386},{"$f":"'2017'!B66","v":"صيانة42"}]
[{"$f":"INDEX($AI$2:$AI$550,MATCH(0,COUNTIF(A$1:$A66,$AI$2:$AI$550),0),0)","v":12387},{"$f":"IF(A67=\"\",\"\",VLOOKUP(A67,$AI$2:$AJ$550,2,0))","v":"صيانة43"},53,54,53,54,53,54,53,54,null,null,null,null,null,null,null,null,null,null,null,null,null,null,null,null,null,null,null,null,null,null,null,null,{"$f":"'2017'!A67","v":12387},{"$f":"'2017'!B67","v":"صيانة43"}]
[{"$f":"INDEX($AI$2:$AI$550,MATCH(0,COUNTIF(A$1:$A67,$AI$2:$AI$550),0),0)","v":12388},"صيانة44",54,55,54,55,54,55,54,55,null,null,null,null,null,null,null,null,null,null,null,null,null,null,null,null,null,null,null,null,null,null,null,null,{"$f":"'2017'!A68","v":12388},{"$f":"'2017'!B68","v":"صيانة44"}]
[{"$f":"INDEX($AI$2:$AI$550,MATCH(0,COUNTIF(A$1:$A68,$AI$2:$AI$550),0),0)","v":12389},"صيانة45",55,56,55,56,55,56,55,56,null,null,null,null,null,null,null,null,null,null,null,null,null,null,null,null,null,null,null,null,null,null,null,null,{"$f":"'2017'!A69","v":12389},{"$f":"'2017'!B69","v":"صيانة45"}]
[{"$f":"INDEX($AI$2:$AI$550,MATCH(0,COUNTIF(A$1:$A69,$AI$2:$AI$550),0),0)","v":12390},"صيانة46",56,57,56,57,56,57,56,57,null,null,null,null,null,null,null,null,null,null,null,null,null,null,null,null,null,null,null,null,null,null,null,null,{"$f":"'2017'!A70","v":12390},{"$f":"'2017'!B70","v":"صيانة46"}]
[{"$f":"INDEX($AI$2:$AI$550,MATCH(0,COUNTIF(A$1:$A70,$AI$2:$AI$550),0),0)","v":12391},"صيانة47",57,58,57,58,57,58,57,58,null,null,null,null,null,null,null,null,null,null,null,null,null,null,null,null,null,null,null,null,null,null,null,null,{"$f":"'2017'!A71","v":12391},{"$f":"'2017'!B71","v":"صيانة47"}]
[{"$f":"INDEX($AI$2:$AI$550,MATCH(0,COUNTIF(A$1:$A71,$AI$2:$AI$550),0),0)","v":12392},"صيانة48",58,59,58,59,58,59,58,59,null,null,null,null,null,null,null,null,null,null,null,null,null,null,null,null,null,null,null,null,null,null,null,null,{"$f":"'2017'!A72","v":12392},{"$f":"'2017'!B72","v":"صيانة48"}]
[{"$f":"INDEX($AI$2:$AI$550,MATCH(0,COUNTIF(A$1:$A72,$AI$2:$AI$550),0),0)","v":12393},"صيانة49",59,60,59,60,59,60,59,60,null,null,null,null,null,null,null,null,null,null,null,null,null,null,null,null,null,null,null,null,null,null,null,null,{"$f":"'2017'!A73","v":12393},{"$f":"'2017'!B73","v":"صيانة49"}]
[{"$f":"INDEX($AI$2:$AI$550,MATCH(0,COUNTIF(A$1:$A73,$AI$2:$AI$550),0),0)","v":12394},"صيانة50",60,61,60,61,60,61,60,61,null,null,null,null,null,null,null,null,null,null,null,null,null,null,null,null,null,null,null,null,null,null,null,null,{"$f":"'2017'!A74","v":12394},{"$f":"'2017'!B74","v":"صيانة50"}]
[{"$f":"INDEX($AI$2:$AI$550,MATCH(0,COUNTIF(A$1:$A74,$AI$2:$AI$550),0),0)","v":12395},"صيانة51",61,62,61,62,61,62,61,62,null,null,null,null,null,null,null,null,null,null,null,null,null,null,null,null,null,null,null,null,null,null,null,null,{"$f":"'2017'!A75","v":12395},{"$f":"'2017'!B75","v":"صيانة51"}]
[{"$f":"INDEX($AI$2:$AI$550,MATCH(0,COUNTIF(A$1:$A75,$AI$2:$AI$550),0),0)","v":12396},"صيانة52",62,63,62,63,62,63,62,63,null,null,null,null,null,null,null,null,null,null,null,null,null,null,null,null,null,null,null,null,null,null,null,null,{"$f":"'2017'!A76","v":12396},{"$f":"'2017'!B76","v":"صيانة52"}]
[{"$f":"INDEX($AI$2:$AI$550,MATCH(0,COUNTIF(A$1:$A76,$AI$2:$AI$550),0),0)","v":12397},"صيانة53",63,64,63,64,63,64,63,64,null,null,null,null,null,null,null,null,null,null,null,null,null,null,null,null,null,null,null,null,null,null,null,null,{"$f":"'2017'!A77","v":12397},{"$f":"'2017'!B77","v":"صيانة53"}]
[{"$f":"INDEX($AI$2:$AI$550,MATCH(0,COUNTIF(A$1:$A77,$AI$2:$AI$550),0),0)","v":12398},"صيانة54",64,65,64,65,64,65,64,65,null,null,null,null,null,null,null,null,null,null,null,null,null,null,null,null,null,null,null,null,null,null,null,null,{"$f":"'2017'!A78","v":12398},{"$f":"'2017'!B78","v":"صيانة54"}]
[{"$f":"INDEX($AI$2:$AI$550,MATCH(0,COUNTIF(A$1:$A78,$AI$2:$AI$550),0),0)","v":12399},"صيانة55",65,66,65,66,65,66,65,66,null,null,null,null,null,null,null,null,null,null,null,null,null,null,null,null,null,null,null,null,null,null,null,null,{"$f":"'2017'!A79","v":12399},{"$f":"'2017'!B79","v":"صيانة55"}]
[{"$f":"INDEX($AI$2:$AI$550,MATCH(0,COUNTIF(A$1:$A79,$AI$2:$AI$550),0),0)","v":12400},"صيانة56",66,67,66,67,66,67,66,67,null,null,null,null,null,null,null,null,null,null,null,null,null,null,null,null,null,null,null,null,null,null,null,null,{"$f":"'2017'!A80","v":12400},{"$f":"'2017'!B80","v":"صيانة56"}]
[{"$f":"INDEX($AI$2:$AI$550,MATCH(0,COUNTIF(A$1:$A80,$AI$2:$AI$550),0),0)","v":12401},"صيانة57",67,68,67,68,67,68,67,68,null,null,null,null,null,null,null,null,null,null,null,null,null,null,null,null,null,null,null,null,null,null,null,null,{"$f":"'2017'!A81","v":12401},{"$f":"'2017'!B81","v":"صيانة57"}]
[{"$f":"INDEX($AI$2:$AI$550,MATCH(0,COUNTIF(A$1:$A81,$AI$2:$AI$550),0),0)","v":12402},"صيانة58",68,69,68,69,68,69,68,69,null,null,null,null,null,null,null,null,null,null,null,null,null,null,null,null,null,null,null,null,null,null,null,null,{"$f":"'2017'!A82","v":12402},{"$f":"'2017'!B82","v":"صيانة58"}]
[{"$f":"INDEX($AI$2:$AI$550,MATCH(0,COUNTIF(A$1:$A82,$AI$2:$AI$550),0),0)","v":12403},"صيانة59",69,70,69,70,69,70,69,70,null,null,null,null,null,null,null,null,null,null,null,null,null,null,null,null,null,null,null,null,null,null,null,null,{"$f":"'2017'!A83","v":12403},{"$f":"'2017'!B83","v":"صيانة59"}]
[{"$f":"INDEX($AI$2:$AI$550,MATCH(0,COUNTIF(A$1:$A83,$AI$2:$AI$550),0),0)","v":12404},"صيانة60",70,71,70,71,70,71,70,71,null,null,null,null,null,null,null,null,null,null,null,null,null,null,null,null,null,null,null,null,null,null,null,null,{"$f":"'2017'!A84","v":12404},{"$f":"'2017'!B84","v":"صيانة60"}]
[{"$f":"INDEX($AI$2:$AI$550,MATCH(0,COUNTIF(A$1:$A84,$AI$2:$AI$550),0),0)","v":12405},"صيانة61",71,72,71,72,71,72,71,72,null,null,null,null,null,null,null,null,null,null,null,null,null,null,null,null,null,null,null,null,null,null,null,null,{"$f":"'2017'!A85","v":12405},{"$f":"'2017'!B85","v":"صيانة61"}]
[{"$f":"INDEX($AI$2:$AI$550,MATCH(0,COUNTIF(A$1:$A85,$AI$2:$AI$550),0),0)","v":12406},"صيانة62",72,73,72,73,72,73,72,73,null,null,null,null,null,null,null,null,null,null,null,null,null,null,null,null,null,null,null,null,null,null,null,null,{"$f":"'2017'!A86","v":12406},{"$f":"'2017'!B86","v":"صيانة62"}]
[{"$f":"INDEX($AI$2:$AI$550,MATCH(0,COUNTIF(A$1:$A86,$AI$2:$AI$550),0),0)","v":12407},"صيانة63",73,74,73,74,73,74,73,74,null,null,null,null,null,null,null,null,null,null,null,null,null,null,null,null,null,null,null,null,null,null,null,null,{"$f":"'2017'!A87","v":12407},{"$f":"'2017'!B87","v":"صيانة63"}]
[{"$f":"INDEX($AI$2:$AI$550,MATCH(0,COUNTIF(A$1:$A87,$AI$2:$AI$550),0),0)","v":12408},"صيانة64",74,75,74,75,74,75,74,75,null,null,null,null,null,null,null,null,null,null,null,null,null,null,null,null,null,null,null,null,null,null,null,null,{"$f":"'2017'!A88","v":12408},{"$f":"'2017'!B88","v":"صيانة64"}]
[{"$f":"INDEX($AI$2:$AI$550,MATCH(0,COUNTIF(A$1:$A88,$AI$2:$AI$550),0),0)","v":12409},"صيانة65",75,76,75,76,75,76,"HHHHH","GGG",null,null,null,null,null,null,null,null,null,null,null,null,null,null,null,null,null,null,null,null,null,null,null,null,{"$f":"'2017'!A89","v":12409},{"$f":"'2017'!B89","v":"صيانة65"}]
[{"$f":"INDEX($AI$2:$AI$550,MATCH(0,COUNTIF(A$1:$A89,$AI$2:$AI$550),0),0)","v":12410},"صيانة66",76,77,76,77,76,77,76,77,null,null,null,null,null,null,null,null,null,null,null,null,null,null,null,null,null,null,null,null,null,null,null,null,{"$f":"'2017'!A90","v":12410},{"$f":"'2017'!B90","v":"صيانة66"}]
[{"$f":"INDEX($AI$2:$AI$550,MATCH(0,COUNTIF(A$1:$A90,$AI$2:$AI$550),0),0)","v":12411},"صيانة67",77,78,77,78,77,78,77,78,null,null,null,null,null,null,null,null,null,null,null,null,null,null,null,null,null,null,null,null,null,null,null,null,{"$f":"'2017'!A91","v":12411},{"$f":"'2017'!B91","v":"صيانة67"}]
[{"$f":"INDEX($AI$2:$AI$550,MATCH(0,COUNTIF(A$1:$A91,$AI$2:$AI$550),0),0)","v":12412},"صيانة68",78,79,78,79,78,79,78,79,null,null,null,null,null,null,null,null,null,null,null,null,null,null,null,null,null,null,null,null,null,null,null,null,{"$f":"'2017'!A92","v":12412},{"$f":"'2017'!B92","v":"صيانة68"}]
[{"$f":"INDEX($AI$2:$AI$550,MATCH(0,COUNTIF(A$1:$A92,$AI$2:$AI$550),0),0)","v":12413},"صيانة69",79,80,79,80,79,80,79,80,null,null,null,null,null,null,null,null,null,null,null,null,null,null,null,null,null,null,null,null,null,null,null,null,{"$f":"'2017'!A93","v":12413},{"$f":"'2017'!B93","v":"صيانة69"}]
[{"$f":"INDEX($AI$2:$AI$550,MATCH(0,COUNTIF(A$1:$A93,$AI$2:$AI$550),0),0)","v":12414},"صيانة70",80,81,80,81,80,81,80,81,null,null,null,null,null,null,null,null,null,null,null,null,null,null,null,null,null,null,null,null,null,null,null,null,{"$f":"'2017'!A94","v":12414},{"$f":"'2017'!B94","v":"صيانة70"}]
[{"$f":"INDEX($AI$2:$AI$550,MATCH(0,COUNTIF(A$1:$A94,$AI$2:$AI$550),0),0)","v":12415},"صيانة71",81,82,81,82,81,82,81,82,null,null,null,null,null,null,null,null,null,null,null,null,null,null,null,null,null,null,null,null,null,null,null,null,{"$f":"'2017'!A95","v":12415},{"$f":"'2017'!B95","v":"صيانة71"}]
[{"$f":"INDEX($AI$2:$AI$550,MATCH(0,COUNTIF(A$1:$A95,$AI$2:$AI$550),0),0)","v":12416},"صيانة72",82,83,82,83,82,83,82,83,null,null,null,null,null,null,null,null,null,null,null,null,null,null,null,null,null,null,null,null,null,null,null,null,{"$f":"'2017'!A96","v":12416},{"$f":"'2017'!B96","v":"صيانة72"}]
[{"$f":"INDEX($AI$2:$AI$550,MATCH(0,COUNTIF(A$1:$A96,$AI$2:$AI$550),0),0)","v":12417},"صيانة73",83,84,83,84,83,84,83,84,null,null,null,null,null,null,null,null,null,null,null,null,null,null,null,null,null,null,null,null,null,null,null,null,{"$f":"'2017'!A97","v":12417},{"$f":"'2017'!B97","v":"صيانة73"}]
[{"$f":"INDEX($AI$2:$AI$550,MATCH(0,COUNTIF(A$1:$A97,$AI$2:$AI$550),0),0)","v":12418},"صيانة74",84,85,84,85,84,85,84,85,null,null,null,null,null,null,null,null,null,null,null,null,null,null,null,null,null,null,null,null,null,null,null,null,{"$f":"'2017'!A98","v":12418},{"$f":"'2017'!B98","v":"صيانة74"}]
[{"$f":"INDEX($AI$2:$AI$550,MATCH(0,COUNTIF(A$1:$A98,$AI$2:$AI$550),0),0)","v":12419},"صيانة75",85,86,85,86,85,86,85,86,null,null,null,null,null,null,null,null,null,null,null,null,null,null,null,null,null,null,null,null,null,null,null,null,{"$f":"'2017'!A99","v":12419},{"$f":"'2017'!B99","v":"صيانة75"}]
[{"$f":"INDEX($AI$2:$AI$550,MATCH(0,COUNTIF(A$1:$A99,$AI$2:$AI$550),0),0)","v":12420},"صيانة76",86,87,86,87,86,87,86,87,null,null,null,null,null,null,null,null,null,null,null,null,null,null,null,null,null,null,null,null,null,null,null,null,{"$f":"'2017'!A100","v":12420},{"$f":"'2017'!B100","v":"صيانة76"}]
[{"$f":"INDEX($AI$2:$AI$550,MATCH(0,COUNTIF(A$1:$A100,$AI$2:$AI$550),0),0)","v":12421},"صيانة77",87,88,87,88,87,88,87,88,null,null,null,null,null,null,null,null,null,null,null,null,null,null,null,null,null,null,null,null,null,null,null,null,{"$f":"'2017'!A101","v":12421},{"$f":"'2017'!B101","v":"صيانة77"}]
[{"$f":"INDEX($AI$2:$AI$550,MATCH(0,COUNTIF(A$1:$A101,$AI$2:$AI$550),0),0)","v":12422},"صيانة78",88,89,88,89,88,89,88,89,null,null,null,null,null,null,null,null,null,null,null,null,null,null,null,null,null,null,null,null,null,null,null,null,{"$f":"'2017'!A102","v":12422},{"$f":"'2017'!B102","v":"صيانة78"}]
[{"$f":"INDEX($AI$2:$AI$550,MATCH(0,COUNTIF(A$1:$A102,$AI$2:$AI$550),0),0)","v":12423},"صيانة79",89,90,89,90,89,90,89,90,null,null,null,null,null,null,null,null,null,null,null,null,null,null,null,null,null,null,null,null,null,null,null,null,{"$f":"'2017'!A103","v":12423},{"$f":"'2017'!B103","v":"صيانة79"}]
[{"$f":"INDEX($AI$2:$AI$550,MATCH(0,COUNTIF(A$1:$A103,$AI$2:$AI$550),0),0)","v":12424},"صيانة80",90,91,null,null,90,91,90,91,null,null,null,null,null,null,null,null,null,null,null,null,null,null,null,null,null,null,null,null,null,null,null,null,{"$f":"'2017'!A104","v":12424},{"$f":"'2017'!B104","v":"صيانة80"}]
[{"$f":"INDEX($AI$2:$AI$550,MATCH(0,COUNTIF(A$1:$A104,$AI$2:$AI$550),0),0)","v":12425},"صيانة81",91,92,null,null,91,92,null,null,null,null,null,null,null,null,null,null,null,null,null,null,null,null,null,null,null,null,null,null,null,null,null,null,{"$f":"'2017'!A105","v":12425},{"$f":"'2017'!B105","v":"صيانة81"}]
[{"$f":"INDEX($AI$2:$AI$550,MATCH(0,COUNTIF(A$1:$A105,$AI$2:$AI$550),0),0)","v":12426},"صيانة82",92,93,null,null,92,93,null,null,null,null,null,null,null,null,null,null,null,null,null,null,null,null,null,null,null,null,null,null,null,null,null,null,{"$f":"'2017'!A106","v":12426},{"$f":"'2017'!B106","v":"صيانة82"}]
[{"$f":"INDEX($AI$2:$AI$550,MATCH(0,COUNTIF(A$1:$A106,$AI$2:$AI$550),0),0)","v":12427},"صيانة83",93,94,93,94,93,94,null,null,null,null,null,null,null,null,null,null,null,null,null,null,null,null,null,null,null,null,null,null,null,null,null,null,{"$f":"'2017'!A107","v":12427},{"$f":"'2017'!B107","v":"صيانة83"}]
[{"$f":"INDEX($AI$2:$AI$550,MATCH(0,COUNTIF(A$1:$A107,$AI$2:$AI$550),0),0)","v":12428},"صيانة84",94,95,null,null,94,95,null,null,null,null,null,null,null,null,null,null,null,null,null,null,null,null,null,null,null,null,null,null,null,null,null,null,{"$f":"'2017'!A108","v":12428},{"$f":"'2017'!B108","v":"صيانة84"}]
[{"$f":"INDEX($AI$2:$AI$550,MATCH(0,COUNTIF(A$1:$A108,$AI$2:$AI$550),0),0)","v":12429},"صيانة85",95,96,null,null,95,96,null,null,null,null,null,null,null,null,null,null,null,null,null,null,null,null,null,null,null,null,null,null,null,null,null,null,{"$f":"'2017'!A109","v":12429},{"$f":"'2017'!B109","v":"صيانة85"}]
[{"$f":"INDEX($AI$2:$AI$550,MATCH(0,COUNTIF(A$1:$A109,$AI$2:$AI$550),0),0)","v":12430},"صيانة86",96,97,null,null,96,97,null,null,null,null,null,null,null,null,null,null,null,null,null,null,null,null,null,null,null,null,null,null,null,null,null,null,{"$f":"'2017'!A110","v":12430},{"$f":"'2017'!B110","v":"صيانة86"}]
[{"$f":"INDEX($AI$2:$AI$550,MATCH(0,COUNTIF(A$1:$A110,$AI$2:$AI$550),0),0)","v":12431},"صيانة87",97,98,null,null,97,98,null,null,null,null,null,null,null,null,null,null,null,null,null,null,null,null,null,null,null,null,null,null,null,null,null,null,{"$f":"'2017'!A111","v":12431},{"$f":"'2017'!B111","v":"صيانة87"}]
[{"$f":"INDEX($AI$2:$AI$550,MATCH(0,COUNTIF(A$1:$A111,$AI$2:$AI$550),0),0)","v":12432},"صيانة88",98,99,null,null,98,99,null,null,null,null,null,null,null,null,null,null,null,null,null,null,null,null,null,null,null,null,null,null,null,null,null,null,{"$f":"'2017'!A112","v":12432},{"$f":"'2017'!B112","v":"صيانة88"}]
[{"$f":"INDEX($AI$2:$AI$550,MATCH(0,COUNTIF(A$1:$A112,$AI$2:$AI$550),0),0)","v":12433},"صيانة89",99,100,null,null,99,100,null,null,null,null,null,null,null,null,null,null,null,null,null,null,null,null,null,null,null,null,null,null,null,null,null,null,{"$f":"'2017'!A113","v":12433},{"$f":"'2017'!B113","v":"صيانة89"}]
[{"$f":"INDEX($AI$2:$AI$550,MATCH(0,COUNTIF(A$1:$A113,$AI$2:$AI$550),0),0)","v":12434},"صيانة90",100,101,null,null,100,101,null,null,null,null,null,null,null,null,null,null,null,null,null,null,null,null,null,null,null,null,null,null,null,null,null,null,{"$f":"'2017'!A114","v":12434},{"$f":"'2017'!B114","v":"صيانة90"}]
[{"$f":"INDEX($AI$2:$AI$550,MATCH(0,COUNTIF(A$1:$A114,$AI$2:$AI$550),0),0)","v":12435},"صيانة91",101,102,null,null,101,102,null,null,null,null,null,null,null,null,null,null,null,null,null,null,null,null,null,null,null,null,null,null,null,null,null,null,{"$f":"'2017'!A115","v":12435},{"$f":"'2017'!B115","v":"صيانة91"}]
[{"$f":"INDEX($AI$2:$AI$550,MATCH(0,COUNTIF(A$1:$A115,$AI$2:$AI$550),0),0)","v":12436},"صيانة92",102,103,null,null,102,103,null,null,null,null,null,null,null,null,null,null,null,null,null,null,null,null,null,null,null,null,null,null,null,null,null,null,{"$f":"'2017'!A116","v":12436},{"$f":"'2017'!B116","v":"صيانة92"}]
[{"$f":"INDEX($AI$2:$AI$550,MATCH(0,COUNTIF(A$1:$A116,$AI$2:$AI$550),0),0)","v":12437},"صيانة93",103,104,null,null,103,104,null,null,null,null,null,null,null,null,null,null,null,null,null,null,null,null,null,null,null,null,null,null,null,null,null,null,{"$f":"'2017'!A117","v":12437},{"$f":"'2017'!B117","v":"صيانة93"}]
[{"$f":"INDEX($AI$2:$AI$550,MATCH(0,COUNTIF(A$1:$A117,$AI$2:$AI$550),0),0)","v":12438},"صيانة94",104,105,null,null,104,105,null,null,null,null,null,null,null,null,null,null,null,null,null,null,null,null,null,null,null,null,null,null,null,null,null,null,{"$f":"'2017'!A118","v":12438},{"$f":"'2017'!B118","v":"صيانة94"}]
[{"$f":"INDEX($AI$2:$AI$550,MATCH(0,COUNTIF(A$1:$A118,$AI$2:$AI$550),0),0)","v":12439},"صيانة95",105,106,null,null,105,106,null,null,null,null,null,null,null,null,null,null,null,null,null,null,null,null,null,null,null,null,null,null,null,null,null,null,{"$f":"'2017'!A119","v":12439},{"$f":"'2017'!B119","v":"صيانة95"}]
[{"$f":"INDEX($AI$2:$AI$550,MATCH(0,COUNTIF(A$1:$A119,$AI$2:$AI$550),0),0)","v":12440},"صيانة96",106,107,null,null,106,107,null,null,null,null,null,null,null,null,null,null,null,null,null,null,null,null,null,null,null,null,null,null,null,null,null,null,{"$f":"'2017'!A120","v":12440},{"$f":"'2017'!B120","v":"صيانة96"}]
[{"$f":"INDEX($AI$2:$AI$550,MATCH(0,COUNTIF(A$1:$A120,$AI$2:$AI$550),0),0)","v":12441},"صيانة97",107,108,null,null,107,108,null,null,null,null,null,null,null,null,null,null,null,null,null,null,null,null,null,null,null,null,null,null,null,null,null,null,{"$f":"'2017'!A121","v":12441},{"$f":"'2017'!B121","v":"صيانة97"}]
[{"$f":"INDEX($AI$2:$AI$550,MATCH(0,COUNTIF(A$1:$A121,$AI$2:$AI$550),0),0)","v":12442},"صيانة98",108,109,null,null,108,109,null,null,null,null,null,null,null,null,null,null,null,null,null,null,null,null,null,null,null,null,null,null,null,null,null,null,{"$f":"'2017'!A122","v":12442},{"$f":"'2017'!B122","v":"صيانة98"}]
[{"$f":"INDEX($AI$2:$AI$550,MATCH(0,COUNTIF(A$1:$A122,$AI$2:$AI$550),0),0)","v":12443},"صيانة99",109,110,null,null,109,110,null,null,null,null,null,null,null,null,null,null,null,null,null,null,null,null,null,null,null,null,null,null,null,null,null,null,{"$f":"'2017'!A123","v":12443},{"$f":"'2017'!B123","v":"صيانة99"}]
[{"$f":"INDEX($AI$2:$AI$550,MATCH(0,COUNTIF(A$1:$A123,$AI$2:$AI$550),0),0)","v":12444},"صيانة100",110,111,null,null,110,111,null,null,null,null,null,null,null,null,null,null,null,null,null,null,null,null,null,null,null,null,null,null,null,null,null,null,{"$f":"'2017'!A124","v":12444},{"$f":"'2017'!B124","v":"صيانة100"}]
[{"$f":"INDEX($AI$2:$AI$550,MATCH(0,COUNTIF(A$1:$A124,$AI$2:$AI$550),0),0)","v":{"$error":"#REF!"}},{"$error":"#REF!"},111,112,null,null,111,112,111,112,null,null,null,null,null,null,null,null,null,null,null,null,null,null,null,null,null,null,null,null,null,null,null,null,{"$f":"'2017'!#REF!","v":{"$error":"#REF!"}},{"$f":"'2017'!#REF!","v":{"$error":"#REF!"}}]
[{"$f":"INDEX($AI$2:$AI$550,MATCH(0,COUNTIF(A$1:$A125,$AI$2:$AI$550),0),0)","v":12450},"صيانة106",112,113,null,null,112,113,112,113,null,null,null,null,null,null,null,null,null,null,null,null,null,null,null,null,null,null,null,null,null,null,null,null,{"$f":"'2017'!#REF!","v":{"$error":"#REF!"}},{"$f":"'2017'!#REF!","v":{"$error":"#REF!"}}]
[{"$f":"INDEX($AI$2:$AI$550,MATCH(0,COUNTIF(A$1:$A126,$AI$2:$AI$550),0),0)","v":12451},"صيانة107",113,114,null,null,113,114,113,114,null,null,null,null,null,null,null,null,null,null,null,null,null,null,null,null,null,null,null,null,null,null,null,null,{"$f":"'2017'!#REF!","v":{"$error":"#REF!"}},{"$f":"'2017'!#REF!","v":{"$error":"#REF!"}}]
[{"$f":"INDEX($AI$2:$AI$550,MATCH(0,COUNTIF(A$1:$A127,$AI$2:$AI$550),0),0)","v":12452},"صيانة108",114,115,null,null,null,null,null,null,null,null,null,null,null,null,null,null,null,null,null,null,null,null,null,null,null,null,null,null,null,null,null,null,{"$f":"'2017'!#REF!","v":{"$error":"#REF!"}},{"$f":"'2017'!#REF!","v":{"$error":"#REF!"}}]
[{"$f":"INDEX($AI$2:$AI$550,MATCH(0,COUNTIF(A$1:$A128,$AI$2:$AI$550),0),0)","v":12453},"صيانة109",115,116,null,null,null,null,null,null,null,null,null,null,null,null,null,null,null,null,null,null,null,null,null,null,null,null,null,null,null,null,null,null,{"$f":"'2017'!#REF!","v":{"$error":"#REF!"}},{"$f":"'2017'!#REF!","v":{"$error":"#REF!"}}]
[{"$f":"INDEX($AI$2:$AI$550,MATCH(0,COUNTIF(A$1:$A129,$AI$2:$AI$550),0),0)","v":12454},"صيانة110",116,117,null,null,null,null,null,null,null,null,null,null,null,null,null,null,null,null,null,null,null,null,null,null,null,null,null,null,null,null,null,null,{"$f":"'2017'!A125","v":12450},{"$f":"'2017'!B125","v":"صيانة106"}]
[{"$f":"INDEX($AI$2:$AI$550,MATCH(0,COUNTIF(A$1:$A130,$AI$2:$AI$550),0),0)","v":12455},{"$f":"IF(A131=\"\",\"\",VLOOKUP(A131,$AI$2:$AJ$550,2,0))","v":"صيانة11111111111"},117,118,null,null,null,null,null,null,null,null,null,null,null,null,null,null,null,null,null,null,null,null,null,null,null,null,null,null,null,null,null,null,{"$f":"'2017'!A126","v":12451},{"$f":"'2017'!B126","v":"صيانة107"}]
[{"$f":"INDEX($AI$2:$AI$550,MATCH(0,COUNTIF(A$1:$A131,$AI$2:$AI$550),0),0)","v":0},0,118,119,null,null,118,119,118,119,null,null,null,null,null,null,null,null,null,null,null,null,null,null,null,null,null,null,null,null,null,null,null,null,{"$f":"'2017'!A127","v":12452},{"$f":"'2017'!B127","v":"صيانة108"}]
[{"$f":"INDEX($AI$2:$AI$550,MATCH(0,COUNTIF(A$1:$A132,$AI$2:$AI$550),0),0)","v":1213},"أحبار",119,120,null,null,119,120,119,120,null,null,null,null,null,null,null,null,null,null,null,null,null,null,null,null,null,null,null,null,null,null,null,null,{"$f":"'2017'!A128","v":12453},{"$f":"'2017'!B128","v":"صيانة109"}]
[{"$f":"INDEX($AI$2:$AI$550,MATCH(0,COUNTIF(A$1:$A133,$AI$2:$AI$550),0),0)","v":1318},"كمبيوتر",120,121,null,null,120,121,120,121,null,null,null,null,null,null,null,null,null,null,null,null,null,null,null,null,null,null,null,null,null,null,null,null,{"$f":"'2017'!A129","v":12454},{"$f":"'2017'!B129","v":"صيانة110"}]
[{"$f":"INDEX($AI$2:$AI$550,MATCH(0,COUNTIF(A$1:$A134,$AI$2:$AI$550),0),0)","v":3112},"مراوح","VVFRVR","F FF F",null,null,121,122,121,122,null,null,null,null,null,null,null,null,null,null,null,null,null,null,null,null,null,null,null,null,null,null,null,null,{"$f":"'2017'!A130","v":12455},{"$f":"'2017'!B130","v":"صيانة11111111111"}]
[{"$f":"INDEX($AI$2:$AI$550,MATCH(0,COUNTIF(A$1:$A135,$AI$2:$AI$550),0),0)","v":111112428},"صيانة84111111111",null,null,null,null,null,null,null,null,null,null,null,null,null,null,null,null,null,null,null,null,null,null,null,null,null,null,null,null,null,null,null,null,{"$f":"'2017'!A131","v":0},{"$f":"'2017'!B131","v":0}]
[{"$f":"INDEX($AI$2:$AI$550,MATCH(0,COUNTIF(A$1:$A136,$AI$2:$AI$550),0),0)","v":12456},"صيانة112",null,null,4325,5432,342,232,342,232,null,null,null,null,null,null,null,null,null,null,null,null,null,null,null,null,null,null,null,null,null,null,null,null,{"$f":"'2017'!A132","v":0},{"$f":"'2017'!B132","v":0}]
[{"$f":"INDEX($AI$2:$AI$550,MATCH(0,COUNTIF(A$1:$A137,$AI$2:$AI$550),0),0)","v":1111112457},"صيانة113WEEFE",null,null,2432,412,4643,5766,4643,5766,null,null,null,null,null,null,null,null,null,null,null,null,null,null,null,null,null,null,null,null,null,null,null,null,{"$f":"'2017'!A133","v":0},{"$f":"'2017'!B133","v":0}]
[{"$f":"INDEX($AI$2:$AI$550,MATCH(0,COUNTIF(A$1:$A138,$AI$2:$AI$550),0),0)","v":12445},"صيانة101",null,null,32,2345,4536,2434,4536,2434,null,null,null,null,null,null,null,null,null,null,null,null,null,null,null,null,null,null,null,null,null,null,null,null,{"$f":"'2017'!A134","v":0},{"$f":"'2017'!B134","v":0}]
[{"$f":"INDEX($AI$2:$AI$550,MATCH(0,COUNTIF(A$1:$A139,$AI$2:$AI$550),0),0)","v":12446},"صيانة102",null,null,"EDDD","DDEECED",null,null,null,null,null,null,null,null,null,null,null,null,null,null,null,null,null,null,null,null,null,null,null,null,null,null,null,null,{"$f":"'2017'!A135","v":0},{"$f":"'2017'!B135","v":0}]
[{"$f":"INDEX($AI$2:$AI$550,MATCH(0,COUNTIF(A$1:$A140,$AI$2:$AI$550),0),0)","v":12447},"صيانة103",null,null,null,null,122,123,122,123,null,null,null,null,null,null,null,null,null,null,null,null,null,null,null,null,null,null,null,null,null,null,null,null,{"$f":"'2017'!A136","v":0},{"$f":"'2017'!B136","v":0}]
[{"$f":"INDEX($AI$2:$AI$550,MATCH(0,COUNTIF(A$1:$A141,$AI$2:$AI$550),0),0)","v":"HHHHHH"},"FGDGDDDGDG",null,null,null,null,"EEEFEFR","GBVCXZ\\",null,null,null,null,null,null,null,null,null,null,null,null,null,null,null,null,null,null,null,null,null,null,null,null,null,null,{"$f":"'2017'!A137","v":0},{"$f":"'2017'!B137","v":0}]
[{"$f":"INDEX($AI$2:$AI$550,MATCH(0,COUNTIF(A$1:$A142,$AI$2:$AI$550),0),0)","v":{"$error":"#N/A"}},{"$error":"#N/A"},null,null,null,null,null,null,"DDGDG","DDGDD",null,null,{"$error":"#N/A"},null,null,null,null,null,null,null,null,null,null,null,null,null,null,null,null,null,null,null,null,null,{"$f":"'2017'!A138","v":0},{"$f":"'2017'!B138","v":0}]
[{"$f":"INDEX($AI$2:$AI$550,MATCH(0,COUNTIF(A$1:$A143,$AI$2:$AI$550),0),0)","v":{"$error":"#N/A"}},{"$error":"#N/A"},null,null,null,null,null,null,null,null,null,null,null,null,null,null,null,null,null,null,null,null,null,null,null,null,null,null,null,null,null,null,null,null,{"$f":"'2017'!A139","v":0},{"$f":"'2017'!B139","v":0}]
[{"$f":"INDEX($AI$2:$AI$550,MATCH(0,COUNTIF(A$1:$A144,$AI$2:$AI$550),0),0)","v":{"$error":"#N/A"}},{"$error":"#N/A"},null,null,null,null,null,null,null,null,null,null,null,null,null,null,null,null,null,null,null,null,null,null,null,null,null,null,null,null,null,null,null,null,{"$f":"'2017'!A140","v":0},{"$f":"'2017'!B140","v":0}]
[{"$f":"INDEX($AI$2:$AI$550,MATCH(0,COUNTIF(A$1:$A145,$AI$2:$AI$550),0),0)","v":{"$error":"#N/A"}},{"$error":"#N/A"},null,null,null,null,null,null,null,null,null,null,null,null,null,null,null,null,null,null,null,null,null,null,null,null,null,null,null,null,null,null,null,null,{"$f":"'2017'!A141","v":0},{"$f":"'2017'!B141","v":0}]
[{"$f":"INDEX($AI$2:$AI$550,MATCH(0,COUNTIF(A$1:$A146,$AI$2:$AI$550),0),0)","v":{"$error":"#N/A"}},{"$error":"#N/A"},null,null,null,null,null,null,null,null,null,null,null,null,null,null,null,null,null,null,null,null,null,null,null,null,null,null,null,null,null,null,null,null,{"$f":"'2018'!A2","v":1212},{"$f":"'2018'!B2","v":"أدوات مكتبية"}]
[{"$f":"INDEX($AI$2:$AI$550,MATCH(0,COUNTIF(A$1:$A147,$AI$2:$AI$550),0),0)","v":{"$error":"#N/A"}},{"$error":"#N/A"},null,null,null,null,null,null,null,null,null,null,null,null,null,null,null,null,null,null,null,null,null,null,null,null,null,null,null,null,null,null,null,null,{"$f":"'2018'!A3","v":1213},{"$f":"'2018'!B3","v":"أحبار"}]
[{"$f":"INDEX($AI$2:$AI$550,MATCH(0,COUNTIF(A$1:$A148,$AI$2:$AI$550),0),0)","v":{"$error":"#N/A"}},{"$error":"#N/A"},null,null,null,null,null,null,null,null,null,null,null,null,null,null,null,null,null,null,null,null,null,null,null,null,null,null,null,null,null,null,null,null,{"$f":"'2018'!A4","v":1214},{"$f":"'2018'!B4","v":"كتب "}]
[{"$f":"INDEX($AI$2:$AI$550,MATCH(0,COUNTIF(A$1:$A149,$AI$2:$AI$550),0),0)","v":{"$error":"#N/A"}},{"$error":"#N/A"},null,null,null,null,null,null,null,null,null,null,null,null,null,null,null,null,null,null,null,null,null,null,null,null,null,null,null,null,null,null,null,null,{"$f":"'2018'!A5","v":1215},{"$f":"'2018'!B5","v":"ملابس"}]
[{"$f":"INDEX($AI$2:$AI$550,MATCH(0,COUNTIF(A$1:$A150,$AI$2:$AI$550),0),0)","v":{"$error":"#N/A"}},{"$error":"#N/A"},null,null,null,null,null,null,null,null,null,null,null,null,null,null,null,null,null,null,null,null,null,null,null,null,null,null,null,null,null,null,null,null,{"$f":"'2018'!A6","v":1218},{"$f":"'2018'!B6","v":"صحون"}]
[{"$f":"INDEX($AI$2:$AI$550,MATCH(0,COUNTIF(A$1:$A151,$AI$2:$AI$550),0),0)","v":{"$error":"#N/A"}},{"$error":"#N/A"},null,null,null,null,null,null,null,null,null,null,null,null,null,null,null,null,null,null,null,null,null,null,null,null,null,null,null,null,null,null,null,null,{"$f":"'2018'!A7","v":1219},{"$f":"'2018'!B7","v":"سكاكين"}]
[{"$f":"INDEX($AI$2:$AI$550,MATCH(0,COUNTIF(A$1:$A152,$AI$2:$AI$550),0),0)","v":{"$error":"#N/A"}},{"$error":"#N/A"},null,null,null,null,null,null,null,null,null,null,null,null,null,null,null,null,null,null,null,null,null,null,null,null,null,null,null,null,null,null,null,null,{"$f":"'2018'!A8","v":1220},{"$f":"'2018'!B8","v":"مقص"}]
[{"$f":"INDEX($AI$2:$AI$550,MATCH(0,COUNTIF(A$1:$A153,$AI$2:$AI$550),0),0)","v":{"$error":"#N/A"}},{"$error":"#N/A"},null,null,null,null,null,null,null,null,null,null,null,null,null,null,null,null,null,null,null,null,null,null,null,null,null,null,null,null,null,null,null,null,{"$f":"'2018'!A9","v":1312},{"$f":"'2018'!B9","v":"لوحات"}]
[{"$f":"INDEX($AI$2:$AI$550,MATCH(0,COUNTIF(A$1:$A154,$AI$2:$AI$550),0),0)","v":{"$error":"#N/A"}},{"$error":"#N/A"},null,null,null,null,null,null,null,null,null,null,null,null,null,null,null,null,null,null,null,null,null,null,null,null,null,null,null,null,null,null,null,null,{"$f":"'2018'!A10","v":1313},{"$f":"'2018'!B10","v":"إطارات"}]
[{"$f":"INDEX($AI$2:$AI$550,MATCH(0,COUNTIF(A$1:$A155,$AI$2:$AI$550),0),0)","v":{"$error":"#N/A"}},{"$error":"#N/A"},null,null,null,null,null,null,null,null,null,null,null,null,null,null,null,null,null,null,null,null,null,null,null,null,null,null,null,null,null,null,null,null,{"$f":"'2018'!A11","v":1314},{"$f":"'2018'!B11","v":"إضاءة"}]
[{"$f":"INDEX($AI$2:$AI$550,MATCH(0,COUNTIF(A$1:$A156,$AI$2:$AI$550),0),0)","v":{"$error":"#N/A"}},{"$error":"#N/A"},null,null,null,null,null,null,null,null,null,null,null,null,null,null,null,null,null,null,null,null,null,null,null,null,null,null,null,null,null,null,null,null,{"$f":"'2018'!A12","v":1315},{"$f":"'2018'!B12","v":"أدوات قرطاسية"}]
[{"$f":"INDEX($AI$2:$AI$550,MATCH(0,COUNTIF(A$1:$A157,$AI$2:$AI$550),0),0)","v":{"$error":"#N/A"}},{"$error":"#N/A"},null,null,null,null,null,null,null,null,null,null,null,null,null,null,null,null,null,null,null,null,null,null,null,null,null,null,null,null,null,null,null,null,{"$f":"'2018'!A13","v":1316},{"$f":"'2018'!B13","v":"بنزين"}]
[{"$f":"INDEX($AI$2:$AI$550,MATCH(0,COUNTIF(A$1:$A158,$AI$2:$AI$550),0),0)","v":{"$error":"#N/A"}},{"$error":"#N/A"},null,null,null,null,null,null,null,null,null,null,null,null,null,null,null,null,null,null,null,null,null,null,null,null,null,null,null,null,null,null,null,null,{"$f":"'2018'!A14","v":1317},{"$f":"'2018'!B14","v":"مرتب العامل"}]
[{"$f":"INDEX($AI$2:$AI$550,MATCH(0,COUNTIF(A$1:$A159,$AI$2:$AI$550),0),0)","v":{"$error":"#N/A"}},{"$error":"#N/A"},null,null,null,null,null,null,null,null,null,null,null,null,null,null,null,null,null,null,null,null,null,null,null,null,null,null,null,null,null,null,null,null,{"$f":"'2018'!A15","v":1318},{"$f":"'2018'!B15","v":"كمبيوتر"}]
[{"$f":"INDEX($AI$2:$AI$550,MATCH(0,COUNTIF(A$1:$A160,$AI$2:$AI$550),0),0)","v":{"$error":"#N/A"}},{"$error":"#N/A"},null,null,null,null,null,null,null,null,null,null,null,null,null,null,null,null,null,null,null,null,null,null,null,null,null,null,null,null,null,null,null,null,{"$f":"'2018'!A16","v":1320},{"$f":"'2018'!B16","v":"عطور"}]
[{"$f":"INDEX($AI$2:$AI$550,MATCH(0,COUNTIF(A$1:$A161,$AI$2:$AI$550),0),0)","v":{"$error":"#N/A"}},{"$error":"#N/A"},null,null,null,null,null,null,null,null,null,null,null,null,null,null,null,null,null,null,null,null,null,null,null,null,null,null,null,null,null,null,null,null,{"$f":"'2018'!A17","v":1812},{"$f":"'2018'!B17","v":"أدوات زراعية"}]
[{"$f":"INDEX($AI$2:$AI$550,MATCH(0,COUNTIF(A$1:$A162,$AI$2:$AI$550),0),0)","v":{"$error":"#N/A"}},{"$error":"#N/A"},null,null,null,null,null,null,null,null,null,null,null,null,null,null,null,null,null,null,null,null,null,null,null,null,null,null,null,null,null,null,null,null,{"$f":"'2018'!A18","v":2112},{"$f":"'2018'!B18","v":"مكيفات"}]
[{"$f":"INDEX($AI$2:$AI$550,MATCH(0,COUNTIF(A$1:$A163,$AI$2:$AI$550),0),0)","v":{"$error":"#N/A"}},{"$error":"#N/A"},null,null,null,null,null,null,null,null,null,null,null,null,null,null,null,null,null,null,null,null,null,null,null,null,null,null,null,null,null,null,null,null,{"$f":"'2018'!A19","v":3112},{"$f":"'2018'!B19","v":"مراوح"}]
[{"$f":"INDEX($AI$2:$AI$550,MATCH(0,COUNTIF(A$1:$A164,$AI$2:$AI$550),0),0)","v":{"$error":"#N/A"}},{"$error":"#N/A"},null,null,null,null,null,null,null,null,null,null,null,null,null,null,null,null,null,null,null,null,null,null,null,null,null,null,null,null,null,null,null,null,{"$f":"'2018'!A20","v":12345},{"$f":"'2018'!B20","v":"صيانة1"}]
[{"$f":"INDEX($AI$2:$AI$550,MATCH(0,COUNTIF(A$1:$A165,$AI$2:$AI$550),0),0)","v":{"$error":"#N/A"}},{"$error":"#N/A"},null,null,null,null,null,null,null,null,null,null,null,null,null,null,null,null,null,null,null,null,null,null,null,null,null,null,null,null,null,null,null,null,{"$f":"'2018'!A21","v":12346},{"$f":"'2018'!B21","v":"صيانة2"}]
[{"$f":"INDEX($AI$2:$AI$550,MATCH(0,COUNTIF(A$1:$A166,$AI$2:$AI$550),0),0)","v":{"$error":"#N/A"}},{"$error":"#N/A"},null,null,null,null,null,null,null,null,null,null,null,null,null,null,null,null,null,null,null,null,null,null,null,null,null,null,null,null,null,null,null,null,{"$f":"'2018'!A22","v":12347},{"$f":"'2018'!B22","v":"صيانة3"}]
[{"$f":"INDEX($AI$2:$AI$550,MATCH(0,COUNTIF(A$1:$A167,$AI$2:$AI$550),0),0)","v":{"$error":"#N/A"}},{"$error":"#N/A"},null,null,null,null,null,null,null,null,null,null,null,null,null,null,null,null,null,null,null,null,null,null,null,null,null,null,null,null,null,null,null,null,{"$f":"'2018'!A23","v":12348},{"$f":"'2018'!B23","v":"صيانة4"}]
[{"$f":"INDEX($AI$2:$AI$550,MATCH(0,COUNTIF(A$1:$A168,$AI$2:$AI$550),0),0)","v":{"$error":"#N/A"}},{"$error":"#N/A"},null,null,null,null,null,null,null,null,null,null,null,null,null,null,null,null,null,null,null,null,null,null,null,null,null,null,null,null,null,null,null,null,{"$f":"'2018'!A24","v":12349},{"$f":"'2018'!B24","v":"صيانة5"}]
[{"$f":"INDEX($AI$2:$AI$550,MATCH(0,COUNTIF(A$1:$A169,$AI$2:$AI$550),0),0)","v":{"$error":"#N/A"}},{"$error":"#N/A"},null,null,null,null,null,null,null,null,null,null,null,null,null,null,null,null,null,null,null,null,null,null,null,null,null,null,null,null,null,null,null,null,{"$f":"'2018'!A25","v":12350},{"$f":"'2018'!B25","v":"صيانة6"}]
[{"$f":"INDEX($AI$2:$AI$550,MATCH(0,COUNTIF(A$1:$A170,$AI$2:$AI$550),0),0)","v":{"$error":"#N/A"}},{"$error":"#N/A"},null,null,null,null,null,null,null,null,null,null,null,null,null,null,null,null,null,null,null,null,null,null,null,null,null,null,null,null,null,null,null,null,{"$f":"'2018'!A26","v":12351},{"$f":"'2018'!B26","v":"صيانة7"}]
[{"$f":"INDEX($AI$2:$AI$550,MATCH(0,COUNTIF(A$1:$A171,$AI$2:$AI$550),0),0)","v":{"$error":"#N/A"}},{"$error":"#N/A"},null,null,null,null,null,null,null,null,null,null,null,null,null,null,null,null,null,null,null,null,null,null,null,null,null,null,null,null,null,null,null,null,{"$f":"'2018'!A27","v":12352},{"$f":"'2018'!B27","v":"صيانة8"}]
[{"$f":"INDEX($AI$2:$AI$550,MATCH(0,COUNTIF(A$1:$A172,$AI$2:$AI$550),0),0)","v":{"$error":"#N/A"}},{"$error":"#N/A"},null,null,null,null,null,null,null,null,null,null,null,null,null,null,null,null,null,null,null,null,null,null,null,null,null,null,null,null,null,null,null,null,{"$f":"'2018'!A28","v":12353},{"$f":"'2018'!B28","v":"صيانة9"}]
[{"$f":"INDEX($AI$2:$AI$550,MATCH(0,COUNTIF(A$1:$A173,$AI$2:$AI$550),0),0)","v":{"$error":"#N/A"}},{"$error":"#N/A"},null,null,null,null,null,null,null,null,null,null,null,null,null,null,null,null,null,null,null,null,null,null,null,null,null,null,null,null,null,null,null,null,{"$f":"'2018'!A29","v":12354},{"$f":"'2018'!B29","v":"صيانة10"}]
[{"$f":"INDEX($AI$2:$AI$550,MATCH(0,COUNTIF(A$1:$A174,$AI$2:$AI$550),0),0)","v":{"$error":"#N/A"}},{"$error":"#N/A"},null,null,null,null,null,null,null,null,null,null,null,null,null,null,null,null,null,null,null,null,null,null,null,null,null,null,null,null,null,null,null,null,{"$f":"'2018'!A30","v":12355},{"$f":"'2018'!B30","v":"صيانة11"}]
[{"$f":"INDEX($AI$2:$AI$550,MATCH(0,COUNTIF(A$1:$A175,$AI$2:$AI$550),0),0)","v":{"$error":"#N/A"}},{"$error":"#N/A"},null,null,null,null,null,null,null,null,null,null,null,null,null,null,null,null,null,null,null,null,null,null,null,null,null,null,null,null,null,null,null,null,{"$f":"'2018'!A31","v":12356},{"$f":"'2018'!B31","v":"صيانة12"}]
[{"$f":"INDEX($AI$2:$AI$550,MATCH(0,COUNTIF(A$1:$A176,$AI$2:$AI$550),0),0)","v":{"$error":"#N/A"}},{"$error":"#N/A"},null,null,null,null,null,null,null,null,null,null,null,null,null,null,null,null,null,null,null,null,null,null,null,null,null,null,null,null,null,null,null,null,{"$f":"'2018'!A32","v":12357},{"$f":"'2018'!B32","v":"صيانة13"}]
[{"$f":"INDEX($AI$2:$AI$550,MATCH(0,COUNTIF(A$1:$A177,$AI$2:$AI$550),0),0)","v":{"$error":"#N/A"}},{"$error":"#N/A"},null,null,null,null,null,null,null,null,null,null,null,null,null,null,null,null,null,null,null,null,null,null,null,null,null,null,null,null,null,null,null,null,{"$f":"'2018'!A33","v":12358},{"$f":"'2018'!B33","v":"صيانة14"}]
[{"$f":"INDEX($AI$2:$AI$550,MATCH(0,COUNTIF(A$1:$A178,$AI$2:$AI$550),0),0)","v":{"$error":"#N/A"}},{"$error":"#N/A"},null,null,null,null,null,null,null,null,null,null,null,null,null,null,null,null,null,null,null,null,null,null,null,null,null,null,null,null,null,null,null,null,{"$f":"'2018'!A34","v":12359},{"$f":"'2018'!B34","v":"صيانة15"}]
[{"$f":"INDEX($AI$2:$AI$550,MATCH(0,COUNTIF(A$1:$A179,$AI$2:$AI$550),0),0)","v":{"$error":"#N/A"}},{"$error":"#N/A"},null,null,null,null,null,null,null,null,null,null,null,null,null,null,null,null,null,null,null,null,null,null,null,null,null,null,null,null,null,null,null,null,{"$f":"'2018'!A35","v":12360},{"$f":"'2018'!B35","v":"صيانة16"}]
[{"$f":"INDEX($AI$2:$AI$550,MATCH(0,COUNTIF(A$1:$A180,$AI$2:$AI$550),0),0)","v":{"$error":"#N/A"}},{"$error":"#N/A"},null,null,null,null,null,null,null,null,null,null,null,null,null,null,null,null,null,null,null,null,null,null,null,null,null,null,null,null,null,null,null,null,{"$f":"'2018'!A36","v":12361},{"$f":"'2018'!B36","v":"صيانة17"}]
[{"$f":"INDEX($AI$2:$AI$550,MATCH(0,COUNTIF(A$1:$A181,$AI$2:$AI$550),0),0)","v":{"$error":"#N/A"}},{"$error":"#N/A"},null,null,null,null,null,null,null,null,null,null,null,null,null,null,null,null,null,null,null,null,null,null,null,null,null,null,null,null,null,null,null,null,{"$f":"'2018'!A37","v":12362},{"$f":"'2018'!B37","v":"صيانة18"}]
[{"$f":"INDEX($AI$2:$AI$550,MATCH(0,COUNTIF(A$1:$A182,$AI$2:$AI$550),0),0)","v":{"$error":"#N/A"}},{"$error":"#N/A"},null,null,null,null,null,null,null,null,null,null,null,null,null,null,null,null,null,null,null,null,null,null,null,null,null,null,null,null,null,null,null,null,{"$f":"'2018'!A38","v":12363},{"$f":"'2018'!B38","v":"صيانة19"}]
[{"$f":"INDEX($AI$2:$AI$550,MATCH(0,COUNTIF(A$1:$A183,$AI$2:$AI$550),0),0)","v":{"$error":"#N/A"}},{"$error":"#N/A"},null,null,null,null,null,null,null,null,null,null,null,null,null,null,null,null,null,null,null,null,null,null,null,null,null,null,null,null,null,null,null,null,{"$f":"'2018'!A39","v":12364},{"$f":"'2018'!B39","v":"صيانة20"}]
[{"$f":"INDEX($AI$2:$AI$550,MATCH(0,COUNTIF(A$1:$A184,$AI$2:$AI$550),0),0)","v":{"$error":"#N/A"}},{"$error":"#N/A"},null,null,null,null,null,null,null,null,null,null,null,null,null,null,null,null,null,null,null,null,null,null,null,null,null,null,null,null,null,null,null,null,{"$f":"'2018'!A40","v":12365},{"$f":"'2018'!B40","v":"صيانة21"}]
[{"$f":"INDEX($AI$2:$AI$550,MATCH(0,COUNTIF(A$1:$A185,$AI$2:$AI$550),0),0)","v":{"$error":"#N/A"}},{"$error":"#N/A"},null,null,null,null,null,null,null,null,null,null,null,null,null,null,null,null,null,null,null,null,null,null,null,null,null,null,null,null,null,null,null,null,{"$f":"'2018'!A41","v":12366},{"$f":"'2018'!B41","v":"صيانة22"}]
[{"$f":"INDEX($AI$2:$AI$550,MATCH(0,COUNTIF(A$1:$A186,$AI$2:$AI$550),0),0)","v":{"$error":"#N/A"}},{"$error":"#N/A"},null,null,null,null,null,null,null,null,null,null,null,null,null,null,null,null,null,null,null,null,null,null,null,null,null,null,null,null,null,null,null,null,{"$f":"'2018'!A42","v":12367},{"$f":"'2018'!B42","v":"صيانة23"}]
[{"$f":"INDEX($AI$2:$AI$550,MATCH(0,COUNTIF(A$1:$A187,$AI$2:$AI$550),0),0)","v":{"$error":"#N/A"}},{"$error":"#N/A"},null,null,null,null,null,null,null,null,null,null,null,null,null,null,null,null,null,null,null,null,null,null,null,null,null,null,null,null,null,null,null,null,{"$f":"'2018'!A43","v":12368},{"$f":"'2018'!B43","v":"صيانة24"}]
[{"$f":"INDEX($AI$2:$AI$550,MATCH(0,COUNTIF(A$1:$A188,$AI$2:$AI$550),0),0)","v":{"$error":"#N/A"}},{"$error":"#N/A"},null,null,null,null,null,null,null,null,null,null,null,null,null,null,null,null,null,null,null,null,null,null,null,null,null,null,null,null,null,null,null,null,{"$f":"'2018'!A44","v":12369},{"$f":"'2018'!B44","v":"صيانة25"}]
[{"$f":"INDEX($AI$2:$AI$550,MATCH(0,COUNTIF(A$1:$A189,$AI$2:$AI$550),0),0)","v":{"$error":"#N/A"}},{"$error":"#N/A"},null,null,null,null,null,null,null,null,null,null,null,null,null,null,null,null,null,null,null,null,null,null,null,null,null,null,null,null,null,null,null,null,{"$f":"'2018'!A45","v":12370},{"$f":"'2018'!B45","v":"صيانة26"}]
[{"$f":"INDEX($AI$2:$AI$550,MATCH(0,COUNTIF(A$1:$A190,$AI$2:$AI$550),0),0)","v":{"$error":"#N/A"}},{"$error":"#N/A"},null,null,null,null,null,null,null,null,null,null,null,null,null,null,null,null,null,null,null,null,null,null,null,null,null,null,null,null,null,null,null,null,{"$f":"'2018'!A46","v":12371},{"$f":"'2018'!B46","v":"صيانة27"}]
[{"$f":"INDEX($AI$2:$AI$550,MATCH(0,COUNTIF(A$1:$A191,$AI$2:$AI$550),0),0)","v":{"$error":"#N/A"}},{"$error":"#N/A"},null,null,null,null,null,null,null,null,null,null,null,null,null,null,null,null,null,null,null,null,null,null,null,null,null,null,null,null,null,null,null,null,{"$f":"'2018'!A47","v":12372},{"$f":"'2018'!B47","v":"صيانة28"}]
[{"$f":"INDEX($AI$2:$AI$550,MATCH(0,COUNTIF(A$1:$A192,$AI$2:$AI$550),0),0)","v":{"$error":"#N/A"}},{"$error":"#N/A"},null,null,null,null,null,null,null,null,null,null,null,null,null,null,null,null,null,null,null,null,null,null,null,null,null,null,null,null,null,null,null,null,{"$f":"'2018'!A48","v":12373},{"$f":"'2018'!B48","v":"صيانة29"}]
[{"$f":"INDEX($AI$2:$AI$550,MATCH(0,COUNTIF(A$1:$A193,$AI$2:$AI$550),0),0)","v":{"$error":"#N/A"}},{"$error":"#N/A"},null,null,null,null,null,null,null,null,null,null,null,null,null,null,null,null,null,null,null,null,null,null,null,null,null,null,null,null,null,null,null,null,{"$f":"'2018'!A49","v":12374},{"$f":"'2018'!B49","v":"صيانة30"}]
[{"$f":"INDEX($AI$2:$AI$550,MATCH(0,COUNTIF(A$1:$A194,$AI$2:$AI$550),0),0)","v":{"$error":"#N/A"}},{"$f":"IF(A195=\"\",\"\",VLOOKUP(A195,$AI$2:$AJ$550,2,0))","v":{"$error":"#N/A"}},null,null,null,null,null,null,null,null,null,null,null,null,null,null,null,null,null,null,null,null,null,null,null,null,null,null,null,null,null,null,null,null,{"$f":"'2018'!A50","v":12375},{"$f":"'2018'!B50","v":"صيانة31"}]
[{"$f":"INDEX($AI$2:$AI$550,MATCH(0,COUNTIF(A$1:$A195,$AI$2:$AI$550),0),0)","v":{"$error":"#N/A"}},{"$error":"#N/A"},null,null,null,null,null,null,null,null,null,null,null,null,null,null,null,null,null,null,null,null,null,null,null,null,null,null,null,null,null,null,null,null,{"$f":"'2018'!A51","v":12376},{"$f":"'2018'!B51","v":"صيانة32"}]
[{"$f":"INDEX($AI$2:$AI$550,MATCH(0,COUNTIF(A$1:$A196,$AI$2:$AI$550),0),0)","v":{"$error":"#N/A"}},{"$error":"#N/A"},null,null,null,null,null,null,null,null,null,null,null,null,null,null,null,null,null,null,null,null,null,null,null,null,null,null,null,null,null,null,null,null,{"$f":"'2018'!A52","v":12377},{"$f":"'2018'!B52","v":"صيانة33"}]
[{"$f":"INDEX($AI$2:$AI$550,MATCH(0,COUNTIF(A$1:$A197,$AI$2:$AI$550),0),0)","v":{"$error":"#N/A"}},{"$error":"#N/A"},null,null,null,null,null,null,null,null,null,null,null,null,null,null,null,null,null,null,null,null,null,null,null,null,null,null,null,null,null,null,null,null,{"$f":"'2018'!A53","v":12378},{"$f":"'2018'!B53","v":"صيانة34"}]
[{"$f":"INDEX($AI$2:$AI$550,MATCH(0,COUNTIF(A$1:$A198,$AI$2:$AI$550),0),0)","v":{"$error":"#N/A"}},{"$error":"#N/A"},null,null,null,null,null,null,null,null,null,null,null,null,null,null,null,null,null,null,null,null,null,null,null,null,null,null,null,null,null,null,null,null,{"$f":"'2018'!A54","v":12379},{"$f":"'2018'!B54","v":"صيانة35"}]
[{"$f":"INDEX($AI$2:$AI$550,MATCH(0,COUNTIF(A$1:$A199,$AI$2:$AI$550),0),0)","v":{"$error":"#N/A"}},{"$error":"#N/A"},null,null,null,null,null,null,null,null,null,null,null,null,null,null,null,null,null,null,null,null,null,null,null,null,null,null,null,null,null,null,null,null,{"$f":"'2018'!A55","v":12380},{"$f":"'2018'!B55","v":"صيانة36"}]
[{"$f":"INDEX($AI$2:$AI$550,MATCH(0,COUNTIF(A$1:$A200,$AI$2:$AI$550),0),0)","v":{"$error":"#N/A"}},{"$error":"#N/A"},null,null,null,null,null,null,null,null,null,null,null,null,null,null,null,null,null,null,null,null,null,null,null,null,null,null,null,null,null,null,null,null,{"$f":"'2018'!A56","v":12381},{"$f":"'2018'!B56","v":"صيانة37"}]
[{"$f":"INDEX($AI$2:$AI$550,MATCH(0,COUNTIF(A$1:$A201,$AI$2:$AI$550),0),0)","v":{"$error":"#N/A"}},{"$error":"#N/A"},null,null,null,null,null,null,null,null,null,null,null,null,null,null,null,null,null,null,null,null,null,null,null,null,null,null,null,null,null,null,null,null,{"$f":"'2018'!A57","v":12382},{"$f":"'2018'!B57","v":"صيانة38"}]
[{"$f":"INDEX($AI$2:$AI$550,MATCH(0,COUNTIF(A$1:$A202,$AI$2:$AI$550),0),0)","v":{"$error":"#N/A"}},{"$error":"#N/A"},null,null,null,null,null,null,null,null,null,null,null,null,null,null,null,null,null,null,null,null,null,null,null,null,null,null,null,null,null,null,null,null,{"$f":"'2018'!A58","v":12383},{"$f":"'2018'!B58","v":"صيانة39"}]
[{"$f":"INDEX($AI$2:$AI$550,MATCH(0,COUNTIF(A$1:$A203,$AI$2:$AI$550),0),0)","v":{"$error":"#N/A"}},{"$error":"#N/A"},null,null,null,null,null,null,null,null,null,null,null,null,null,null,null,null,null,null,null,null,null,null,null,null,null,null,null,null,null,null,null,null,{"$f":"'2018'!A59","v":12384},{"$f":"'2018'!B59","v":"صيانة40"}]
[{"$f":"INDEX($AI$2:$AI$550,MATCH(0,COUNTIF(A$1:$A204,$AI$2:$AI$550),0),0)","v":{"$error":"#N/A"}},{"$error":"#N/A"},null,null,null,null,null,null,null,null,null,null,null,null,null,null,null,null,null,null,null,null,null,null,null,null,null,null,null,null,null,null,null,null,{"$f":"'2018'!A60","v":12385},{"$f":"'2018'!B60","v":"صيانة41"}]
[{"$f":"INDEX($AI$2:$AI$550,MATCH(0,COUNTIF(A$1:$A205,$AI$2:$AI$550),0),0)","v":{"$error":"#N/A"}},{"$error":"#N/A"},null,null,null,null,null,null,null,null,null,null,null,null,null,null,null,null,null,null,null,null,null,null,null,null,null,null,null,null,null,null,null,null,{"$f":"'2018'!A61","v":12386},{"$f":"'2018'!B61","v":"صيانة42"}]
[{"$f":"INDEX($AI$2:$AI$550,MATCH(0,COUNTIF(A$1:$A206,$AI$2:$AI$550),0),0)","v":{"$error":"#N/A"}},{"$error":"#N/A"},null,null,null,null,null,null,null,null,null,null,null,null,null,null,null,null,null,null,null,null,null,null,null,null,null,null,null,null,null,null,null,null,{"$f":"'2018'!A62","v":12387},{"$f":"'2018'!B62","v":"صيانة43"}]
[{"$f":"INDEX($AI$2:$AI$550,MATCH(0,COUNTIF(A$1:$A207,$AI$2:$AI$550),0),0)","v":{"$error":"#N/A"}},{"$error":"#N/A"},null,null,null,null,null,null,null,null,null,null,null,null,null,null,null,null,null,null,null,null,null,null,null,null,null,null,null,null,null,null,null,null,{"$f":"'2018'!A63","v":12388},{"$f":"'2018'!B63","v":"صيانة44"}]
[{"$f":"INDEX($AI$2:$AI$550,MATCH(0,COUNTIF(A$1:$A208,$AI$2:$AI$550),0),0)","v":{"$error":"#N/A"}},{"$error":"#N/A"},null,null,null,null,null,null,null,null,null,null,null,null,null,null,null,null,null,null,null,null,null,null,null,null,null,null,null,null,null,null,null,null,{"$f":"'2018'!A64","v":12389},{"$f":"'2018'!B64","v":"صيانة45"}]
[{"$f":"INDEX($AI$2:$AI$550,MATCH(0,COUNTIF(A$1:$A209,$AI$2:$AI$550),0),0)","v":{"$error":"#N/A"}},{"$error":"#N/A"},null,null,null,null,null,null,null,null,null,null,null,null,null,null,null,null,null,null,null,null,null,null,null,null,null,null,null,null,null,null,null,null,{"$f":"'2018'!A65","v":12390},{"$f":"'2018'!B65","v":"صيانة46"}]
[{"$f":"INDEX($AI$2:$AI$550,MATCH(0,COUNTIF(A$1:$A210,$AI$2:$AI$550),0),0)","v":{"$error":"#N/A"}},{"$error":"#N/A"},null,null,null,null,null,null,null,null,null,null,null,null,null,null,null,null,null,null,null,null,null,null,null,null,null,null,null,null,null,null,null,null,{"$f":"'2018'!A66","v":12391},{"$f":"'2018'!B66","v":"صيانة47"}]
[{"$f":"INDEX($AI$2:$AI$550,MATCH(0,COUNTIF(A$1:$A211,$AI$2:$AI$550),0),0)","v":{"$error":"#N/A"}},{"$error":"#N/A"},null,null,null,null,null,null,null,null,null,null,null,null,null,null,null,null,null,null,null,null,null,null,null,null,null,null,null,null,null,null,null,null,{"$f":"'2018'!A67","v":12392},{"$f":"'2018'!B67","v":"صيانة48"}]
[{"$f":"INDEX($AI$2:$AI$550,MATCH(0,COUNTIF(A$1:$A212,$AI$2:$AI$550),0),0)","v":{"$error":"#N/A"}},{"$error":"#N/A"},null,null,null,null,null,null,null,null,null,null,null,null,null,null,null,null,null,null,null,null,null,null,null,null,null,null,null,null,null,null,null,null,{"$f":"'2018'!A68","v":12393},{"$f":"'2018'!B68","v":"صيانة49"}]
[{"$f":"INDEX($AI$2:$AI$550,MATCH(0,COUNTIF(A$1:$A213,$AI$2:$AI$550),0),0)","v":{"$error":"#N/A"}},{"$error":"#N/A"},null,null,null,null,null,null,null,null,null,null,null,null,null,null,null,null,null,null,null,null,null,null,null,null,null,null,null,null,null,null,null,null,{"$f":"'2018'!A69","v":12394},{"$f":"'2018'!B69","v":"صيانة50"}]
[{"$f":"INDEX($AI$2:$AI$550,MATCH(0,COUNTIF(A$1:$A214,$AI$2:$AI$550),0),0)","v":{"$error":"#N/A"}},{"$error":"#N/A"},null,null,null,null,null,null,null,null,null,null,null,null,null,null,null,null,null,null,null,null,null,null,null,null,null,null,null,null,null,null,null,null,{"$f":"'2018'!A70","v":12395},{"$f":"'2018'!B70","v":"صيانة51"}]
[{"$f":"INDEX($AI$2:$AI$550,MATCH(0,COUNTIF(A$1:$A215,$AI$2:$AI$550),0),0)","v":{"$error":"#N/A"}},{"$error":"#N/A"},null,null,null,null,null,null,null,null,null,null,null,null,null,null,null,null,null,null,null,null,null,null,null,null,null,null,null,null,null,null,null,null,{"$f":"'2018'!A71","v":12396},{"$f":"'2018'!B71","v":"صيانة52"}]
[{"$f":"INDEX($AI$2:$AI$550,MATCH(0,COUNTIF(A$1:$A216,$AI$2:$AI$550),0),0)","v":{"$error":"#N/A"}},{"$error":"#N/A"},null,null,null,null,null,null,null,null,null,null,null,null,null,null,null,null,null,null,null,null,null,null,null,null,null,null,null,null,null,null,null,null,{"$f":"'2018'!A72","v":12397},{"$f":"'2018'!B72","v":"صيانة53"}]
[{"$f":"INDEX($AI$2:$AI$550,MATCH(0,COUNTIF(A$1:$A217,$AI$2:$AI$550),0),0)","v":{"$error":"#N/A"}},{"$error":"#N/A"},null,null,null,null,null,null,null,null,null,null,null,null,null,null,null,null,null,null,null,null,null,null,null,null,null,null,null,null,null,null,null,null,{"$f":"'2018'!A73","v":12398},{"$f":"'2018'!B73","v":"صيانة54"}]
[{"$f":"INDEX($AI$2:$AI$550,MATCH(0,COUNTIF(A$1:$A218,$AI$2:$AI$550),0),0)","v":{"$error":"#N/A"}},{"$error":"#N/A"},null,null,null,null,null,null,null,null,null,null,null,null,null,null,null,null,null,null,null,null,null,null,null,null,null,null,null,null,null,null,null,null,{"$f":"'2018'!A74","v":12399},{"$f":"'2018'!B74","v":"صيانة55"}]
[{"$f":"INDEX($AI$2:$AI$550,MATCH(0,COUNTIF(A$1:$A219,$AI$2:$AI$550),0),0)","v":{"$error":"#N/A"}},{"$error":"#N/A"},null,null,null,null,null,null,null,null,null,null,null,null,null,null,null,null,null,null,null,null,null,null,null,null,null,null,null,null,null,null,null,null,{"$f":"'2018'!A75","v":12400},{"$f":"'2018'!B75","v":"صيانة56"}]
[{"$f":"INDEX($AI$2:$AI$550,MATCH(0,COUNTIF(A$1:$A220,$AI$2:$AI$550),0),0)","v":{"$error":"#N/A"}},{"$error":"#N/A"},null,null,null,null,null,null,null,null,null,null,null,null,null,null,null,null,null,null,null,null,null,null,null,null,null,null,null,null,null,null,null,null,{"$f":"'2018'!A76","v":12401},{"$f":"'2018'!B76","v":"صيانة57"}]
[{"$f":"INDEX($AI$2:$AI$550,MATCH(0,COUNTIF(A$1:$A221,$AI$2:$AI$550),0),0)","v":{"$error":"#N/A"}},{"$error":"#N/A"},null,null,null,null,null,null,null,null,null,null,null,null,null,null,null,null,null,null,null,null,null,null,null,null,null,null,null,null,null,null,null,null,{"$f":"'2018'!A77","v":12402},{"$f":"'2018'!B77","v":"صيانة58"}]
[{"$f":"INDEX($AI$2:$AI$550,MATCH(0,COUNTIF(A$1:$A222,$AI$2:$AI$550),0),0)","v":{"$error":"#N/A"}},{"$error":"#N/A"},null,null,null,null,null,null,null,null,null,null,null,null,null,null,null,null,null,null,null,null,null,null,null,null,null,null,null,null,null,null,null,null,{"$f":"'2018'!A78","v":12403},{"$f":"'2018'!B78","v":"صيانة59"}]
[{"$f":"INDEX($AI$2:$AI$550,MATCH(0,COUNTIF(A$1:$A223,$AI$2:$AI$550),0),0)","v":{"$error":"#N/A"}},{"$error":"#N/A"},null,null,null,null,null,null,null,null,null,null,null,null,null,null,null,null,null,null,null,null,null,null,null,null,null,null,null,null,null,null,null,null,{"$f":"'2018'!A79","v":12404},{"$f":"'2018'!B79","v":"صيانة60"}]
[{"$f":"INDEX($AI$2:$AI$550,MATCH(0,COUNTIF(A$1:$A224,$AI$2:$AI$550),0),0)","v":{"$error":"#N/A"}},{"$error":"#N/A"},null,null,null,null,null,null,null,null,null,null,null,null,null,null,null,null,null,null,null,null,null,null,null,null,null,null,null,null,null,null,null,null,{"$f":"'2018'!A80","v":12405},{"$f":"'2018'!B80","v":"صيانة61"}]
[{"$f":"INDEX($AI$2:$AI$550,MATCH(0,COUNTIF(A$1:$A225,$AI$2:$AI$550),0),0)","v":{"$error":"#N/A"}},{"$error":"#N/A"},null,null,null,null,null,null,null,null,null,null,null,null,null,null,null,null,null,null,null,null,null,null,null,null,null,null,null,null,null,null,null,null,{"$f":"'2018'!A81","v":12406},{"$f":"'2018'!B81","v":"صيانة62"}]
[{"$f":"INDEX($AI$2:$AI$550,MATCH(0,COUNTIF(A$1:$A226,$AI$2:$AI$550),0),0)","v":{"$error":"#N/A"}},{"$error":"#N/A"},null,null,null,null,null,null,null,null,null,null,null,null,null,null,null,null,null,null,null,null,null,null,null,null,null,null,null,null,null,null,null,null,{"$f":"'2018'!A82","v":12407},{"$f":"'2018'!B82","v":"صيانة63"}]
[{"$f":"INDEX($AI$2:$AI$550,MATCH(0,COUNTIF(A$1:$A227,$AI$2:$AI$550),0),0)","v":{"$error":"#N/A"}},{"$error":"#N/A"},null,null,null,null,null,null,null,null,null,null,null,null,null,null,null,null,null,null,null,null,null,null,null,null,null,null,null,null,null,null,null,null,{"$f":"'2018'!A83","v":12408},{"$f":"'2018'!B83","v":"صيانة64"}]
[{"$f":"INDEX($AI$2:$AI$550,MATCH(0,COUNTIF(A$1:$A228,$AI$2:$AI$550),0),0)","v":{"$error":"#N/A"}},{"$error":"#N/A"},null,null,null,null,null,null,null,null,null,null,null,null,null,null,null,null,null,null,null,null,null,null,null,null,null,null,null,null,null,null,null,null,{"$f":"'2018'!A84","v":12409},{"$f":"'2018'!B84","v":"صيانة65"}]
[{"$f":"INDEX($AI$2:$AI$550,MATCH(0,COUNTIF(A$1:$A229,$AI$2:$AI$550),0),0)","v":{"$error":"#N/A"}},{"$error":"#N/A"},null,null,null,null,null,null,null,null,null,null,null,null,null,null,null,null,null,null,null,null,null,null,null,null,null,null,null,null,null,null,null,null,{"$f":"'2018'!A85","v":12410},{"$f":"'2018'!B85","v":"صيانة66"}]
[{"$f":"INDEX($AI$2:$AI$550,MATCH(0,COUNTIF(A$1:$A230,$AI$2:$AI$550),0),0)","v":{"$error":"#N/A"}},{"$error":"#N/A"},null,null,null,null,null,null,null,null,null,null,null,null,null,null,null,null,null,null,null,null,null,null,null,null,null,null,null,null,null,null,null,null,{"$f":"'2018'!A86","v":12411},{"$f":"'2018'!B86","v":"صيانة67"}]
[{"$f":"INDEX($AI$2:$AI$550,MATCH(0,COUNTIF(A$1:$A231,$AI$2:$AI$550),0),0)","v":{"$error":"#N/A"}},{"$error":"#N/A"},null,null,null,null,null,null,null,null,null,null,null,null,null,null,null,null,null,null,null,null,null,null,null,null,null,null,null,null,null,null,null,null,{"$f":"'2018'!A87","v":12412},{"$f":"'2018'!B87","v":"صيانة68"}]
[{"$f":"INDEX($AI$2:$AI$550,MATCH(0,COUNTIF(A$1:$A232,$AI$2:$AI$550),0),0)","v":{"$error":"#N/A"}},{"$error":"#N/A"},null,null,null,null,null,null,null,null,null,null,null,null,null,null,null,null,null,null,null,null,null,null,null,null,null,null,null,null,null,null,null,null,{"$f":"'2018'!A88","v":12413},{"$f":"'2018'!B88","v":"صيانة69"}]
[{"$f":"INDEX($AI$2:$AI$550,MATCH(0,COUNTIF(A$1:$A233,$AI$2:$AI$550),0),0)","v":{"$error":"#N/A"}},{"$error":"#N/A"},null,null,null,null,null,null,null,null,null,null,null,null,null,null,null,null,null,null,null,null,null,null,null,null,null,null,null,null,null,null,null,null,{"$f":"'2018'!A89","v":12414},{"$f":"'2018'!B89","v":"صيانة70"}]
[{"$f":"INDEX($AI$2:$AI$550,MATCH(0,COUNTIF(A$1:$A234,$AI$2:$AI$550),0),0)","v":{"$error":"#N/A"}},{"$error":"#N/A"},null,null,null,null,null,null,null,null,null,null,null,null,null,null,null,null,null,null,null,null,null,null,null,null,null,null,null,null,null,null,null,null,{"$f":"'2018'!A90","v":12415},{"$f":"'2018'!B90","v":"صيانة71"}]
[{"$f":"INDEX($AI$2:$AI$550,MATCH(0,COUNTIF(A$1:$A235,$AI$2:$AI$550),0),0)","v":{"$error":"#N/A"}},{"$error":"#N/A"},null,null,null,null,null,null,null,null,null,null,null,null,null,null,null,null,null,null,null,null,null,null,null,null,null,null,null,null,null,null,null,null,{"$f":"'2018'!A91","v":12416},{"$f":"'2018'!B91","v":"صيانة72"}]
[{"$f":"INDEX($AI$2:$AI$550,MATCH(0,COUNTIF(A$1:$A236,$AI$2:$AI$550),0),0)","v":{"$error":"#N/A"}},{"$error":"#N/A"},null,null,null,null,null,null,null,null,null,null,null,null,null,null,null,null,null,null,null,null,null,null,null,null,null,null,null,null,null,null,null,null,{"$f":"'2018'!A92","v":12417},{"$f":"'2018'!B92","v":"صيانة73"}]
[{"$f":"INDEX($AI$2:$AI$550,MATCH(0,COUNTIF(A$1:$A237,$AI$2:$AI$550),0),0)","v":{"$error":"#N/A"}},{"$error":"#N/A"},null,null,null,null,null,null,null,null,null,null,null,null,null,null,null,null,null,null,null,null,null,null,null,null,null,null,null,null,null,null,null,null,{"$f":"'2018'!A93","v":12418},{"$f":"'2018'!B93","v":"صيانة74"}]
[{"$f":"INDEX($AI$2:$AI$550,MATCH(0,COUNTIF(A$1:$A238,$AI$2:$AI$550),0),0)","v":{"$error":"#N/A"}},{"$error":"#N/A"},null,null,null,null,null,null,null,null,null,null,null,null,null,null,null,null,null,null,null,null,null,null,null,null,null,null,null,null,null,null,null,null,{"$f":"'2018'!A94","v":12419},{"$f":"'2018'!B94","v":"صيانة75"}]
[{"$f":"INDEX($AI$2:$AI$550,MATCH(0,COUNTIF(A$1:$A239,$AI$2:$AI$550),0),0)","v":{"$error":"#N/A"}},{"$error":"#N/A"},null,null,null,null,null,null,null,null,null,null,null,null,null,null,null,null,null,null,null,null,null,null,null,null,null,null,null,null,null,null,null,null,{"$f":"'2018'!A95","v":12420},{"$f":"'2018'!B95","v":"صيانة76"}]
[{"$f":"INDEX($AI$2:$AI$550,MATCH(0,COUNTIF(A$1:$A240,$AI$2:$AI$550),0),0)","v":{"$error":"#N/A"}},{"$error":"#N/A"},null,null,null,null,null,null,null,null,null,null,null,null,null,null,null,null,null,null,null,null,null,null,null,null,null,null,null,null,null,null,null,null,{"$f":"'2018'!A96","v":12421},{"$f":"'2018'!B96","v":"صيانة77"}]
[{"$f":"INDEX($AI$2:$AI$550,MATCH(0,COUNTIF(A$1:$A241,$AI$2:$AI$550),0),0)","v":{"$error":"#N/A"}},{"$error":"#N/A"},null,null,null,null,null,null,null,null,null,null,null,null,null,null,null,null,null,null,null,null,null,null,null,null,null,null,null,null,null,null,null,null,{"$f":"'2018'!A97","v":12422},{"$f":"'2018'!B97","v":"صيانة78"}]
[{"$f":"INDEX($AI$2:$AI$550,MATCH(0,COUNTIF(A$1:$A242,$AI$2:$AI$550),0),0)","v":{"$error":"#N/A"}},{"$error":"#N/A"},null,null,null,null,null,null,null,null,null,null,null,null,null,null,null,null,null,null,null,null,null,null,null,null,null,null,null,null,null,null,null,null,{"$f":"'2018'!A98","v":12423},{"$f":"'2018'!B98","v":"صيانة79"}]
[{"$f":"INDEX($AI$2:$AI$550,MATCH(0,COUNTIF(A$1:$A243,$AI$2:$AI$550),0),0)","v":{"$error":"#N/A"}},{"$error":"#N/A"},null,null,null,null,null,null,null,null,null,null,null,null,null,null,null,null,null,null,null,null,null,null,null,null,null,null,null,null,null,null,null,null,{"$f":"'2018'!A99","v":12427},{"$f":"'2018'!B99","v":"صيانة83"}]
[{"$f":"INDEX($AI$2:$AI$550,MATCH(0,COUNTIF(A$1:$A244,$AI$2:$AI$550),0),0)","v":{"$error":"#N/A"}},{"$error":"#N/A"},null,null,null,null,null,null,null,null,null,null,null,null,null,null,null,null,null,null,null,null,null,null,null,null,null,null,null,null,null,null,null,null,{"$f":"'2018'!A100","v":111112428},{"$f":"'2018'!B100","v":"صيانة84111111111"}]
[{"$f":"INDEX($AI$2:$AI$550,MATCH(0,COUNTIF(A$1:$A245,$AI$2:$AI$550),0),0)","v":{"$error":"#N/A"}},{"$error":"#N/A"},null,null,null,null,null,null,null,null,null,null,null,null,null,null,null,null,null,null,null,null,null,null,null,null,null,null,null,null,null,null,null,null,{"$f":"'2018'!A101","v":0},{"$f":"'2018'!B101","v":0}]
[{"$f":"INDEX($AI$2:$AI$550,MATCH(0,COUNTIF(A$1:$A246,$AI$2:$AI$550),0),0)","v":{"$error":"#N/A"}},{"$error":"#N/A"},null,null,null,null,null,null,null,null,null,null,null,null,null,null,null,null,null,null,null,null,null,null,null,null,null,null,null,null,null,null,null,null,{"$f":"'2018'!A102","v":0},{"$f":"'2018'!B102","v":0}]
[{"$f":"INDEX($AI$2:$AI$550,MATCH(0,COUNTIF(A$1:$A247,$AI$2:$AI$550),0),0)","v":{"$error":"#N/A"}},{"$error":"#N/A"},null,null,null,null,null,null,null,null,null,null,null,null,null,null,null,null,null,null,null,null,null,null,null,null,null,null,null,null,null,null,null,null,{"$f":"'2018'!A103","v":0},{"$f":"'2018'!B103","v":0}]
[{"$f":"INDEX($AI$2:$AI$550,MATCH(0,COUNTIF(A$1:$A248,$AI$2:$AI$550),0),0)","v":{"$error":"#N/A"}},{"$error":"#N/A"},null,null,null,null,null,null,null,null,null,null,null,null,null,null,null,null,null,null,null,null,null,null,null,null,null,null,null,null,null,null,null,null,{"$f":"'2018'!A104","v":0},{"$f":"'2018'!B104","v":0}]
[{"$f":"INDEX($AI$2:$AI$550,MATCH(0,COUNTIF(A$1:$A249,$AI$2:$AI$550),0),0)","v":{"$error":"#N/A"}},{"$error":"#N/A"},null,null,null,null,null,null,null,null,null,null,null,null,null,null,null,null,null,null,null,null,null,null,null,null,null,null,null,null,null,null,null,null,{"$f":"'2018'!A105","v":0},{"$f":"'2018'!B105","v":0}]
[{"$f":"INDEX($AI$2:$AI$550,MATCH(0,COUNTIF(A$1:$A250,$AI$2:$AI$550),0),0)","v":{"$error":"#N/A"}},{"$error":"#N/A"},null,null,null,null,null,null,null,null,null,null,null,null,null,null,null,null,null,null,null,null,null,null,null,null,null,null,null,null,null,null,null,null,{"$f":"'2018'!A106","v":0},{"$f":"'2018'!B106","v":0}]
[{"$f":"INDEX($AI$2:$AI$550,MATCH(0,COUNTIF(A$1:$A251,$AI$2:$AI$550),0),0)","v":{"$error":"#N/A"}},{"$error":"#N/A"},null,null,null,null,null,null,null,null,null,null,null,null,null,null,null,null,null,null,null,null,null,null,null,null,null,null,null,null,null,null,null,null,{"$f":"'2018'!A107","v":0},{"$f":"'2018'!B107","v":0}]
[{"$f":"INDEX($AI$2:$AI$550,MATCH(0,COUNTIF(A$1:$A252,$AI$2:$AI$550),0),0)","v":{"$error":"#N/A"}},{"$error":"#N/A"},null,null,null,null,null,null,null,null,null,null,null,null,null,null,null,null,null,null,null,null,null,null,null,null,null,null,null,null,null,null,null,null,{"$f":"'2018'!A108","v":0},{"$f":"'2018'!B108","v":0}]
[{"$f":"INDEX($AI$2:$AI$550,MATCH(0,COUNTIF(A$1:$A253,$AI$2:$AI$550),0),0)","v":{"$error":"#N/A"}},{"$error":"#N/A"},null,null,null,null,null,null,null,null,null,null,null,null,null,null,null,null,null,null,null,null,null,null,null,null,null,null,null,null,null,null,null,null,{"$f":"'2018'!A109","v":0},{"$f":"'2018'!B109","v":0}]
[{"$f":"INDEX($AI$2:$AI$550,MATCH(0,COUNTIF(A$1:$A254,$AI$2:$AI$550),0),0)","v":{"$error":"#N/A"}},{"$error":"#N/A"},null,null,null,null,null,null,null,null,null,null,null,null,null,null,null,null,null,null,null,null,null,null,null,null,null,null,null,null,null,null,null,null,{"$f":"'2018'!A110","v":0},{"$f":"'2018'!B110","v":0}]
[{"$f":"INDEX($AI$2:$AI$550,MATCH(0,COUNTIF(A$1:$A255,$AI$2:$AI$550),0),0)","v":{"$error":"#N/A"}},{"$error":"#N/A"},null,null,null,null,null,null,null,null,null,null,null,null,null,null,null,null,null,null,null,null,null,null,null,null,null,null,null,null,null,null,null,null,{"$f":"'2018'!A111","v":0},{"$f":"'2018'!B111","v":0}]
[{"$f":"INDEX($AI$2:$AI$550,MATCH(0,COUNTIF(A$1:$A256,$AI$2:$AI$550),0),0)","v":{"$error":"#N/A"}},{"$error":"#N/A"},null,null,null,null,null,null,null,null,null,null,null,null,null,null,null,null,null,null,null,null,null,null,null,null,null,null,null,null,null,null,null,null,{"$f":"'2018'!A112","v":0},{"$f":"'2018'!B112","v":0}]
[{"$f":"INDEX($AI$2:$AI$550,MATCH(0,COUNTIF(A$1:$A257,$AI$2:$AI$550),0),0)","v":{"$error":"#N/A"}},{"$error":"#N/A"},null,null,null,null,null,null,null,null,null,null,null,null,null,null,null,null,null,null,null,null,null,null,null,null,null,null,null,null,null,null,null,null,{"$f":"'2018'!A113","v":0},{"$f":"'2018'!B113","v":0}]
[{"$f":"INDEX($AI$2:$AI$550,MATCH(0,COUNTIF(A$1:$A258,$AI$2:$AI$550),0),0)","v":{"$error":"#N/A"}},{"$f":"IF(A259=\"\",\"\",VLOOKUP(A259,$AI$2:$AJ$550,2,0))","v":{"$error":"#N/A"}},null,null,null,null,null,null,null,null,null,null,null,null,null,null,null,null,null,null,null,null,null,null,null,null,null,null,null,null,null,null,null,null,{"$f":"'2018'!A114","v":0},{"$f":"'2018'!B114","v":0}]
[{"$f":"INDEX($AI$2:$AI$550,MATCH(0,COUNTIF(A$1:$A259,$AI$2:$AI$550),0),0)","v":{"$error":"#N/A"}},{"$error":"#N/A"},null,null,null,null,null,null,null,null,null,null,null,null,null,null,null,null,null,null,null,null,null,null,null,null,null,null,null,null,null,null,null,null,{"$f":"'2018'!A115","v":0},{"$f":"'2018'!B115","v":0}]
[{"$f":"INDEX($AI$2:$AI$550,MATCH(0,COUNTIF(A$1:$A260,$AI$2:$AI$550),0),0)","v":{"$error":"#N/A"}},{"$error":"#N/A"},null,null,null,null,null,null,null,null,null,null,null,null,null,null,null,null,null,null,null,null,null,null,null,null,null,null,null,null,null,null,null,null,{"$f":"'2018'!A116","v":0},{"$f":"'2018'!B116","v":0}]
[{"$f":"INDEX($AI$2:$AI$550,MATCH(0,COUNTIF(A$1:$A261,$AI$2:$AI$550),0),0)","v":{"$error":"#N/A"}},{"$error":"#N/A"},null,null,null,null,null,null,null,null,null,null,null,null,null,null,null,null,null,null,null,null,null,null,null,null,null,null,null,null,null,null,null,null,{"$f":"'2018'!A117","v":0},{"$f":"'2018'!B117","v":0}]
[{"$f":"INDEX($AI$2:$AI$550,MATCH(0,COUNTIF(A$1:$A262,$AI$2:$AI$550),0),0)","v":{"$error":"#N/A"}},{"$error":"#N/A"},null,null,null,null,null,null,null,null,null,null,null,null,null,null,null,null,null,null,null,null,null,null,null,null,null,null,null,null,null,null,null,null,{"$f":"'2018'!A118","v":0},{"$f":"'2018'!B118","v":0}]
[{"$f":"INDEX($AI$2:$AI$550,MATCH(0,COUNTIF(A$1:$A263,$AI$2:$AI$550),0),0)","v":{"$error":"#N/A"}},{"$error":"#N/A"},null,null,null,null,null,null,null,null,null,null,null,null,null,null,null,null,null,null,null,null,null,null,null,null,null,null,null,null,null,null,null,null,{"$f":"'2018'!A119","v":0},{"$f":"'2018'!B119","v":0}]
[{"$f":"INDEX($AI$2:$AI$550,MATCH(0,COUNTIF(A$1:$A264,$AI$2:$AI$550),0),0)","v":{"$error":"#N/A"}},{"$error":"#N/A"},null,null,null,null,null,null,null,null,null,null,null,null,null,null,null,null,null,null,null,null,null,null,null,null,null,null,null,null,null,null,null,null,{"$f":"'2018'!A120","v":0},{"$f":"'2018'!B120","v":0}]
[{"$f":"INDEX($AI$2:$AI$550,MATCH(0,COUNTIF(A$1:$A265,$AI$2:$AI$550),0),0)","v":{"$error":"#N/A"}},{"$error":"#N/A"},null,null,null,null,null,null,null,null,null,null,null,null,null,null,null,null,null,null,null,null,null,null,null,null,null,null,null,null,null,null,null,null,{"$f":"'2018'!A121","v":0},{"$f":"'2018'!B121","v":0}]
[{"$f":"INDEX($AI$2:$AI$550,MATCH(0,COUNTIF(A$1:$A266,$AI$2:$AI$550),0),0)","v":{"$error":"#N/A"}},{"$error":"#N/A"},null,null,null,null,null,null,null,null,null,null,null,null,null,null,null,null,null,null,null,null,null,null,null,null,null,null,null,null,null,null,null,null,{"$f":"'2018'!A122","v":0},{"$f":"'2018'!B122","v":0}]
[{"$f":"INDEX($AI$2:$AI$550,MATCH(0,COUNTIF(A$1:$A267,$AI$2:$AI$550),0),0)","v":{"$error":"#N/A"}},{"$error":"#N/A"},null,null,null,null,null,null,null,null,null,null,null,null,null,null,null,null,null,null,null,null,null,null,null,null,null,null,null,null,null,null,null,null,{"$f":"'2018'!A123","v":0},{"$f":"'2018'!B123","v":0}]
[{"$f":"INDEX($AI$2:$AI$550,MATCH(0,COUNTIF(A$1:$A268,$AI$2:$AI$550),0),0)","v":{"$error":"#N/A"}},{"$error":"#N/A"},null,null,null,null,null,null,null,null,null,null,null,null,null,null,null,null,null,null,null,null,null,null,null,null,null,null,null,null,null,null,null,null,{"$f":"'2018'!A124","v":0},{"$f":"'2018'!B124","v":0}]
[{"$f":"INDEX($AI$2:$AI$550,MATCH(0,COUNTIF(A$1:$A269,$AI$2:$AI$550),0),0)","v":{"$error":"#N/A"}},{"$error":"#N/A"},null,null,null,null,null,null,null,null,null,null,null,null,null,null,null,null,null,null,null,null,null,null,null,null,null,null,null,null,null,null,null,null,{"$f":"'2018'!A125","v":0},{"$f":"'2018'!B125","v":0}]
[{"$f":"INDEX($AI$2:$AI$550,MATCH(0,COUNTIF(A$1:$A270,$AI$2:$AI$550),0),0)","v":{"$error":"#N/A"}},{"$error":"#N/A"},null,null,null,null,null,null,null,null,null,null,null,null,null,null,null,null,null,null,null,null,null,null,null,null,null,null,null,null,null,null,null,null,{"$f":"'2018'!A126","v":0},{"$f":"'2018'!B126","v":0}]
[{"$f":"INDEX($AI$2:$AI$550,MATCH(0,COUNTIF(A$1:$A271,$AI$2:$AI$550),0),0)","v":{"$error":"#N/A"}},{"$error":"#N/A"},null,null,null,null,null,null,null,null,null,null,null,null,null,null,null,null,null,null,null,null,null,null,null,null,null,null,null,null,null,null,null,null,{"$f":"'2018'!A127","v":0},{"$f":"'2018'!B127","v":0}]
[{"$f":"INDEX($AI$2:$AI$550,MATCH(0,COUNTIF(A$1:$A272,$AI$2:$AI$550),0),0)","v":{"$error":"#N/A"}},{"$error":"#N/A"},null,null,null,null,null,null,null,null,null,null,null,null,null,null,null,null,null,null,null,null,null,null,null,null,null,null,null,null,null,null,null,null,{"$f":"'2018'!A128","v":0},{"$f":"'2018'!B128","v":0}]
[{"$f":"INDEX($AI$2:$AI$550,MATCH(0,COUNTIF(A$1:$A273,$AI$2:$AI$550),0),0)","v":{"$error":"#N/A"}},{"$error":"#N/A"},null,null,null,null,null,null,null,null,null,null,null,null,null,null,null,null,null,null,null,null,null,null,null,null,null,null,null,null,null,null,null,null,{"$f":"'2018'!A129","v":0},{"$f":"'2018'!B129","v":0}]
[{"$f":"INDEX($AI$2:$AI$550,MATCH(0,COUNTIF(A$1:$A274,$AI$2:$AI$550),0),0)","v":{"$error":"#N/A"}},{"$error":"#N/A"},null,null,null,null,null,null,null,null,null,null,null,null,null,null,null,null,null,null,null,null,null,null,null,null,null,null,null,null,null,null,null,null,{"$f":"'2018'!A130","v":0},{"$f":"'2018'!B130","v":0}]
[{"$f":"INDEX($AI$2:$AI$550,MATCH(0,COUNTIF(A$1:$A275,$AI$2:$AI$550),0),0)","v":{"$error":"#N/A"}},{"$error":"#N/A"},null,null,null,null,null,null,null,null,null,null,null,null,null,null,null,null,null,null,null,null,null,null,null,null,null,null,null,null,null,null,null,null,{"$f":"'2018'!A131","v":0},{"$f":"'2018'!B131","v":0}]
[{"$f":"INDEX($AI$2:$AI$550,MATCH(0,COUNTIF(A$1:$A276,$AI$2:$AI$550),0),0)","v":{"$error":"#N/A"}},{"$error":"#N/A"},null,null,null,null,null,null,null,null,null,null,null,null,null,null,null,null,null,null,null,null,null,null,null,null,null,null,null,null,null,null,null,null,{"$f":"'2018'!A132","v":0},{"$f":"'2018'!B132","v":0}]
[{"$f":"INDEX($AI$2:$AI$550,MATCH(0,COUNTIF(A$1:$A277,$AI$2:$AI$550),0),0)","v":{"$error":"#N/A"}},{"$error":"#N/A"},null,null,null,null,null,null,null,null,null,null,null,null,null,null,null,null,null,null,null,null,null,null,null,null,null,null,null,null,null,null,null,null,{"$f":"'2018'!A133","v":0},{"$f":"'2018'!B133","v":0}]
[{"$f":"INDEX($AI$2:$AI$550,MATCH(0,COUNTIF(A$1:$A278,$AI$2:$AI$550),0),0)","v":{"$error":"#N/A"}},{"$error":"#N/A"},null,null,null,null,null,null,null,null,null,null,null,null,null,null,null,null,null,null,null,null,null,null,null,null,null,null,null,null,null,null,null,null,{"$f":"'2018'!A134","v":0},{"$f":"'2018'!B134","v":0}]
[{"$f":"INDEX($AI$2:$AI$550,MATCH(0,COUNTIF(A$1:$A279,$AI$2:$AI$550),0),0)","v":{"$error":"#N/A"}},{"$error":"#N/A"},null,null,null,null,null,null,null,null,null,null,null,null,null,null,null,null,null,null,null,null,null,null,null,null,null,null,null,null,null,null,null,null,{"$f":"'2018'!A135","v":0},{"$f":"'2018'!B135","v":0}]
[{"$f":"INDEX($AI$2:$AI$550,MATCH(0,COUNTIF(A$1:$A280,$AI$2:$AI$550),0),0)","v":{"$error":"#N/A"}},{"$error":"#N/A"},null,null,null,null,null,null,null,null,null,null,null,null,null,null,null,null,null,null,null,null,null,null,null,null,null,null,null,null,null,null,null,null,{"$f":"'2018'!A136","v":0},{"$f":"'2018'!B136","v":0}]
[{"$f":"INDEX($AI$2:$AI$550,MATCH(0,COUNTIF(A$1:$A281,$AI$2:$AI$550),0),0)","v":{"$error":"#N/A"}},{"$error":"#N/A"},null,null,null,null,null,null,null,null,null,null,null,null,null,null,null,null,null,null,null,null,null,null,null,null,null,null,null,null,null,null,null,null,{"$f":"'2018'!A137","v":0},{"$f":"'2018'!B137","v":0}]
[{"$f":"INDEX($AI$2:$AI$550,MATCH(0,COUNTIF(A$1:$A282,$AI$2:$AI$550),0),0)","v":{"$error":"#N/A"}},{"$error":"#N/A"},null,null,null,null,null,null,null,null,null,null,null,null,null,null,null,null,null,null,null,null,null,null,null,null,null,null,null,null,null,null,null,null,{"$f":"'2018'!A138","v":0},{"$f":"'2018'!B138","v":0}]
[{"$f":"INDEX($AI$2:$AI$550,MATCH(0,COUNTIF(A$1:$A283,$AI$2:$AI$550),0),0)","v":{"$error":"#N/A"}},{"$error":"#N/A"},null,null,null,null,null,null,null,null,null,null,null,null,null,null,null,null,null,null,null,null,null,null,null,null,null,null,null,null,null,null,null,null,{"$f":"'2018'!A139","v":0},{"$f":"'2018'!B139","v":0}]
[{"$f":"INDEX($AI$2:$AI$550,MATCH(0,COUNTIF(A$1:$A284,$AI$2:$AI$550),0),0)","v":{"$error":"#N/A"}},{"$error":"#N/A"},null,null,null,null,null,null,null,null,null,null,null,null,null,null,null,null,null,null,null,null,null,null,null,null,null,null,null,null,null,null,null,null,{"$f":"'2018'!A140","v":0},{"$f":"'2018'!B140","v":0}]
[{"$f":"INDEX($AI$2:$AI$550,MATCH(0,COUNTIF(A$1:$A285,$AI$2:$AI$550),0),0)","v":{"$error":"#N/A"}},{"$error":"#N/A"},null,null,null,null,null,null,null,null,null,null,null,null,null,null,null,null,null,null,null,null,null,null,null,null,null,null,null,null,null,null,null,null,{"$f":"'2018'!A141","v":0},{"$f":"'2018'!B141","v":0}]
[{"$f":"INDEX($AI$2:$AI$550,MATCH(0,COUNTIF(A$1:$A286,$AI$2:$AI$550),0),0)","v":{"$error":"#N/A"}},{"$error":"#N/A"},null,null,null,null,null,null,null,null,null,null,null,null,null,null,null,null,null,null,null,null,null,null,null,null,null,null,null,null,null,null,null,null,{"$f":"'2018'!A142","v":0},{"$f":"'2018'!B142","v":0}]
[{"$f":"INDEX($AI$2:$AI$550,MATCH(0,COUNTIF(A$1:$A287,$AI$2:$AI$550),0),0)","v":{"$error":"#N/A"}},{"$error":"#N/A"},null,null,null,null,null,null,null,null,null,null,null,null,null,null,null,null,null,null,null,null,null,null,null,null,null,null,null,null,null,null,null,null,{"$f":"'2018'!A143","v":0},{"$f":"'2018'!B143","v":0}]
[{"$f":"INDEX($AI$2:$AI$550,MATCH(0,COUNTIF(A$1:$A288,$AI$2:$AI$550),0),0)","v":{"$error":"#N/A"}},{"$error":"#N/A"},null,null,null,null,null,null,null,null,null,null,null,null,null,null,null,null,null,null,null,null,null,null,null,null,null,null,null,null,null,null,null,null,{"$f":"'2018'!A144","v":0},{"$f":"'2018'!B144","v":0}]
[{"$f":"INDEX($AI$2:$AI$550,MATCH(0,COUNTIF(A$1:$A289,$AI$2:$AI$550),0),0)","v":{"$error":"#N/A"}},{"$error":"#N/A"},null,null,null,null,null,null,null,null,null,null,null,null,null,null,null,null,null,null,null,null,null,null,null,null,null,null,null,null,null,null,null,null,{"$f":"'2018'!A145","v":0},{"$f":"'2018'!B145","v":0}]
[{"$f":"INDEX($AI$2:$AI$550,MATCH(0,COUNTIF(A$1:$A290,$AI$2:$AI$550),0),0)","v":{"$error":"#N/A"}},{"$error":"#N/A"},null,null,null,null,null,null,null,null,null,null,null,null,null,null,null,null,null,null,null,null,null,null,null,null,null,null,null,null,null,null,null,null,{"$f":"'2018'!A146","v":0},{"$f":"'2018'!B146","v":0}]
[{"$f":"INDEX($AI$2:$AI$550,MATCH(0,COUNTIF(A$1:$A291,$AI$2:$AI$550),0),0)","v":{"$error":"#N/A"}},{"$error":"#N/A"},null,null,null,null,null,null,null,null,null,null,null,null,null,null,null,null,null,null,null,null,null,null,null,null,null,null,null,null,null,null,null,null,{"$f":"'2018'!A147","v":0},{"$f":"'2018'!B147","v":0}]
[{"$f":"INDEX($AI$2:$AI$550,MATCH(0,COUNTIF(A$1:$A292,$AI$2:$AI$550),0),0)","v":{"$error":"#N/A"}},{"$error":"#N/A"},null,null,null,null,null,null,null,null,null,null,null,null,null,null,null,null,null,null,null,null,null,null,null,null,null,null,null,null,null,null,null,null,{"$f":"'2018'!A148","v":0},{"$f":"'2018'!B148","v":0}]
[{"$f":"INDEX($AI$2:$AI$550,MATCH(0,COUNTIF(A$1:$A293,$AI$2:$AI$550),0),0)","v":{"$error":"#N/A"}},{"$error":"#N/A"},null,null,null,null,null,null,null,null,null,null,null,null,null,null,null,null,null,null,null,null,null,null,null,null,null,null,null,null,null,null,null,null,{"$f":"'2018'!A149","v":0},{"$f":"'2018'!B149","v":0}]
[{"$f":"INDEX($AI$2:$AI$550,MATCH(0,COUNTIF(A$1:$A294,$AI$2:$AI$550),0),0)","v":{"$error":"#N/A"}},{"$error":"#N/A"},null,null,null,null,null,null,null,null,null,null,null,null,null,null,null,null,null,null,null,null,null,null,null,null,null,null,null,null,null,null,null,null,{"$f":"'2018'!A150","v":0},{"$f":"'2018'!B150","v":0}]
[{"$f":"INDEX($AI$2:$AI$550,MATCH(0,COUNTIF(A$1:$A295,$AI$2:$AI$550),0),0)","v":{"$error":"#N/A"}},{"$error":"#N/A"},null,null,null,null,null,null,null,null,null,null,null,null,null,null,null,null,null,null,null,null,null,null,null,null,null,null,null,null,null,null,null,null,{"$f":"'2018'!A151","v":0},{"$f":"'2018'!B151","v":0}]
[{"$f":"INDEX($AI$2:$AI$550,MATCH(0,COUNTIF(A$1:$A296,$AI$2:$AI$550),0),0)","v":{"$error":"#N/A"}},{"$error":"#N/A"},null,null,null,null,null,null,null,null,null,null,null,null,null,null,null,null,null,null,null,null,null,null,null,null,null,null,null,null,null,null,null,null,{"$f":"'2018'!A152","v":0},{"$f":"'2018'!B152","v":0}]
[{"$f":"INDEX($AI$2:$AI$550,MATCH(0,COUNTIF(A$1:$A297,$AI$2:$AI$550),0),0)","v":{"$error":"#N/A"}},{"$error":"#N/A"},null,null,null,null,null,null,null,null,null,null,null,null,null,null,null,null,null,null,null,null,null,null,null,null,null,null,null,null,null,null,null,null,{"$f":"'2018'!A153","v":0},{"$f":"'2018'!B153","v":0}]
[{"$f":"INDEX($AI$2:$AI$550,MATCH(0,COUNTIF(A$1:$A298,$AI$2:$AI$550),0),0)","v":{"$error":"#N/A"}},{"$error":"#N/A"},null,null,null,null,null,null,null,null,null,null,null,null,null,null,null,null,null,null,null,null,null,null,null,null,null,null,null,null,null,null,null,null,{"$f":"'2019'!A2","v":1113},{"$f":"'2019'!B2","v":"شراء أوراق"}]
[{"$f":"INDEX($AI$2:$AI$550,MATCH(0,COUNTIF(A$1:$A299,$AI$2:$AI$550),0),0)","v":{"$error":"#N/A"}},{"$error":"#N/A"},null,null,null,null,null,null,null,null,null,null,null,null,null,null,null,null,null,null,null,null,null,null,null,null,null,null,null,null,null,null,null,null,{"$f":"'2019'!A3","v":1115},{"$f":"'2019'!B3","v":"أدوات مطبخ"}]
[{"$f":"INDEX($AI$2:$AI$550,MATCH(0,COUNTIF(A$1:$A300,$AI$2:$AI$550),0),0)","v":{"$error":"#N/A"}},{"$error":"#N/A"},null,null,null,null,null,null,null,null,null,null,null,null,null,null,null,null,null,null,null,null,null,null,null,null,null,null,null,null,null,null,null,null,{"$f":"'2019'!A4","v":1213},{"$f":"'2019'!B4","v":"أحبار"}]
[{"$f":"INDEX($AI$2:$AI$550,MATCH(0,COUNTIF(A$1:$A301,$AI$2:$AI$550),0),0)","v":{"$error":"#N/A"}},{"$error":"#N/A"},null,null,null,null,null,null,null,null,null,null,null,null,null,null,null,null,null,null,null,null,null,null,null,null,null,null,null,null,null,null,null,null,{"$f":"'2019'!A5","v":1215},{"$f":"'2019'!B5","v":"ملابس"}]
[{"$f":"INDEX($AI$2:$AI$550,MATCH(0,COUNTIF(A$1:$A302,$AI$2:$AI$550),0),0)","v":{"$error":"#N/A"}},{"$error":"#N/A"},null,null,null,null,null,null,null,null,null,null,null,null,null,null,null,null,null,null,null,null,null,null,null,null,null,null,null,null,null,null,null,null,{"$f":"'2019'!A6","v":1216},{"$f":"'2019'!B6","v":"طابعات"}]
[{"$f":"INDEX($AI$2:$AI$550,MATCH(0,COUNTIF(A$1:$A303,$AI$2:$AI$550),0),0)","v":{"$error":"#N/A"}},{"$error":"#N/A"},null,null,null,null,null,null,null,null,null,null,null,null,null,null,null,null,null,null,null,null,null,null,null,null,null,null,null,null,null,null,null,null,{"$f":"'2019'!A7","v":1217},{"$f":"'2019'!B7","v":"ملاعق"}]
[{"$f":"INDEX($AI$2:$AI$550,MATCH(0,COUNTIF(A$1:$A304,$AI$2:$AI$550),0),0)","v":{"$error":"#N/A"}},{"$error":"#N/A"},null,null,null,null,null,null,null,null,null,null,null,null,null,null,null,null,null,null,null,null,null,null,null,null,null,null,null,null,null,null,null,null,{"$f":"'2019'!A8","v":1218},{"$f":"'2019'!B8","v":"صحون"}]
[{"$f":"INDEX($AI$2:$AI$550,MATCH(0,COUNTIF(A$1:$A305,$AI$2:$AI$550),0),0)","v":{"$error":"#N/A"}},{"$error":"#N/A"},null,null,null,null,null,null,null,null,null,null,null,null,null,null,null,null,null,null,null,null,null,null,null,null,null,null,null,null,null,null,null,null,{"$f":"'2019'!A9","v":1219},{"$f":"'2019'!B9","v":"سكاكين"}]
[{"$f":"INDEX($AI$2:$AI$550,MATCH(0,COUNTIF(A$1:$A306,$AI$2:$AI$550),0),0)","v":{"$error":"#N/A"}},{"$error":"#N/A"},null,null,null,null,null,null,null,null,null,null,null,null,null,null,null,null,null,null,null,null,null,null,null,null,null,null,null,null,null,null,null,null,{"$f":"'2019'!A10","v":1220},{"$f":"'2019'!B10","v":"مقص"}]
[{"$f":"INDEX($AI$2:$AI$550,MATCH(0,COUNTIF(A$1:$A307,$AI$2:$AI$550),0),0)","v":{"$error":"#N/A"}},{"$error":"#N/A"},null,null,null,null,null,null,null,null,null,null,null,null,null,null,null,null,null,null,null,null,null,null,null,null,null,null,null,null,null,null,null,null,{"$f":"'2019'!A11","v":1312},{"$f":"'2019'!B11","v":"لوحات"}]
[{"$f":"INDEX($AI$2:$AI$550,MATCH(0,COUNTIF(A$1:$A308,$AI$2:$AI$550),0),0)","v":{"$error":"#N/A"}},{"$error":"#N/A"},null,null,null,null,null,null,null,null,null,null,null,null,null,null,null,null,null,null,null,null,null,null,null,null,null,null,null,null,null,null,null,null,{"$f":"'2019'!A12","v":1313},{"$f":"'2019'!B12","v":"إطارات"}]
[{"$f":"INDEX($AI$2:$AI$550,MATCH(0,COUNTIF(A$1:$A309,$AI$2:$AI$550),0),0)","v":{"$error":"#N/A"}},{"$error":"#N/A"},null,null,null,null,null,null,null,null,null,null,null,null,null,null,null,null,null,null,null,null,null,null,null,null,null,null,null,null,null,null,null,null,{"$f":"'2019'!A13","v":1314},{"$f":"'2019'!B13","v":"إضاءة"}]
[{"$f":"INDEX($AI$2:$AI$550,MATCH(0,COUNTIF(A$1:$A310,$AI$2:$AI$550),0),0)","v":{"$error":"#N/A"}},{"$error":"#N/A"},null,null,null,null,null,null,null,null,null,null,null,null,null,null,null,null,null,null,null,null,null,null,null,null,null,null,null,null,null,null,null,null,{"$f":"'2019'!A14","v":1315},{"$f":"'2019'!B14","v":"أدوات قرطاسية"}]
[{"$f":"INDEX($AI$2:$AI$550,MATCH(0,COUNTIF(A$1:$A311,$AI$2:$AI$550),0),0)","v":{"$error":"#N/A"}},{"$error":"#N/A"},null,null,null,null,null,null,null,null,null,null,null,null,null,null,null,null,null,null,null,null,null,null,null,null,null,null,null,null,null,null,null,null,{"$f":"'2019'!A15","v":1316},{"$f":"'2019'!B15","v":"بنزين"}]
[{"$f":"INDEX($AI$2:$AI$550,MATCH(0,COUNTIF(A$1:$A312,$AI$2:$AI$550),0),0)","v":{"$error":"#N/A"}},{"$error":"#N/A"},null,null,null,null,null,null,null,null,null,null,null,null,null,null,null,null,null,null,null,null,null,null,null,null,null,null,null,null,null,null,null,null,{"$f":"'2019'!A16","v":1318},{"$f":"'2019'!B16","v":"كمبيوتر"}]
[{"$f":"INDEX($AI$2:$AI$550,MATCH(0,COUNTIF(A$1:$A313,$AI$2:$AI$550),0),0)","v":{"$error":"#N/A"}},{"$error":"#N/A"},null,null,null,null,null,null,null,null,null,null,null,null,null,null,null,null,null,null,null,null,null,null,null,null,null,null,null,null,null,null,null,null,{"$f":"'2019'!A17","v":1319},{"$f":"'2019'!B17","v":"شاشات"}]
[{"$f":"INDEX($AI$2:$AI$550,MATCH(0,COUNTIF(A$1:$A314,$AI$2:$AI$550),0),0)","v":{"$error":"#N/A"}},{"$error":"#N/A"},null,null,null,null,null,null,null,null,null,null,null,null,null,null,null,null,null,null,null,null,null,null,null,null,null,null,null,null,null,null,null,null,{"$f":"'2019'!A18","v":1321},{"$f":"'2019'!B18","v":"بخور"}]
[{"$f":"INDEX($AI$2:$AI$550,MATCH(0,COUNTIF(A$1:$A315,$AI$2:$AI$550),0),0)","v":{"$error":"#N/A"}},{"$error":"#N/A"},null,null,null,null,null,null,null,null,null,null,null,null,null,null,null,null,null,null,null,null,null,null,null,null,null,null,null,null,null,null,null,null,{"$f":"'2019'!A19","v":1322},{"$f":"'2019'!B19","v":"ألعاب"}]
[{"$f":"INDEX($AI$2:$AI$550,MATCH(0,COUNTIF(A$1:$A316,$AI$2:$AI$550),0),0)","v":{"$error":"#N/A"}},{"$error":"#N/A"},null,null,null,null,null,null,null,null,null,null,null,null,null,null,null,null,null,null,null,null,null,null,null,null,null,null,null,null,null,null,null,null,{"$f":"'2019'!A20","v":1812},{"$f":"'2019'!B20","v":"أدوات زراعية"}]
[{"$f":"INDEX($AI$2:$AI$550,MATCH(0,COUNTIF(A$1:$A317,$AI$2:$AI$550),0),0)","v":{"$error":"#N/A"}},{"$error":"#N/A"},null,null,null,null,null,null,null,null,null,null,null,null,null,null,null,null,null,null,null,null,null,null,null,null,null,null,null,null,null,null,null,null,{"$f":"'2019'!A21","v":2112},{"$f":"'2019'!B21","v":"مكيفات"}]
[{"$f":"INDEX($AI$2:$AI$550,MATCH(0,COUNTIF(A$1:$A318,$AI$2:$AI$550),0),0)","v":{"$error":"#N/A"}},{"$error":"#N/A"},null,null,null,null,null,null,null,null,null,null,null,null,null,null,null,null,null,null,null,null,null,null,null,null,null,null,null,null,null,null,null,null,{"$f":"'2019'!A22","v":3112},{"$f":"'2019'!B22","v":"مراوح"}]
[{"$f":"INDEX($AI$2:$AI$550,MATCH(0,COUNTIF(A$1:$A319,$AI$2:$AI$550),0),0)","v":{"$error":"#N/A"}},{"$error":"#N/A"},null,null,null,null,null,null,null,null,null,null,null,null,null,null,null,null,null,null,null,null,null,null,null,null,null,null,null,null,null,null,null,null,{"$f":"'2019'!A23","v":12345},{"$f":"'2019'!B23","v":"صيانة1"}]
[{"$f":"INDEX($AI$2:$AI$550,MATCH(0,COUNTIF(A$1:$A320,$AI$2:$AI$550),0),0)","v":{"$error":"#N/A"}},{"$error":"#N/A"},null,null,null,null,null,null,null,null,null,null,null,null,null,null,null,null,null,null,null,null,null,null,null,null,null,null,null,null,null,null,null,null,{"$f":"'2019'!A24","v":12346},{"$f":"'2019'!B24","v":"صيانة2"}]
[{"$f":"INDEX($AI$2:$AI$550,MATCH(0,COUNTIF(A$1:$A321,$AI$2:$AI$550),0),0)","v":{"$error":"#N/A"}},{"$error":"#N/A"},null,null,null,null,null,null,null,null,null,null,null,null,null,null,null,null,null,null,null,null,null,null,null,null,null,null,null,null,null,null,null,null,{"$f":"'2019'!A25","v":12347},{"$f":"'2019'!B25","v":"صيانة3"}]
[{"$f":"INDEX($AI$2:$AI$550,MATCH(0,COUNTIF(A$1:$A322,$AI$2:$AI$550),0),0)","v":{"$error":"#N/A"}},{"$f":"IF(A323=\"\",\"\",VLOOKUP(A323,$AI$2:$AJ$550,2,0))","v":{"$error":"#N/A"}},null,null,null,null,null,null,null,null,null,null,null,null,null,null,null,null,null,null,null,null,null,null,null,null,null,null,null,null,null,null,null,null,{"$f":"'2019'!A26","v":12348},{"$f":"'2019'!B26","v":"صيانة4"}]
[{"$f":"INDEX($AI$2:$AI$550,MATCH(0,COUNTIF(A$1:$A323,$AI$2:$AI$550),0),0)","v":{"$error":"#N/A"}},{"$error":"#N/A"},null,null,null,null,null,null,null,null,null,null,null,null,null,null,null,null,null,null,null,null,null,null,null,null,null,null,null,null,null,null,null,null,{"$f":"'2019'!A27","v":12349},{"$f":"'2019'!B27","v":"صيانة5"}]
[{"$f":"INDEX($AI$2:$AI$550,MATCH(0,COUNTIF(A$1:$A324,$AI$2:$AI$550),0),0)","v":{"$error":"#N/A"}},{"$error":"#N/A"},null,null,null,null,null,null,null,null,null,null,null,null,null,null,null,null,null,null,null,null,null,null,null,null,null,null,null,null,null,null,null,null,{"$f":"'2019'!A28","v":12350},{"$f":"'2019'!B28","v":"صيانة6"}]
[{"$f":"INDEX($AI$2:$AI$550,MATCH(0,COUNTIF(A$1:$A325,$AI$2:$AI$550),0),0)","v":{"$error":"#N/A"}},{"$error":"#N/A"},null,null,null,null,null,null,null,null,null,null,null,null,null,null,null,null,null,null,null,null,null,null,null,null,null,null,null,null,null,null,null,null,{"$f":"'2019'!A29","v":12351},{"$f":"'2019'!B29","v":"صيانة7"}]
[{"$f":"INDEX($AI$2:$AI$550,MATCH(0,COUNTIF(A$1:$A326,$AI$2:$AI$550),0),0)","v":{"$error":"#N/A"}},{"$error":"#N/A"},null,null,null,null,null,null,null,null,null,null,null,null,null,null,null,null,null,null,null,null,null,null,null,null,null,null,null,null,null,null,null,null,{"$f":"'2019'!A30","v":12352},{"$f":"'2019'!B30","v":"صيانة8"}]
[{"$f":"INDEX($AI$2:$AI$550,MATCH(0,COUNTIF(A$1:$A327,$AI$2:$AI$550),0),0)","v":{"$error":"#N/A"}},{"$error":"#N/A"},null,null,null,null,null,null,null,null,null,null,null,null,null,null,null,null,null,null,null,null,null,null,null,null,null,null,null,null,null,null,null,null,{"$f":"'2019'!A31","v":12353},{"$f":"'2019'!B31","v":"صيانة9"}]
[{"$f":"INDEX($AI$2:$AI$550,MATCH(0,COUNTIF(A$1:$A328,$AI$2:$AI$550),0),0)","v":{"$error":"#N/A"}},{"$error":"#N/A"},null,null,null,null,null,null,null,null,null,null,null,null,null,null,null,null,null,null,null,null,null,null,null,null,null,null,null,null,null,null,null,null,{"$f":"'2019'!A32","v":12354},{"$f":"'2019'!B32","v":"صيانة10"}]
[{"$f":"INDEX($AI$2:$AI$550,MATCH(0,COUNTIF(A$1:$A329,$AI$2:$AI$550),0),0)","v":{"$error":"#N/A"}},{"$error":"#N/A"},null,null,null,null,null,null,null,null,null,null,null,null,null,null,null,null,null,null,null,null,null,null,null,null,null,null,null,null,null,null,null,null,{"$f":"'2019'!A33","v":12355},{"$f":"'2019'!B33","v":"صيانة11"}]
[{"$f":"INDEX($AI$2:$AI$550,MATCH(0,COUNTIF(A$1:$A330,$AI$2:$AI$550),0),0)","v":{"$error":"#N/A"}},{"$error":"#N/A"},null,null,null,null,null,null,null,null,null,null,null,null,null,null,null,null,null,null,null,null,null,null,null,null,null,null,null,null,null,null,null,null,{"$f":"'2019'!A34","v":12356},{"$f":"'2019'!B34","v":"صيانة12"}]
[{"$f":"INDEX($AI$2:$AI$550,MATCH(0,COUNTIF(A$1:$A331,$AI$2:$AI$550),0),0)","v":{"$error":"#N/A"}},{"$error":"#N/A"},null,null,null,null,null,null,null,null,null,null,null,null,null,null,null,null,null,null,null,null,null,null,null,null,null,null,null,null,null,null,null,null,{"$f":"'2019'!A35","v":12357},{"$f":"'2019'!B35","v":"صيانة13"}]
[{"$f":"INDEX($AI$2:$AI$550,MATCH(0,COUNTIF(A$1:$A332,$AI$2:$AI$550),0),0)","v":{"$error":"#N/A"}},{"$error":"#N/A"},null,null,null,null,null,null,null,null,null,null,null,null,null,null,null,null,null,null,null,null,null,null,null,null,null,null,null,null,null,null,null,null,{"$f":"'2019'!A36","v":12358},{"$f":"'2019'!B36","v":"صيانة14"}]
[{"$f":"INDEX($AI$2:$AI$550,MATCH(0,COUNTIF(A$1:$A333,$AI$2:$AI$550),0),0)","v":{"$error":"#N/A"}},{"$error":"#N/A"},null,null,null,null,null,null,null,null,null,null,null,null,null,null,null,null,null,null,null,null,null,null,null,null,null,null,null,null,null,null,null,null,{"$f":"'2019'!A37","v":12359},{"$f":"'2019'!B37","v":"صيانة15"}]
[{"$f":"INDEX($AI$2:$AI$550,MATCH(0,COUNTIF(A$1:$A334,$AI$2:$AI$550),0),0)","v":{"$error":"#N/A"}},{"$error":"#N/A"},null,null,null,null,null,null,null,null,null,null,null,null,null,null,null,null,null,null,null,null,null,null,null,null,null,null,null,null,null,null,null,null,{"$f":"'2019'!A38","v":12360},{"$f":"'2019'!B38","v":"صيانة16"}]
[{"$f":"INDEX($AI$2:$AI$550,MATCH(0,COUNTIF(A$1:$A335,$AI$2:$AI$550),0),0)","v":{"$error":"#N/A"}},{"$error":"#N/A"},null,null,null,null,null,null,null,null,null,null,null,null,null,null,null,null,null,null,null,null,null,null,null,null,null,null,null,null,null,null,null,null,{"$f":"'2019'!A39","v":12361},{"$f":"'2019'!B39","v":"صيانة17"}]
[{"$f":"INDEX($AI$2:$AI$550,MATCH(0,COUNTIF(A$1:$A336,$AI$2:$AI$550),0),0)","v":{"$error":"#N/A"}},{"$error":"#N/A"},null,null,null,null,null,null,null,null,null,null,null,null,null,null,null,null,null,null,null,null,null,null,null,null,null,null,null,null,null,null,null,null,{"$f":"'2019'!A40","v":12362},{"$f":"'2019'!B40","v":"صيانة18"}]
[{"$f":"INDEX($AI$2:$AI$550,MATCH(0,COUNTIF(A$1:$A337,$AI$2:$AI$550),0),0)","v":{"$error":"#N/A"}},{"$error":"#N/A"},null,null,null,null,null,null,null,null,null,null,null,null,null,null,null,null,null,null,null,null,null,null,null,null,null,null,null,null,null,null,null,null,{"$f":"'2019'!A41","v":12363},{"$f":"'2019'!B41","v":"صيانة19"}]
[{"$f":"INDEX($AI$2:$AI$550,MATCH(0,COUNTIF(A$1:$A338,$AI$2:$AI$550),0),0)","v":{"$error":"#N/A"}},{"$error":"#N/A"},null,null,null,null,null,null,null,null,null,null,null,null,null,null,null,null,null,null,null,null,null,null,null,null,null,null,null,null,null,null,null,null,{"$f":"'2019'!A42","v":12364},{"$f":"'2019'!B42","v":"صيانة20"}]
[{"$f":"INDEX($AI$2:$AI$550,MATCH(0,COUNTIF(A$1:$A339,$AI$2:$AI$550),0),0)","v":{"$error":"#N/A"}},{"$error":"#N/A"},null,null,null,null,null,null,null,null,null,null,null,null,null,null,null,null,null,null,null,null,null,null,null,null,null,null,null,null,null,null,null,null,{"$f":"'2019'!A43","v":12365},{"$f":"'2019'!B43","v":"صيانة21"}]
[{"$f":"INDEX($AI$2:$AI$550,MATCH(0,COUNTIF(A$1:$A340,$AI$2:$AI$550),0),0)","v":{"$error":"#N/A"}},{"$error":"#N/A"},null,null,null,null,null,null,null,null,null,null,null,null,null,null,null,null,null,null,null,null,null,null,null,null,null,null,null,null,null,null,null,null,{"$f":"'2019'!A44","v":12366},{"$f":"'2019'!B44","v":"صيانة22"}]
[{"$f":"INDEX($AI$2:$AI$550,MATCH(0,COUNTIF(A$1:$A341,$AI$2:$AI$550),0),0)","v":{"$error":"#N/A"}},{"$error":"#N/A"},null,null,null,null,null,null,null,null,null,null,null,null,null,null,null,null,null,null,null,null,null,null,null,null,null,null,null,null,null,null,null,null,{"$f":"'2019'!A45","v":12367},{"$f":"'2019'!B45","v":"صيانة23"}]
[{"$f":"INDEX($AI$2:$AI$550,MATCH(0,COUNTIF(A$1:$A342,$AI$2:$AI$550),0),0)","v":{"$error":"#N/A"}},{"$error":"#N/A"},null,null,null,null,null,null,null,null,null,null,null,null,null,null,null,null,null,null,null,null,null,null,null,null,null,null,null,null,null,null,null,null,{"$f":"'2019'!A46","v":12368},{"$f":"'2019'!B46","v":"صيانة24"}]
[{"$f":"INDEX($AI$2:$AI$550,MATCH(0,COUNTIF(A$1:$A343,$AI$2:$AI$550),0),0)","v":{"$error":"#N/A"}},{"$error":"#N/A"},null,null,null,null,null,null,null,null,null,null,null,null,null,null,null,null,null,null,null,null,null,null,null,null,null,null,null,null,null,null,null,null,{"$f":"'2019'!A47","v":12369},{"$f":"'2019'!B47","v":"صيانة25"}]
[{"$f":"INDEX($AI$2:$AI$550,MATCH(0,COUNTIF(A$1:$A344,$AI$2:$AI$550),0),0)","v":{"$error":"#N/A"}},{"$error":"#N/A"},null,null,null,null,null,null,null,null,null,null,null,null,null,null,null,null,null,null,null,null,null,null,null,null,null,null,null,null,null,null,null,null,{"$f":"'2019'!A48","v":12370},{"$f":"'2019'!B48","v":"صيانة26"}]
[{"$f":"INDEX($AI$2:$AI$550,MATCH(0,COUNTIF(A$1:$A345,$AI$2:$AI$550),0),0)","v":{"$error":"#N/A"}},{"$error":"#N/A"},null,null,null,null,null,null,null,null,null,null,null,null,null,null,null,null,null,null,null,null,null,null,null,null,null,null,null,null,null,null,null,null,{"$f":"'2019'!A49","v":12371},{"$f":"'2019'!B49","v":"صيانة27"}]
[{"$f":"INDEX($AI$2:$AI$550,MATCH(0,COUNTIF(A$1:$A346,$AI$2:$AI$550),0),0)","v":{"$error":"#N/A"}},{"$error":"#N/A"},null,null,null,null,null,null,null,null,null,null,null,null,null,null,null,null,null,null,null,null,null,null,null,null,null,null,null,null,null,null,null,null,{"$f":"'2019'!A50","v":12372},{"$f":"'2019'!B50","v":"صيانة28"}]
[{"$f":"INDEX($AI$2:$AI$550,MATCH(0,COUNTIF(A$1:$A347,$AI$2:$AI$550),0),0)","v":{"$error":"#N/A"}},{"$error":"#N/A"},null,null,null,null,null,null,null,null,null,null,null,null,null,null,null,null,null,null,null,null,null,null,null,null,null,null,null,null,null,null,null,null,{"$f":"'2019'!A51","v":12373},{"$f":"'2019'!B51","v":"صيانة29"}]
[{"$f":"INDEX($AI$2:$AI$550,MATCH(0,COUNTIF(A$1:$A348,$AI$2:$AI$550),0),0)","v":{"$error":"#N/A"}},{"$error":"#N/A"},null,null,null,null,null,null,null,null,null,null,null,null,null,null,null,null,null,null,null,null,null,null,null,null,null,null,null,null,null,null,null,null,{"$f":"'2019'!A52","v":12374},{"$f":"'2019'!B52","v":"صيانة30"}]
[{"$f":"INDEX($AI$2:$AI$550,MATCH(0,COUNTIF(A$1:$A349,$AI$2:$AI$550),0),0)","v":{"$error":"#N/A"}},{"$error":"#N/A"},null,null,null,null,null,null,null,null,null,null,null,null,null,null,null,null,null,null,null,null,null,null,null,null,null,null,null,null,null,null,null,null,{"$f":"'2019'!A53","v":12375},{"$f":"'2019'!B53","v":"صيانة31"}]
[{"$f":"INDEX($AI$2:$AI$550,MATCH(0,COUNTIF(A$1:$A350,$AI$2:$AI$550),0),0)","v":{"$error":"#N/A"}},{"$error":"#N/A"},null,null,null,null,null,null,null,null,null,null,null,null,null,null,null,null,null,null,null,null,null,null,null,null,null,null,null,null,null,null,null,null,{"$f":"'2019'!A54","v":12376},{"$f":"'2019'!B54","v":"صيانة32"}]
[{"$f":"INDEX($AI$2:$AI$550,MATCH(0,COUNTIF(A$1:$A351,$AI$2:$AI$550),0),0)","v":{"$error":"#N/A"}},{"$error":"#N/A"},null,null,null,null,null,null,null,null,null,null,null,null,null,null,null,null,null,null,null,null,null,null,null,null,null,null,null,null,null,null,null,null,{"$f":"'2019'!A55","v":12377},{"$f":"'2019'!B55","v":"صيانة33"}]
[{"$f":"INDEX($AI$2:$AI$550,MATCH(0,COUNTIF(A$1:$A352,$AI$2:$AI$550),0),0)","v":{"$error":"#N/A"}},{"$error":"#N/A"},null,null,null,null,null,null,null,null,null,null,null,null,null,null,null,null,null,null,null,null,null,null,null,null,null,null,null,null,null,null,null,null,{"$f":"'2019'!A56","v":12378},{"$f":"'2019'!B56","v":"صيانة34"}]
[{"$f":"INDEX($AI$2:$AI$550,MATCH(0,COUNTIF(A$1:$A353,$AI$2:$AI$550),0),0)","v":{"$error":"#N/A"}},{"$error":"#N/A"},null,null,null,null,null,null,null,null,null,null,null,null,null,null,null,null,null,null,null,null,null,null,null,null,null,null,null,null,null,null,null,null,{"$f":"'2019'!A57","v":12379},{"$f":"'2019'!B57","v":"صيانة35"}]
[{"$f":"INDEX($AI$2:$AI$550,MATCH(0,COUNTIF(A$1:$A354,$AI$2:$AI$550),0),0)","v":{"$error":"#N/A"}},{"$error":"#N/A"},null,null,null,null,null,null,null,null,null,null,null,null,null,null,null,null,null,null,null,null,null,null,null,null,null,null,null,null,null,null,null,null,{"$f":"'2019'!A58","v":12380},{"$f":"'2019'!B58","v":"صيانة36"}]
[{"$f":"INDEX($AI$2:$AI$550,MATCH(0,COUNTIF(A$1:$A355,$AI$2:$AI$550),0),0)","v":{"$error":"#N/A"}},{"$error":"#N/A"},null,null,null,null,null,null,null,null,null,null,null,null,null,null,null,null,null,null,null,null,null,null,null,null,null,null,null,null,null,null,null,null,{"$f":"'2019'!A59","v":12381},{"$f":"'2019'!B59","v":"صيانة37"}]
[{"$f":"INDEX($AI$2:$AI$550,MATCH(0,COUNTIF(A$1:$A356,$AI$2:$AI$550),0),0)","v":{"$error":"#N/A"}},{"$error":"#N/A"},null,null,null,null,null,null,null,null,null,null,null,null,null,null,null,null,null,null,null,null,null,null,null,null,null,null,null,null,null,null,null,null,{"$f":"'2019'!A60","v":12382},{"$f":"'2019'!B60","v":"صيانة38"}]
[{"$f":"INDEX($AI$2:$AI$550,MATCH(0,COUNTIF(A$1:$A357,$AI$2:$AI$550),0),0)","v":{"$error":"#N/A"}},{"$error":"#N/A"},null,null,null,null,null,null,null,null,null,null,null,null,null,null,null,null,null,null,null,null,null,null,null,null,null,null,null,null,null,null,null,null,{"$f":"'2019'!A61","v":12383},{"$f":"'2019'!B61","v":"صيانة39"}]
[{"$f":"INDEX($AI$2:$AI$550,MATCH(0,COUNTIF(A$1:$A358,$AI$2:$AI$550),0),0)","v":{"$error":"#N/A"}},{"$error":"#N/A"},null,null,null,null,null,null,null,null,null,null,null,null,null,null,null,null,null,null,null,null,null,null,null,null,null,null,null,null,null,null,null,null,{"$f":"'2019'!A62","v":12384},{"$f":"'2019'!B62","v":"صيانة40"}]
[{"$f":"INDEX($AI$2:$AI$550,MATCH(0,COUNTIF(A$1:$A359,$AI$2:$AI$550),0),0)","v":{"$error":"#N/A"}},{"$error":"#N/A"},null,null,null,null,null,null,null,null,null,null,null,null,null,null,null,null,null,null,null,null,null,null,null,null,null,null,null,null,null,null,null,null,{"$f":"'2019'!A63","v":12385},{"$f":"'2019'!B63","v":"صيانة41"}]
[{"$f":"INDEX($AI$2:$AI$550,MATCH(0,COUNTIF(A$1:$A360,$AI$2:$AI$550),0),0)","v":{"$error":"#N/A"}},{"$error":"#N/A"},null,null,null,null,null,null,null,null,null,null,null,null,null,null,null,null,null,null,null,null,null,null,null,null,null,null,null,null,null,null,null,null,{"$f":"'2019'!A64","v":12386},{"$f":"'2019'!B64","v":"صيانة42"}]
[{"$f":"INDEX($AI$2:$AI$550,MATCH(0,COUNTIF(A$1:$A361,$AI$2:$AI$550),0),0)","v":{"$error":"#N/A"}},{"$error":"#N/A"},null,null,null,null,null,null,null,null,null,null,null,null,null,null,null,null,null,null,null,null,null,null,null,null,null,null,null,null,null,null,null,null,{"$f":"'2019'!A65","v":12387},{"$f":"'2019'!B65","v":"صيانة43"}]
[{"$f":"INDEX($AI$2:$AI$550,MATCH(0,COUNTIF(A$1:$A362,$AI$2:$AI$550),0),0)","v":{"$error":"#N/A"}},{"$error":"#N/A"},null,null,null,null,null,null,null,null,null,null,null,null,null,null,null,null,null,null,null,null,null,null,null,null,null,null,null,null,null,null,null,null,{"$f":"'2019'!A66","v":12388},{"$f":"'2019'!B66","v":"صيانة44"}]
[{"$f":"INDEX($AI$2:$AI$550,MATCH(0,COUNTIF(A$1:$A363,$AI$2:$AI$550),0),0)","v":{"$error":"#N/A"}},{"$error":"#N/A"},null,null,null,null,null,null,null,null,null,null,null,null,null,null,null,null,null,null,null,null,null,null,null,null,null,null,null,null,null,null,null,null,{"$f":"'2019'!A67","v":12389},{"$f":"'2019'!B67","v":"صيانة45"}]
[{"$f":"INDEX($AI$2:$AI$550,MATCH(0,COUNTIF(A$1:$A364,$AI$2:$AI$550),0),0)","v":{"$error":"#N/A"}},{"$error":"#N/A"},null,null,null,null,null,null,null,null,null,null,null,null,null,null,null,null,null,null,null,null,null,null,null,null,null,null,null,null,null,null,null,null,{"$f":"'2019'!A68","v":12390},{"$f":"'2019'!B68","v":"صيانة46"}]
[{"$f":"INDEX($AI$2:$AI$550,MATCH(0,COUNTIF(A$1:$A365,$AI$2:$AI$550),0),0)","v":{"$error":"#N/A"}},{"$error":"#N/A"},null,null,null,null,null,null,null,null,null,null,null,null,null,null,null,null,null,null,null,null,null,null,null,null,null,null,null,null,null,null,null,null,{"$f":"'2019'!A69","v":12391},{"$f":"'2019'!B69","v":"صيانة47"}]
[{"$f":"INDEX($AI$2:$AI$550,MATCH(0,COUNTIF(A$1:$A366,$AI$2:$AI$550),0),0)","v":{"$error":"#N/A"}},{"$error":"#N/A"},null,null,null,null,null,null,null,null,null,null,null,null,null,null,null,null,null,null,null,null,null,null,null,null,null,null,null,null,null,null,null,null,{"$f":"'2019'!A70","v":12392},{"$f":"'2019'!B70","v":"صيانة48"}]
[{"$f":"INDEX($AI$2:$AI$550,MATCH(0,COUNTIF(A$1:$A367,$AI$2:$AI$550),0),0)","v":{"$error":"#N/A"}},{"$error":"#N/A"},null,null,null,null,null,null,null,null,null,null,null,null,null,null,null,null,null,null,null,null,null,null,null,null,null,null,null,null,null,null,null,null,{"$f":"'2019'!A71","v":12393},{"$f":"'2019'!B71","v":"صيانة49"}]
[{"$f":"INDEX($AI$2:$AI$550,MATCH(0,COUNTIF(A$1:$A368,$AI$2:$AI$550),0),0)","v":{"$error":"#N/A"}},{"$error":"#N/A"},null,null,null,null,null,null,null,null,null,null,null,null,null,null,null,null,null,null,null,null,null,null,null,null,null,null,null,null,null,null,null,null,{"$f":"'2019'!A72","v":12394},{"$f":"'2019'!B72","v":"صيانة50"}]
[{"$f":"INDEX($AI$2:$AI$550,MATCH(0,COUNTIF(A$1:$A369,$AI$2:$AI$550),0),0)","v":{"$error":"#N/A"}},{"$error":"#N/A"},null,null,null,null,null,null,null,null,null,null,null,null,null,null,null,null,null,null,null,null,null,null,null,null,null,null,null,null,null,null,null,null,{"$f":"'2019'!A73","v":12395},{"$f":"'2019'!B73","v":"صيانة51"}]
[{"$f":"INDEX($AI$2:$AI$550,MATCH(0,COUNTIF(A$1:$A370,$AI$2:$AI$550),0),0)","v":{"$error":"#N/A"}},{"$error":"#N/A"},null,null,null,null,null,null,null,null,null,null,null,null,null,null,null,null,null,null,null,null,null,null,null,null,null,null,null,null,null,null,null,null,{"$f":"'2019'!A74","v":12396},{"$f":"'2019'!B74","v":"صيانة52"}]
[{"$f":"INDEX($AI$2:$AI$550,MATCH(0,COUNTIF(A$1:$A371,$AI$2:$AI$550),0),0)","v":{"$error":"#N/A"}},{"$error":"#N/A"},null,null,null,null,null,null,null,null,null,null,null,null,null,null,null,null,null,null,null,null,null,null,null,null,null,null,null,null,null,null,null,null,{"$f":"'2019'!A75","v":12397},{"$f":"'2019'!B75","v":"صيانة53"}]
[{"$f":"INDEX($AI$2:$AI$550,MATCH(0,COUNTIF(A$1:$A372,$AI$2:$AI$550),0),0)","v":{"$error":"#N/A"}},{"$error":"#N/A"},null,null,null,null,null,null,null,null,null,null,null,null,null,null,null,null,null,null,null,null,null,null,null,null,null,null,null,null,null,null,null,null,{"$f":"'2019'!A76","v":12398},{"$f":"'2019'!B76","v":"صيانة54"}]
[{"$f":"INDEX($AI$2:$AI$550,MATCH(0,COUNTIF(A$1:$A373,$AI$2:$AI$550),0),0)","v":{"$error":"#N/A"}},{"$error":"#N/A"},null,null,null,null,null,null,null,null,null,null,null,null,null,null,null,null,null,null,null,null,null,null,null,null,null,null,null,null,null,null,null,null,{"$f":"'2019'!A77","v":12399},{"$f":"'2019'!B77","v":"صيانة55"}]
[{"$f":"INDEX($AI$2:$AI$550,MATCH(0,COUNTIF(A$1:$A374,$AI$2:$AI$550),0),0)","v":{"$error":"#N/A"}},{"$error":"#N/A"},null,null,null,null,null,null,null,null,null,null,null,null,null,null,null,null,null,null,null,null,null,null,null,null,null,null,null,null,null,null,null,null,{"$f":"'2019'!A78","v":12400},{"$f":"'2019'!B78","v":"صيانة56"}]
[{"$f":"INDEX($AI$2:$AI$550,MATCH(0,COUNTIF(A$1:$A375,$AI$2:$AI$550),0),0)","v":{"$error":"#N/A"}},{"$error":"#N/A"},null,null,null,null,null,null,null,null,null,null,null,null,null,null,null,null,null,null,null,null,null,null,null,null,null,null,null,null,null,null,null,null,{"$f":"'2019'!A79","v":12401},{"$f":"'2019'!B79","v":"صيانة57"}]
[{"$f":"INDEX($AI$2:$AI$550,MATCH(0,COUNTIF(A$1:$A376,$AI$2:$AI$550),0),0)","v":{"$error":"#N/A"}},{"$error":"#N/A"},null,null,null,null,null,null,null,null,null,null,null,null,null,null,null,null,null,null,null,null,null,null,null,null,null,null,null,null,null,null,null,null,{"$f":"'2019'!A80","v":12402},{"$f":"'2019'!B80","v":"صيانة58"}]
[{"$f":"INDEX($AI$2:$AI$550,MATCH(0,COUNTIF(A$1:$A377,$AI$2:$AI$550),0),0)","v":{"$error":"#N/A"}},{"$error":"#N/A"},null,null,null,null,null,null,null,null,null,null,null,null,null,null,null,null,null,null,null,null,null,null,null,null,null,null,null,null,null,null,null,null,{"$f":"'2019'!A81","v":12403},{"$f":"'2019'!B81","v":"صيانة59"}]
[{"$f":"INDEX($AI$2:$AI$550,MATCH(0,COUNTIF(A$1:$A378,$AI$2:$AI$550),0),0)","v":{"$error":"#N/A"}},{"$error":"#N/A"},null,null,null,null,null,null,null,null,null,null,null,null,null,null,null,null,null,null,null,null,null,null,null,null,null,null,null,null,null,null,null,null,{"$f":"'2019'!A82","v":12404},{"$f":"'2019'!B82","v":"صيانة60"}]
[{"$f":"INDEX($AI$2:$AI$550,MATCH(0,COUNTIF(A$1:$A379,$AI$2:$AI$550),0),0)","v":{"$error":"#N/A"}},{"$error":"#N/A"},null,null,null,null,null,null,null,null,null,null,null,null,null,null,null,null,null,null,null,null,null,null,null,null,null,null,null,null,null,null,null,null,{"$f":"'2019'!A83","v":12405},{"$f":"'2019'!B83","v":"صيانة61"}]
[{"$f":"INDEX($AI$2:$AI$550,MATCH(0,COUNTIF(A$1:$A380,$AI$2:$AI$550),0),0)","v":{"$error":"#N/A"}},{"$error":"#N/A"},null,null,null,null,null,null,null,null,null,null,null,null,null,null,null,null,null,null,null,null,null,null,null,null,null,null,null,null,null,null,null,null,{"$f":"'2019'!A84","v":12406},{"$f":"'2019'!B84","v":"صيانة62"}]
[{"$f":"INDEX($AI$2:$AI$550,MATCH(0,COUNTIF(A$1:$A381,$AI$2:$AI$550),0),0)","v":{"$error":"#N/A"}},{"$error":"#N/A"},null,null,null,null,null,null,null,null,null,null,null,null,null,null,null,null,null,null,null,null,null,null,null,null,null,null,null,null,null,null,null,null,{"$f":"'2019'!A85","v":12407},{"$f":"'2019'!B85","v":"صيانة63"}]
[{"$f":"INDEX($AI$2:$AI$550,MATCH(0,COUNTIF(A$1:$A382,$AI$2:$AI$550),0),0)","v":{"$error":"#N/A"}},{"$error":"#N/A"},null,null,null,null,null,null,null,null,null,null,null,null,null,null,null,null,null,null,null,null,null,null,null,null,null,null,null,null,null,null,null,null,{"$f":"'2019'!A86","v":12408},{"$f":"'2019'!B86","v":"صيانة64"}]
[{"$f":"INDEX($AI$2:$AI$550,MATCH(0,COUNTIF(A$1:$A383,$AI$2:$AI$550),0),0)","v":{"$error":"#N/A"}},{"$error":"#N/A"},null,null,null,null,null,null,null,null,null,null,null,null,null,null,null,null,null,null,null,null,null,null,null,null,null,null,null,null,null,null,null,null,{"$f":"'2019'!A87","v":12409},{"$f":"'2019'!B87","v":"صيانة65"}]
[{"$f":"INDEX($AI$2:$AI$550,MATCH(0,COUNTIF(A$1:$A384,$AI$2:$AI$550),0),0)","v":{"$error":"#N/A"}},{"$error":"#N/A"},null,null,null,null,null,null,null,null,null,null,null,null,null,null,null,null,null,null,null,null,null,null,null,null,null,null,null,null,null,null,null,null,{"$f":"'2019'!A88","v":12410},{"$f":"'2019'!B88","v":"صيانة66"}]
[{"$f":"INDEX($AI$2:$AI$550,MATCH(0,COUNTIF(A$1:$A385,$AI$2:$AI$550),0),0)","v":{"$error":"#N/A"}},{"$error":"#N/A"},null,null,null,null,null,null,null,null,null,null,null,null,null,null,null,null,null,null,null,null,null,null,null,null,null,null,null,null,null,null,null,null,{"$f":"'2019'!A89","v":12411},{"$f":"'2019'!B89","v":"صيانة67"}]
[{"$f":"INDEX($AI$2:$AI$550,MATCH(0,COUNTIF(A$1:$A386,$AI$2:$AI$550),0),0)","v":{"$error":"#N/A"}},{"$f":"IF(A387=\"\",\"\",VLOOKUP(A387,$AI$2:$AJ$550,2,0))","v":{"$error":"#N/A"}},null,null,null,null,null,null,null,null,null,null,null,null,null,null,null,null,null,null,null,null,null,null,null,null,null,null,null,null,null,null,null,null,{"$f":"'2019'!A90","v":12412},{"$f":"'2019'!B90","v":"صيانة68"}]
[{"$f":"INDEX($AI$2:$AI$550,MATCH(0,COUNTIF(A$1:$A387,$AI$2:$AI$550),0),0)","v":{"$error":"#N/A"}},{"$error":"#N/A"},null,null,null,null,null,null,null,null,null,null,null,null,null,null,null,null,null,null,null,null,null,null,null,null,null,null,null,null,null,null,null,null,{"$f":"'2019'!A91","v":12413},{"$f":"'2019'!B91","v":"صيانة69"}]
[{"$f":"INDEX($AI$2:$AI$550,MATCH(0,COUNTIF(A$1:$A388,$AI$2:$AI$550),0),0)","v":{"$error":"#N/A"}},{"$error":"#N/A"},null,null,null,null,null,null,null,null,null,null,null,null,null,null,null,null,null,null,null,null,null,null,null,null,null,null,null,null,null,null,null,null,{"$f":"'2019'!A92","v":12414},{"$f":"'2019'!B92","v":"صيانة70"}]
[{"$f":"INDEX($AI$2:$AI$550,MATCH(0,COUNTIF(A$1:$A389,$AI$2:$AI$550),0),0)","v":{"$error":"#N/A"}},{"$error":"#N/A"},null,null,null,null,null,null,null,null,null,null,null,null,null,null,null,null,null,null,null,null,null,null,null,null,null,null,null,null,null,null,null,null,{"$f":"'2019'!A93","v":12415},{"$f":"'2019'!B93","v":"صيانة71"}]
[{"$f":"INDEX($AI$2:$AI$550,MATCH(0,COUNTIF(A$1:$A390,$AI$2:$AI$550),0),0)","v":{"$error":"#N/A"}},{"$error":"#N/A"},null,null,null,null,null,null,null,null,null,null,null,null,null,null,null,null,null,null,null,null,null,null,null,null,null,null,null,null,null,null,null,null,{"$f":"'2019'!A94","v":12416},{"$f":"'2019'!B94","v":"صيانة72"}]
[{"$f":"INDEX($AI$2:$AI$550,MATCH(0,COUNTIF(A$1:$A391,$AI$2:$AI$550),0),0)","v":{"$error":"#N/A"}},{"$error":"#N/A"},null,null,null,null,null,null,null,null,null,null,null,null,null,null,null,null,null,null,null,null,null,null,null,null,null,null,null,null,null,null,null,null,{"$f":"'2019'!A95","v":12417},{"$f":"'2019'!B95","v":"صيانة73"}]
[{"$f":"INDEX($AI$2:$AI$550,MATCH(0,COUNTIF(A$1:$A392,$AI$2:$AI$550),0),0)","v":{"$error":"#N/A"}},{"$error":"#N/A"},null,null,null,null,null,null,null,null,null,null,null,null,null,null,null,null,null,null,null,null,null,null,null,null,null,null,null,null,null,null,null,null,{"$f":"'2019'!A96","v":12418},{"$f":"'2019'!B96","v":"صيانة74"}]
[{"$f":"INDEX($AI$2:$AI$550,MATCH(0,COUNTIF(A$1:$A393,$AI$2:$AI$550),0),0)","v":{"$error":"#N/A"}},{"$error":"#N/A"},null,null,null,null,null,null,null,null,null,null,null,null,null,null,null,null,null,null,null,null,null,null,null,null,null,null,null,null,null,null,null,null,{"$f":"'2019'!A97","v":12419},{"$f":"'2019'!B97","v":"صيانة75"}]
[{"$f":"INDEX($AI$2:$AI$550,MATCH(0,COUNTIF(A$1:$A394,$AI$2:$AI$550),0),0)","v":{"$error":"#N/A"}},{"$error":"#N/A"},null,null,null,null,null,null,null,null,null,null,null,null,null,null,null,null,null,null,null,null,null,null,null,null,null,null,null,null,null,null,null,null,{"$f":"'2019'!A98","v":12420},{"$f":"'2019'!B98","v":"صيانة76"}]
[{"$f":"INDEX($AI$2:$AI$550,MATCH(0,COUNTIF(A$1:$A395,$AI$2:$AI$550),0),0)","v":{"$error":"#N/A"}},{"$error":"#N/A"},null,null,null,null,null,null,null,null,null,null,null,null,null,null,null,null,null,null,null,null,null,null,null,null,null,null,null,null,null,null,null,null,{"$f":"'2019'!A99","v":12421},{"$f":"'2019'!B99","v":"صيانة77"}]
[{"$f":"INDEX($AI$2:$AI$550,MATCH(0,COUNTIF(A$1:$A396,$AI$2:$AI$550),0),0)","v":{"$error":"#N/A"}},{"$error":"#N/A"},null,null,null,null,null,null,null,null,null,null,null,null,null,null,null,null,null,null,null,null,null,null,null,null,null,null,null,null,null,null,null,null,{"$f":"'2019'!A100","v":12422},{"$f":"'2019'!B100","v":"صيانة78"}]
[{"$f":"INDEX($AI$2:$AI$550,MATCH(0,COUNTIF(A$1:$A397,$AI$2:$AI$550),0),0)","v":{"$error":"#N/A"}},{"$error":"#N/A"},null,null,null,null,null,null,null,null,null,null,null,null,null,null,null,null,null,null,null,null,null,null,null,null,null,null,null,null,null,null,null,null,{"$f":"'2019'!A101","v":12423},{"$f":"'2019'!B101","v":"صيانة79"}]
[{"$f":"INDEX($AI$2:$AI$550,MATCH(0,COUNTIF(A$1:$A398,$AI$2:$AI$550),0),0)","v":{"$error":"#N/A"}},{"$error":"#N/A"},null,null,null,null,null,null,null,null,null,null,null,null,null,null,null,null,null,null,null,null,null,null,null,null,null,null,null,null,null,null,null,null,{"$f":"'2019'!A102","v":12424},{"$f":"'2019'!B102","v":"صيانة80"}]
[{"$f":"INDEX($AI$2:$AI$550,MATCH(0,COUNTIF(A$1:$A399,$AI$2:$AI$550),0),0)","v":{"$error":"#N/A"}},{"$error":"#N/A"},null,null,null,null,null,null,null,null,null,null,null,null,null,null,null,null,null,null,null,null,null,null,null,null,null,null,null,null,null,null,null,null,{"$f":"'2019'!A103","v":12425},{"$f":"'2019'!B103","v":"صيانة81"}]
[{"$f":"INDEX($AI$2:$AI$550,MATCH(0,COUNTIF(A$1:$A400,$AI$2:$AI$550),0),0)","v":{"$error":"#N/A"}},{"$error":"#N/A"},null,null,null,null,null,null,null,null,null,null,null,null,null,null,null,null,null,null,null,null,null,null,null,null,null,null,null,null,null,null,null,null,{"$f":"'2019'!A104","v":12426},{"$f":"'2019'!B104","v":"صيانة82"}]
[{"$f":"INDEX($AI$2:$AI$550,MATCH(0,COUNTIF(A$1:$A401,$AI$2:$AI$550),0),0)","v":{"$error":"#N/A"}},{"$error":"#N/A"},null,null,null,null,null,null,null,null,null,null,null,null,null,null,null,null,null,null,null,null,null,null,null,null,null,null,null,null,null,null,null,null,{"$f":"'2019'!A105","v":12427},{"$f":"'2019'!B105","v":"صيانة83"}]
[{"$f":"INDEX($AI$2:$AI$550,MATCH(0,COUNTIF(A$1:$A402,$AI$2:$AI$550),0),0)","v":{"$error":"#N/A"}},{"$error":"#N/A"},null,null,null,null,null,null,null,null,null,null,null,null,null,null,null,null,null,null,null,null,null,null,null,null,null,null,null,null,null,null,null,null,{"$f":"'2019'!A106","v":12428},{"$f":"'2019'!B106","v":"صيانة84"}]
[{"$f":"INDEX($AI$2:$AI$550,MATCH(0,COUNTIF(A$1:$A403,$AI$2:$AI$550),0),0)","v":{"$error":"#N/A"}},{"$error":"#N/A"},null,null,null,null,null,null,null,null,null,null,null,null,null,null,null,null,null,null,null,null,null,null,null,null,null,null,null,null,null,null,null,null,{"$f":"'2019'!A107","v":12429},{"$f":"'2019'!B107","v":"صيانة85"}]
[{"$f":"INDEX($AI$2:$AI$550,MATCH(0,COUNTIF(A$1:$A404,$AI$2:$AI$550),0),0)","v":{"$error":"#N/A"}},{"$error":"#N/A"},null,null,null,null,null,null,null,null,null,null,null,null,null,null,null,null,null,null,null,null,null,null,null,null,null,null,null,null,null,null,null,null,{"$f":"'2019'!A108","v":12430},{"$f":"'2019'!B108","v":"صيانة86"}]
[{"$f":"INDEX($AI$2:$AI$550,MATCH(0,COUNTIF(A$1:$A405,$AI$2:$AI$550),0),0)","v":{"$error":"#N/A"}},{"$error":"#N/A"},null,null,null,null,null,null,null,null,null,null,null,null,null,null,null,null,null,null,null,null,null,null,null,null,null,null,null,null,null,null,null,null,{"$f":"'2019'!A109","v":12431},{"$f":"'2019'!B109","v":"صيانة87"}]
[{"$f":"INDEX($AI$2:$AI$550,MATCH(0,COUNTIF(A$1:$A406,$AI$2:$AI$550),0),0)","v":{"$error":"#N/A"}},{"$error":"#N/A"},null,null,null,null,null,null,null,null,null,null,null,null,null,null,null,null,null,null,null,null,null,null,null,null,null,null,null,null,null,null,null,null,{"$f":"'2019'!A110","v":12432},{"$f":"'2019'!B110","v":"صيانة88"}]
[{"$f":"INDEX($AI$2:$AI$550,MATCH(0,COUNTIF(A$1:$A407,$AI$2:$AI$550),0),0)","v":{"$error":"#N/A"}},{"$error":"#N/A"},null,null,null,null,null,null,null,null,null,null,null,null,null,null,null,null,null,null,null,null,null,null,null,null,null,null,null,null,null,null,null,null,{"$f":"'2019'!A111","v":12433},{"$f":"'2019'!B111","v":"صيانة89"}]
[{"$f":"INDEX($AI$2:$AI$550,MATCH(0,COUNTIF(A$1:$A408,$AI$2:$AI$550),0),0)","v":{"$error":"#N/A"}},{"$error":"#N/A"},null,null,null,null,null,null,null,null,null,null,null,null,null,null,null,null,null,null,null,null,null,null,null,null,null,null,null,null,null,null,null,null,{"$f":"'2019'!A112","v":12434},{"$f":"'2019'!B112","v":"صيانة90"}]
[{"$f":"INDEX($AI$2:$AI$550,MATCH(0,COUNTIF(A$1:$A409,$AI$2:$AI$550),0),0)","v":{"$error":"#N/A"}},{"$error":"#N/A"},null,null,null,null,null,null,null,null,null,null,null,null,null,null,null,null,null,null,null,null,null,null,null,null,null,null,null,null,null,null,null,null,{"$f":"'2019'!A113","v":12435},{"$f":"'2019'!B113","v":"صيانة91"}]
[{"$f":"INDEX($AI$2:$AI$550,MATCH(0,COUNTIF(A$1:$A410,$AI$2:$AI$550),0),0)","v":{"$error":"#N/A"}},{"$error":"#N/A"},null,null,null,null,null,null,null,null,null,null,null,null,null,null,null,null,null,null,null,null,null,null,null,null,null,null,null,null,null,null,null,null,{"$f":"'2019'!A114","v":12436},{"$f":"'2019'!B114","v":"صيانة92"}]
[{"$f":"INDEX($AI$2:$AI$550,MATCH(0,COUNTIF(A$1:$A411,$AI$2:$AI$550),0),0)","v":{"$error":"#N/A"}},{"$error":"#N/A"},null,null,null,null,null,null,null,null,null,null,null,null,null,null,null,null,null,null,null,null,null,null,null,null,null,null,null,null,null,null,null,null,{"$f":"'2019'!A115","v":12437},{"$f":"'2019'!B115","v":"صيانة93"}]
[{"$f":"INDEX($AI$2:$AI$550,MATCH(0,COUNTIF(A$1:$A412,$AI$2:$AI$550),0),0)","v":{"$error":"#N/A"}},{"$error":"#N/A"},null,null,null,null,null,null,null,null,null,null,null,null,null,null,null,null,null,null,null,null,null,null,null,null,null,null,null,null,null,null,null,null,{"$f":"'2019'!A116","v":12438},{"$f":"'2019'!B116","v":"صيانة94"}]
[{"$f":"INDEX($AI$2:$AI$550,MATCH(0,COUNTIF(A$1:$A413,$AI$2:$AI$550),0),0)","v":{"$error":"#N/A"}},{"$error":"#N/A"},null,null,null,null,null,null,null,null,null,null,null,null,null,null,null,null,null,null,null,null,null,null,null,null,null,null,null,null,null,null,null,null,{"$f":"'2019'!A117","v":12439},{"$f":"'2019'!B117","v":"صيانة95"}]
[{"$f":"INDEX($AI$2:$AI$550,MATCH(0,COUNTIF(A$1:$A414,$AI$2:$AI$550),0),0)","v":{"$error":"#N/A"}},{"$error":"#N/A"},null,null,null,null,null,null,null,null,null,null,null,null,null,null,null,null,null,null,null,null,null,null,null,null,null,null,null,null,null,null,null,null,{"$f":"'2019'!A118","v":12440},{"$f":"'2019'!B118","v":"صيانة96"}]
[{"$f":"INDEX($AI$2:$AI$550,MATCH(0,COUNTIF(A$1:$A415,$AI$2:$AI$550),0),0)","v":{"$error":"#N/A"}},{"$error":"#N/A"},null,null,null,null,null,null,null,null,null,null,null,null,null,null,null,null,null,null,null,null,null,null,null,null,null,null,null,null,null,null,null,null,{"$f":"'2019'!A119","v":12441},{"$f":"'2019'!B119","v":"صيانة97"}]
[{"$f":"INDEX($AI$2:$AI$550,MATCH(0,COUNTIF(A$1:$A416,$AI$2:$AI$550),0),0)","v":{"$error":"#N/A"}},{"$error":"#N/A"},null,null,null,null,null,null,null,null,null,null,null,null,null,null,null,null,null,null,null,null,null,null,null,null,null,null,null,null,null,null,null,null,{"$f":"'2019'!A120","v":12442},{"$f":"'2019'!B120","v":"صيانة98"}]
[{"$f":"INDEX($AI$2:$AI$550,MATCH(0,COUNTIF(A$1:$A417,$AI$2:$AI$550),0),0)","v":{"$error":"#N/A"}},{"$error":"#N/A"},null,null,null,null,null,null,null,null,null,null,null,null,null,null,null,null,null,null,null,null,null,null,null,null,null,null,null,null,null,null,null,null,{"$f":"'2019'!A121","v":12443},{"$f":"'2019'!B121","v":"صيانة99"}]
[{"$f":"INDEX($AI$2:$AI$550,MATCH(0,COUNTIF(A$1:$A418,$AI$2:$AI$550),0),0)","v":{"$error":"#N/A"}},{"$error":"#N/A"},null,null,null,null,null,null,null,null,null,null,null,null,null,null,null,null,null,null,null,null,null,null,null,null,null,null,null,null,null,null,null,null,{"$f":"'2019'!#REF!","v":{"$error":"#REF!"}},{"$f":"'2019'!#REF!","v":{"$error":"#REF!"}}]
[{"$f":"INDEX($AI$2:$AI$550,MATCH(0,COUNTIF(A$1:$A419,$AI$2:$AI$550),0),0)","v":{"$error":"#N/A"}},{"$error":"#N/A"},null,null,null,null,null,null,null,null,null,null,null,null,null,null,null,null,null,null,null,null,null,null,null,null,null,null,null,null,null,null,null,null,{"$f":"'2019'!#REF!","v":{"$error":"#REF!"}},{"$f":"'2019'!#REF!","v":{"$error":"#REF!"}}]
[{"$f":"INDEX($AI$2:$AI$550,MATCH(0,COUNTIF(A$1:$A420,$AI$2:$AI$550),0),0)","v":{"$error":"#N/A"}},{"$error":"#N/A"},null,null,null,null,null,null,null,null,null,null,null,null,null,null,null,null,null,null,null,null,null,null,null,null,null,null,null,null,null,null,null,null,{"$f":"'2019'!#REF!","v":{"$error":"#REF!"}},{"$f":"'2019'!#REF!","v":{"$error":"#REF!"}}]
[{"$f":"INDEX($AI$2:$AI$550,MATCH(0,COUNTIF(A$1:$A421,$AI$2:$AI$550),0),0)","v":{"$error":"#N/A"}},{"$error":"#N/A"},null,null,null,null,null,null,null,null,null,null,null,null,null,null,null,null,null,null,null,null,null,null,null,null,null,null,null,null,null,null,null,null,{"$f":"'2019'!#REF!","v":{"$error":"#REF!"}},{"$f":"'2019'!#REF!","v":{"$error":"#REF!"}}]
[{"$f":"INDEX($AI$2:$AI$550,MATCH(0,COUNTIF(A$1:$A422,$AI$2:$AI$550),0),0)","v":{"$error":"#N/A"}},{"$error":"#N/A"},null,null,null,null,null,null,null,null,null,null,null,null,null,null,null,null,null,null,null,null,null,null,null,null,null,null,null,null,null,null,null,null,{"$f":"'2019'!#REF!","v":{"$error":"#REF!"}},{"$f":"'2019'!#REF!","v":{"$error":"#REF!"}}]
[{"$f":"INDEX($AI$2:$AI$550,MATCH(0,COUNTIF(A$1:$A423,$AI$2:$AI$550),0),0)","v":{"$error":"#N/A"}},{"$error":"#N/A"},null,null,null,null,null,null,null,null,null,null,null,null,null,null,null,null,null,null,null,null,null,null,null,null,null,null,null,null,null,null,null,null,{"$f":"'2019'!#REF!","v":{"$error":"#REF!"}},{"$f":"'2019'!#REF!","v":{"$error":"#REF!"}}]
[{"$f":"INDEX($AI$2:$AI$550,MATCH(0,COUNTIF(A$1:$A424,$AI$2:$AI$550),0),0)","v":{"$error":"#N/A"}},{"$error":"#N/A"},null,null,null,null,null,null,null,null,null,null,null,null,null,null,null,null,null,null,null,null,null,null,null,null,null,null,null,null,null,null,null,null,{"$f":"'2019'!A122","v":12454},{"$f":"'2019'!B122","v":"صيانة110"}]
[{"$f":"INDEX($AI$2:$AI$550,MATCH(0,COUNTIF(A$1:$A425,$AI$2:$AI$550),0),0)","v":{"$error":"#N/A"}},{"$error":"#N/A"},null,null,null,null,null,null,null,null,null,null,null,null,null,null,null,null,null,null,null,null,null,null,null,null,null,null,null,null,null,null,null,null,{"$f":"'2019'!A123","v":12455},{"$f":"'2019'!B123","v":"صيانة111"}]
[{"$f":"INDEX($AI$2:$AI$550,MATCH(0,COUNTIF(A$1:$A426,$AI$2:$AI$550),0),0)","v":{"$error":"#N/A"}},{"$error":"#N/A"},null,null,null,null,null,null,null,null,null,null,null,null,null,null,null,null,null,null,null,null,null,null,null,null,null,null,null,null,null,null,null,null,{"$f":"'2019'!A124","v":12456},{"$f":"'2019'!B124","v":"صيانة112"}]
[{"$f":"INDEX($AI$2:$AI$550,MATCH(0,COUNTIF(A$1:$A427,$AI$2:$AI$550),0),0)","v":{"$error":"#N/A"}},{"$error":"#N/A"},null,null,null,null,null,null,null,null,null,null,null,null,null,null,null,null,null,null,null,null,null,null,null,null,null,null,null,null,null,null,null,null,{"$f":"'2019'!A125","v":1111112457},{"$f":"'2019'!B125","v":"صيانة113WEEFE"}]
[{"$f":"INDEX($AI$2:$AI$550,MATCH(0,COUNTIF(A$1:$A428,$AI$2:$AI$550),0),0)","v":{"$error":"#N/A"}},{"$error":"#N/A"},null,null,null,null,null,null,null,null,null,null,null,null,null,null,null,null,null,null,null,null,null,null,null,null,null,null,null,null,null,null,null,null,{"$f":"'2020'!A2","v":1113},{"$f":"'2020'!B2","v":"شراء أوراق"}]
[{"$f":"INDEX($AI$2:$AI$550,MATCH(0,COUNTIF(A$1:$A429,$AI$2:$AI$550),0),0)","v":{"$error":"#N/A"}},{"$error":"#N/A"},null,null,null,null,null,null,null,null,null,null,null,null,null,null,null,null,null,null,null,null,null,null,null,null,null,null,null,null,null,null,null,null,{"$f":"'2020'!A3","v":1115},{"$f":"'2020'!B3","v":"أدوات مطبخ"}]
[{"$f":"INDEX($AI$2:$AI$550,MATCH(0,COUNTIF(A$1:$A430,$AI$2:$AI$550),0),0)","v":{"$error":"#N/A"}},{"$error":"#N/A"},null,null,null,null,null,null,null,null,null,null,null,null,null,null,null,null,null,null,null,null,null,null,null,null,null,null,null,null,null,null,null,null,{"$f":"'2020'!A4","v":1213},{"$f":"'2020'!B4","v":"أحبار"}]
[{"$f":"INDEX($AI$2:$AI$550,MATCH(0,COUNTIF(A$1:$A431,$AI$2:$AI$550),0),0)","v":{"$error":"#N/A"}},{"$error":"#N/A"},null,null,null,null,null,null,null,null,null,null,null,null,null,null,null,null,null,null,null,null,null,null,null,null,null,null,null,null,null,null,null,null,{"$f":"'2020'!A5","v":1215},{"$f":"'2020'!B5","v":"ملابس"}]
[{"$f":"INDEX($AI$2:$AI$550,MATCH(0,COUNTIF(A$1:$A432,$AI$2:$AI$550),0),0)","v":{"$error":"#N/A"}},{"$error":"#N/A"},null,null,null,null,null,null,null,null,null,null,null,null,null,null,null,null,null,null,null,null,null,null,null,null,null,null,null,null,null,null,null,null,{"$f":"'2020'!A6","v":1216},{"$f":"'2020'!B6","v":"طابعات"}]
[{"$f":"INDEX($AI$2:$AI$550,MATCH(0,COUNTIF(A$1:$A433,$AI$2:$AI$550),0),0)","v":{"$error":"#N/A"}},{"$error":"#N/A"},null,null,null,null,null,null,null,null,null,null,null,null,null,null,null,null,null,null,null,null,null,null,null,null,null,null,null,null,null,null,null,null,{"$f":"'2020'!A7","v":1217},{"$f":"'2020'!B7","v":"ملاعق"}]
[{"$f":"INDEX($AI$2:$AI$550,MATCH(0,COUNTIF(A$1:$A434,$AI$2:$AI$550),0),0)","v":{"$error":"#N/A"}},{"$error":"#N/A"},null,null,null,null,null,null,null,null,null,null,null,null,null,null,null,null,null,null,null,null,null,null,null,null,null,null,null,null,null,null,null,null,{"$f":"'2020'!A8","v":1218},{"$f":"'2020'!B8","v":"صحون"}]
[{"$f":"INDEX($AI$2:$AI$550,MATCH(0,COUNTIF(A$1:$A435,$AI$2:$AI$550),0),0)","v":{"$error":"#N/A"}},{"$error":"#N/A"},null,null,null,null,null,null,null,null,null,null,null,null,null,null,null,null,null,null,null,null,null,null,null,null,null,null,null,null,null,null,null,null,{"$f":"'2020'!A9","v":1219},{"$f":"'2020'!B9","v":"سكاكين"}]
[{"$f":"INDEX($AI$2:$AI$550,MATCH(0,COUNTIF(A$1:$A436,$AI$2:$AI$550),0),0)","v":{"$error":"#N/A"}},{"$error":"#N/A"},null,null,null,null,null,null,null,null,null,null,null,null,null,null,null,null,null,null,null,null,null,null,null,null,null,null,null,null,null,null,null,null,{"$f":"'2020'!A10","v":1220},{"$f":"'2020'!B10","v":"مقص"}]
[{"$f":"INDEX($AI$2:$AI$550,MATCH(0,COUNTIF(A$1:$A437,$AI$2:$AI$550),0),0)","v":{"$error":"#N/A"}},{"$error":"#N/A"},null,null,null,null,null,null,null,null,null,null,null,null,null,null,null,null,null,null,null,null,null,null,null,null,null,null,null,null,null,null,null,null,{"$f":"'2020'!A11","v":1312},{"$f":"'2020'!B11","v":"لوحات"}]
[{"$f":"INDEX($AI$2:$AI$550,MATCH(0,COUNTIF(A$1:$A438,$AI$2:$AI$550),0),0)","v":{"$error":"#N/A"}},{"$error":"#N/A"},null,null,null,null,null,null,null,null,null,null,null,null,null,null,null,null,null,null,null,null,null,null,null,null,null,null,null,null,null,null,null,null,{"$f":"'2020'!A12","v":1313},{"$f":"'2020'!B12","v":"إطارات"}]
[{"$f":"INDEX($AI$2:$AI$550,MATCH(0,COUNTIF(A$1:$A439,$AI$2:$AI$550),0),0)","v":{"$error":"#N/A"}},{"$error":"#N/A"},null,null,null,null,null,null,null,null,null,null,null,null,null,null,null,null,null,null,null,null,null,null,null,null,null,null,null,null,null,null,null,null,{"$f":"'2020'!A13","v":1314},{"$f":"'2020'!B13","v":"إضاءة"}]
[{"$f":"INDEX($AI$2:$AI$550,MATCH(0,COUNTIF(A$1:$A440,$AI$2:$AI$550),0),0)","v":{"$error":"#N/A"}},{"$error":"#N/A"},null,null,null,null,null,null,null,null,null,null,null,null,null,null,null,null,null,null,null,null,null,null,null,null,null,null,null,null,null,null,null,null,{"$f":"'2020'!A14","v":1315},{"$f":"'2020'!B14","v":"أدوات قرطاسية"}]
[{"$f":"INDEX($AI$2:$AI$550,MATCH(0,COUNTIF(A$1:$A441,$AI$2:$AI$550),0),0)","v":{"$error":"#N/A"}},{"$error":"#N/A"},null,null,null,null,null,null,null,null,null,null,null,null,null,null,null,null,null,null,null,null,null,null,null,null,null,null,null,null,null,null,null,null,{"$f":"'2020'!A15","v":1316},{"$f":"'2020'!B15","v":"بنزين"}]
[{"$f":"INDEX($AI$2:$AI$550,MATCH(0,COUNTIF(A$1:$A442,$AI$2:$AI$550),0),0)","v":{"$error":"#N/A"}},{"$error":"#N/A"},null,null,null,null,null,null,null,null,null,null,null,null,null,null,null,null,null,null,null,null,null,null,null,null,null,null,null,null,null,null,null,null,{"$f":"'2020'!A16","v":1318},{"$f":"'2020'!B16","v":"كمبيوتر"}]
[{"$f":"INDEX($AI$2:$AI$550,MATCH(0,COUNTIF(A$1:$A443,$AI$2:$AI$550),0),0)","v":{"$error":"#N/A"}},{"$error":"#N/A"},null,null,null,null,null,null,null,null,null,null,null,null,null,null,null,null,null,null,null,null,null,null,null,null,null,null,null,null,null,null,null,null,{"$f":"'2020'!A17","v":1319},{"$f":"'2020'!B17","v":"شاشات"}]
[{"$f":"INDEX($AI$2:$AI$550,MATCH(0,COUNTIF(A$1:$A444,$AI$2:$AI$550),0),0)","v":{"$error":"#N/A"}},{"$error":"#N/A"},null,null,null,null,null,null,null,null,null,null,null,null,null,null,null,null,null,null,null,null,null,null,null,null,null,null,null,null,null,null,null,null,{"$f":"'2020'!A18","v":1321},{"$f":"'2020'!B18","v":"بخور"}]
[{"$f":"INDEX($AI$2:$AI$550,MATCH(0,COUNTIF(A$1:$A445,$AI$2:$AI$550),0),0)","v":{"$error":"#N/A"}},{"$error":"#N/A"},null,null,null,null,null,null,null,null,null,null,null,null,null,null,null,null,null,null,null,null,null,null,null,null,null,null,null,null,null,null,null,null,{"$f":"'2020'!A19","v":1322},{"$f":"'2020'!B19","v":"ألعاب"}]
[{"$f":"INDEX($AI$2:$AI$550,MATCH(0,COUNTIF(A$1:$A446,$AI$2:$AI$550),0),0)","v":{"$error":"#N/A"}},{"$error":"#N/A"},null,null,null,null,null,null,null,null,null,null,null,null,null,null,null,null,null,null,null,null,null,null,null,null,null,null,null,null,null,null,null,null,{"$f":"'2020'!A20","v":1812},{"$f":"'2020'!B20","v":"أدوات زراعية"}]
[{"$f":"INDEX($AI$2:$AI$550,MATCH(0,COUNTIF(A$1:$A447,$AI$2:$AI$550),0),0)","v":{"$error":"#N/A"}},{"$error":"#N/A"},null,null,null,null,null,null,null,null,null,null,null,null,null,null,null,null,null,null,null,null,null,null,null,null,null,null,null,null,null,null,null,null,{"$f":"'2020'!A21","v":2112},{"$f":"'2020'!B21","v":"مكيفات"}]
[{"$f":"INDEX($AI$2:$AI$550,MATCH(0,COUNTIF(A$1:$A448,$AI$2:$AI$550),0),0)","v":{"$error":"#N/A"}},{"$error":"#N/A"},null,null,null,null,null,null,null,null,null,null,null,null,null,null,null,null,null,null,null,null,null,null,null,null,null,null,null,null,null,null,null,null,{"$f":"'2020'!A22","v":3112},{"$f":"'2020'!B22","v":"مراوح"}]
[{"$f":"INDEX($AI$2:$AI$550,MATCH(0,COUNTIF(A$1:$A449,$AI$2:$AI$550),0),0)","v":{"$error":"#N/A"}},{"$error":"#N/A"},null,null,null,null,null,null,null,null,null,null,null,null,null,null,null,null,null,null,null,null,null,null,null,null,null,null,null,null,null,null,null,null,{"$f":"'2020'!A23","v":12345},{"$f":"'2020'!B23","v":"صيانة1"}]
[{"$f":"INDEX($AI$2:$AI$550,MATCH(0,COUNTIF(A$1:$A450,$AI$2:$AI$550),0),0)","v":{"$error":"#N/A"}},{"$f":"IF(A451=\"\",\"\",VLOOKUP(A451,$AI$2:$AJ$550,2,0))","v":{"$error":"#N/A"}},null,null,null,null,null,null,null,null,null,null,null,null,null,null,null,null,null,null,null,null,null,null,null,null,null,null,null,null,null,null,null,null,{"$f":"'2020'!A24","v":12346},{"$f":"'2020'!B24","v":"صيانة2"}]
[{"$f":"INDEX($AI$2:$AI$550,MATCH(0,COUNTIF(A$1:$A451,$AI$2:$AI$550),0),0)","v":{"$error":"#N/A"}},{"$error":"#N/A"},null,null,null,null,null,null,null,null,null,null,null,null,null,null,null,null,null,null,null,null,null,null,null,null,null,null,null,null,null,null,null,null,{"$f":"'2020'!A25","v":12347},{"$f":"'2020'!B25","v":"صيانة3"}]
[{"$f":"INDEX($AI$2:$AI$550,MATCH(0,COUNTIF(A$1:$A452,$AI$2:$AI$550),0),0)","v":{"$error":"#N/A"}},{"$error":"#N/A"},null,null,null,null,null,null,null,null,null,null,null,null,null,null,null,null,null,null,null,null,null,null,null,null,null,null,null,null,null,null,null,null,{"$f":"'2020'!A26","v":12348},{"$f":"'2020'!B26","v":"صيانة4"}]
[{"$f":"INDEX($AI$2:$AI$550,MATCH(0,COUNTIF(A$1:$A453,$AI$2:$AI$550),0),0)","v":{"$error":"#N/A"}},{"$error":"#N/A"},null,null,null,null,null,null,null,null,null,null,null,null,null,null,null,null,null,null,null,null,null,null,null,null,null,null,null,null,null,null,null,null,{"$f":"'2020'!A27","v":12349},{"$f":"'2020'!B27","v":"صيانة5"}]
[{"$f":"INDEX($AI$2:$AI$550,MATCH(0,COUNTIF(A$1:$A454,$AI$2:$AI$550),0),0)","v":{"$error":"#N/A"}},{"$error":"#N/A"},null,null,null,null,null,null,null,null,null,null,null,null,null,null,null,null,null,null,null,null,null,null,null,null,null,null,null,null,null,null,null,null,{"$f":"'2020'!A28","v":12350},{"$f":"'2020'!B28","v":"صيانة6"}]
[{"$f":"INDEX($AI$2:$AI$550,MATCH(0,COUNTIF(A$1:$A455,$AI$2:$AI$550),0),0)","v":{"$error":"#N/A"}},{"$error":"#N/A"},null,null,null,null,null,null,null,null,null,null,null,null,null,null,null,null,null,null,null,null,null,null,null,null,null,null,null,null,null,null,null,null,{"$f":"'2020'!A29","v":12351},{"$f":"'2020'!B29","v":"صيانة7"}]
[{"$f":"INDEX($AI$2:$AI$550,MATCH(0,COUNTIF(A$1:$A456,$AI$2:$AI$550),0),0)","v":{"$error":"#N/A"}},{"$error":"#N/A"},null,null,null,null,null,null,null,null,null,null,null,null,null,null,null,null,null,null,null,null,null,null,null,null,null,null,null,null,null,null,null,null,{"$f":"'2020'!A30","v":12352},{"$f":"'2020'!B30","v":"صيانة8"}]
[{"$f":"INDEX($AI$2:$AI$550,MATCH(0,COUNTIF(A$1:$A457,$AI$2:$AI$550),0),0)","v":{"$error":"#N/A"}},{"$error":"#N/A"},null,null,null,null,null,null,null,null,null,null,null,null,null,null,null,null,null,null,null,null,null,null,null,null,null,null,null,null,null,null,null,null,{"$f":"'2020'!A31","v":12353},{"$f":"'2020'!B31","v":"صيانة9"}]
[{"$f":"INDEX($AI$2:$AI$550,MATCH(0,COUNTIF(A$1:$A458,$AI$2:$AI$550),0),0)","v":{"$error":"#N/A"}},{"$error":"#N/A"},null,null,null,null,null,null,null,null,null,null,null,null,null,null,null,null,null,null,null,null,null,null,null,null,null,null,null,null,null,null,null,null,{"$f":"'2020'!A32","v":12354},{"$f":"'2020'!B32","v":"صيانة10"}]
[{"$f":"INDEX($AI$2:$AI$550,MATCH(0,COUNTIF(A$1:$A459,$AI$2:$AI$550),0),0)","v":{"$error":"#N/A"}},{"$error":"#N/A"},null,null,null,null,null,null,null,null,null,null,null,null,null,null,null,null,null,null,null,null,null,null,null,null,null,null,null,null,null,null,null,null,{"$f":"'2020'!A33","v":12355},{"$f":"'2020'!B33","v":"صيانة11"}]
[{"$f":"INDEX($AI$2:$AI$550,MATCH(0,COUNTIF(A$1:$A460,$AI$2:$AI$550),0),0)","v":{"$error":"#N/A"}},{"$error":"#N/A"},null,null,null,null,null,null,null,null,null,null,null,null,null,null,null,null,null,null,null,null,null,null,null,null,null,null,null,null,null,null,null,null,{"$f":"'2020'!A34","v":12356},{"$f":"'2020'!B34","v":"صيانة12"}]
[{"$f":"INDEX($AI$2:$AI$550,MATCH(0,COUNTIF(A$1:$A461,$AI$2:$AI$550),0),0)","v":{"$error":"#N/A"}},{"$error":"#N/A"},null,null,null,null,null,null,null,null,null,null,null,null,null,null,null,null,null,null,null,null,null,null,null,null,null,null,null,null,null,null,null,null,{"$f":"'2020'!A35","v":12357},{"$f":"'2020'!B35","v":"صيانة13"}]
[{"$f":"INDEX($AI$2:$AI$550,MATCH(0,COUNTIF(A$1:$A462,$AI$2:$AI$550),0),0)","v":{"$error":"#N/A"}},{"$error":"#N/A"},null,null,null,null,null,null,null,null,null,null,null,null,null,null,null,null,null,null,null,null,null,null,null,null,null,null,null,null,null,null,null,null,{"$f":"'2020'!A36","v":12358},{"$f":"'2020'!B36","v":"صيانة14"}]
[{"$f":"INDEX($AI$2:$AI$550,MATCH(0,COUNTIF(A$1:$A463,$AI$2:$AI$550),0),0)","v":{"$error":"#N/A"}},{"$error":"#N/A"},null,null,null,null,null,null,null,null,null,null,null,null,null,null,null,null,null,null,null,null,null,null,null,null,null,null,null,null,null,null,null,null,{"$f":"'2020'!A37","v":12359},{"$f":"'2020'!B37","v":"صيانة15"}]
[{"$f":"INDEX($AI$2:$AI$550,MATCH(0,COUNTIF(A$1:$A464,$AI$2:$AI$550),0),0)","v":{"$error":"#N/A"}},{"$error":"#N/A"},null,null,null,null,null,null,null,null,null,null,null,null,null,null,null,null,null,null,null,null,null,null,null,null,null,null,null,null,null,null,null,null,{"$f":"'2020'!A38","v":12360},{"$f":"'2020'!B38","v":"صيانة16"}]
[{"$f":"INDEX($AI$2:$AI$550,MATCH(0,COUNTIF(A$1:$A465,$AI$2:$AI$550),0),0)","v":{"$error":"#N/A"}},{"$error":"#N/A"},null,null,null,null,null,null,null,null,null,null,null,null,null,null,null,null,null,null,null,null,null,null,null,null,null,null,null,null,null,null,null,null,{"$f":"'2020'!A39","v":12361},{"$f":"'2020'!B39","v":"صيانة17"}]
[{"$f":"INDEX($AI$2:$AI$550,MATCH(0,COUNTIF(A$1:$A466,$AI$2:$AI$550),0),0)","v":{"$error":"#N/A"}},{"$error":"#N/A"},null,null,null,null,null,null,null,null,null,null,null,null,null,null,null,null,null,null,null,null,null,null,null,null,null,null,null,null,null,null,null,null,{"$f":"'2020'!A40","v":12362},{"$f":"'2020'!B40","v":"صيانة18"}]
[{"$f":"INDEX($AI$2:$AI$550,MATCH(0,COUNTIF(A$1:$A467,$AI$2:$AI$550),0),0)","v":{"$error":"#N/A"}},{"$error":"#N/A"},null,null,null,null,null,null,null,null,null,null,null,null,null,null,null,null,null,null,null,null,null,null,null,null,null,null,null,null,null,null,null,null,{"$f":"'2020'!A41","v":12363},{"$f":"'2020'!B41","v":"صيانة19"}]
[{"$f":"INDEX($AI$2:$AI$550,MATCH(0,COUNTIF(A$1:$A468,$AI$2:$AI$550),0),0)","v":{"$error":"#N/A"}},{"$error":"#N/A"},null,null,null,null,null,null,null,null,null,null,null,null,null,null,null,null,null,null,null,null,null,null,null,null,null,null,null,null,null,null,null,null,{"$f":"'2020'!A42","v":12364},{"$f":"'2020'!B42","v":"صيانة20"}]
[{"$f":"INDEX($AI$2:$AI$550,MATCH(0,COUNTIF(A$1:$A469,$AI$2:$AI$550),0),0)","v":{"$error":"#N/A"}},{"$error":"#N/A"},null,null,null,null,null,null,null,null,null,null,null,null,null,null,null,null,null,null,null,null,null,null,null,null,null,null,null,null,null,null,null,null,{"$f":"'2020'!A43","v":12365},{"$f":"'2020'!B43","v":"صيانة21"}]
[{"$f":"INDEX($AI$2:$AI$550,MATCH(0,COUNTIF(A$1:$A470,$AI$2:$AI$550),0),0)","v":{"$error":"#N/A"}},{"$error":"#N/A"},null,null,null,null,null,null,null,null,null,null,null,null,null,null,null,null,null,null,null,null,null,null,null,null,null,null,null,null,null,null,null,null,{"$f":"'2020'!A44","v":12366},{"$f":"'2020'!B44","v":"صيانة22"}]
[{"$f":"INDEX($AI$2:$AI$550,MATCH(0,COUNTIF(A$1:$A471,$AI$2:$AI$550),0),0)","v":{"$error":"#N/A"}},{"$error":"#N/A"},null,null,null,null,null,null,null,null,null,null,null,null,null,null,null,null,null,null,null,null,null,null,null,null,null,null,null,null,null,null,null,null,{"$f":"'2020'!A45","v":12367},{"$f":"'2020'!B45","v":"صيانة23"}]
[{"$f":"INDEX($AI$2:$AI$550,MATCH(0,COUNTIF(A$1:$A472,$AI$2:$AI$550),0),0)","v":{"$error":"#N/A"}},{"$error":"#N/A"},null,null,null,null,null,null,null,null,null,null,null,null,null,null,null,null,null,null,null,null,null,null,null,null,null,null,null,null,null,null,null,null,{"$f":"'2020'!A46","v":12368},{"$f":"'2020'!B46","v":"صيانة24"}]
[{"$f":"INDEX($AI$2:$AI$550,MATCH(0,COUNTIF(A$1:$A473,$AI$2:$AI$550),0),0)","v":{"$error":"#N/A"}},{"$error":"#N/A"},null,null,null,null,null,null,null,null,null,null,null,null,null,null,null,null,null,null,null,null,null,null,null,null,null,null,null,null,null,null,null,null,{"$f":"'2020'!A47","v":12369},{"$f":"'2020'!B47","v":"صيانة25"}]
[{"$f":"INDEX($AI$2:$AI$550,MATCH(0,COUNTIF(A$1:$A474,$AI$2:$AI$550),0),0)","v":{"$error":"#N/A"}},{"$error":"#N/A"},null,null,null,null,null,null,null,null,null,null,null,null,null,null,null,null,null,null,null,null,null,null,null,null,null,null,null,null,null,null,null,null,{"$f":"'2020'!A48","v":12370},{"$f":"'2020'!B48","v":"صيانة26"}]
[{"$f":"INDEX($AI$2:$AI$550,MATCH(0,COUNTIF(A$1:$A475,$AI$2:$AI$550),0),0)","v":{"$error":"#N/A"}},{"$error":"#N/A"},null,null,null,null,null,null,null,null,null,null,null,null,null,null,null,null,null,null,null,null,null,null,null,null,null,null,null,null,null,null,null,null,{"$f":"'2020'!A49","v":12371},{"$f":"'2020'!B49","v":"صيانة27"}]
[{"$f":"INDEX($AI$2:$AI$550,MATCH(0,COUNTIF(A$1:$A476,$AI$2:$AI$550),0),0)","v":{"$error":"#N/A"}},{"$error":"#N/A"},null,null,null,null,null,null,null,null,null,null,null,null,null,null,null,null,null,null,null,null,null,null,null,null,null,null,null,null,null,null,null,null,{"$f":"'2020'!A50","v":12372},{"$f":"'2020'!B50","v":"صيانة28"}]
[{"$f":"INDEX($AI$2:$AI$550,MATCH(0,COUNTIF(A$1:$A477,$AI$2:$AI$550),0),0)","v":{"$error":"#N/A"}},{"$error":"#N/A"},null,null,null,null,null,null,null,null,null,null,null,null,null,null,null,null,null,null,null,null,null,null,null,null,null,null,null,null,null,null,null,null,{"$f":"'2020'!A51","v":12373},{"$f":"'2020'!B51","v":"صيانة29"}]
[{"$f":"INDEX($AI$2:$AI$550,MATCH(0,COUNTIF(A$1:$A478,$AI$2:$AI$550),0),0)","v":{"$error":"#N/A"}},{"$error":"#N/A"},null,null,null,null,null,null,null,null,null,null,null,null,null,null,null,null,null,null,null,null,null,null,null,null,null,null,null,null,null,null,null,null,{"$f":"'2020'!A52","v":12374},{"$f":"'2020'!B52","v":"صيانة30"}]
[{"$f":"INDEX($AI$2:$AI$550,MATCH(0,COUNTIF(A$1:$A479,$AI$2:$AI$550),0),0)","v":{"$error":"#N/A"}},{"$error":"#N/A"},null,null,null,null,null,null,null,null,null,null,null,null,null,null,null,null,null,null,null,null,null,null,null,null,null,null,null,null,null,null,null,null,{"$f":"'2020'!A53","v":12375},{"$f":"'2020'!B53","v":"صيانة31"}]
[{"$f":"INDEX($AI$2:$AI$550,MATCH(0,COUNTIF(A$1:$A480,$AI$2:$AI$550),0),0)","v":{"$error":"#N/A"}},{"$error":"#N/A"},null,null,null,null,null,null,null,null,null,null,null,null,null,null,null,null,null,null,null,null,null,null,null,null,null,null,null,null,null,null,null,null,{"$f":"'2020'!A54","v":12376},{"$f":"'2020'!B54","v":"صيانة32"}]
[{"$f":"INDEX($AI$2:$AI$550,MATCH(0,COUNTIF(A$1:$A481,$AI$2:$AI$550),0),0)","v":{"$error":"#N/A"}},{"$error":"#N/A"},null,null,null,null,null,null,null,null,null,null,null,null,null,null,null,null,null,null,null,null,null,null,null,null,null,null,null,null,null,null,null,null,{"$f":"'2020'!A55","v":12377},{"$f":"'2020'!B55","v":"صيانة33"}]
[{"$f":"INDEX($AI$2:$AI$550,MATCH(0,COUNTIF(A$1:$A482,$AI$2:$AI$550),0),0)","v":{"$error":"#N/A"}},{"$error":"#N/A"},null,null,null,null,null,null,null,null,null,null,null,null,null,null,null,null,null,null,null,null,null,null,null,null,null,null,null,null,null,null,null,null,{"$f":"'2020'!A56","v":12378},{"$f":"'2020'!B56","v":"صيانة34"}]
[{"$f":"INDEX($AI$2:$AI$550,MATCH(0,COUNTIF(A$1:$A483,$AI$2:$AI$550),0),0)","v":{"$error":"#N/A"}},{"$error":"#N/A"},null,null,null,null,null,null,null,null,null,null,null,null,null,null,null,null,null,null,null,null,null,null,null,null,null,null,null,null,null,null,null,null,{"$f":"'2020'!A57","v":12379},{"$f":"'2020'!B57","v":"صيانة35"}]
[{"$f":"INDEX($AI$2:$AI$550,MATCH(0,COUNTIF(A$1:$A484,$AI$2:$AI$550),0),0)","v":{"$error":"#N/A"}},{"$error":"#N/A"},null,null,null,null,null,null,null,null,null,null,null,null,null,null,null,null,null,null,null,null,null,null,null,null,null,null,null,null,null,null,null,null,{"$f":"'2020'!A58","v":12380},{"$f":"'2020'!B58","v":"صيانة36"}]
[{"$f":"INDEX($AI$2:$AI$550,MATCH(0,COUNTIF(A$1:$A485,$AI$2:$AI$550),0),0)","v":{"$error":"#N/A"}},{"$error":"#N/A"},null,null,null,null,null,null,null,null,null,null,null,null,null,null,null,null,null,null,null,null,null,null,null,null,null,null,null,null,null,null,null,null,{"$f":"'2020'!A59","v":12381},{"$f":"'2020'!B59","v":"صيانة37"}]
[{"$f":"INDEX($AI$2:$AI$550,MATCH(0,COUNTIF(A$1:$A486,$AI$2:$AI$550),0),0)","v":{"$error":"#N/A"}},{"$error":"#N/A"},null,null,null,null,null,null,null,null,null,null,null,null,null,null,null,null,null,null,null,null,null,null,null,null,null,null,null,null,null,null,null,null,{"$f":"'2020'!A60","v":12382},{"$f":"'2020'!B60","v":"صيانة38"}]
[{"$f":"INDEX($AI$2:$AI$550,MATCH(0,COUNTIF(A$1:$A487,$AI$2:$AI$550),0),0)","v":{"$error":"#N/A"}},{"$error":"#N/A"},null,null,null,null,null,null,null,null,null,null,null,null,null,null,null,null,null,null,null,null,null,null,null,null,null,null,null,null,null,null,null,null,{"$f":"'2020'!A61","v":12383},{"$f":"'2020'!B61","v":"صيانة39"}]
[{"$f":"INDEX($AI$2:$AI$550,MATCH(0,COUNTIF(A$1:$A488,$AI$2:$AI$550),0),0)","v":{"$error":"#N/A"}},{"$error":"#N/A"},null,null,null,null,null,null,null,null,null,null,null,null,null,null,null,null,null,null,null,null,null,null,null,null,null,null,null,null,null,null,null,null,{"$f":"'2020'!A62","v":12384},{"$f":"'2020'!B62","v":"صيانة40"}]
[{"$f":"INDEX($AI$2:$AI$550,MATCH(0,COUNTIF(A$1:$A489,$AI$2:$AI$550),0),0)","v":{"$error":"#N/A"}},{"$error":"#N/A"},null,null,null,null,null,null,null,null,null,null,null,null,null,null,null,null,null,null,null,null,null,null,null,null,null,null,null,null,null,null,null,null,{"$f":"'2020'!A63","v":12385},{"$f":"'2020'!B63","v":"صيانة41"}]
[{"$f":"INDEX($AI$2:$AI$550,MATCH(0,COUNTIF(A$1:$A490,$AI$2:$AI$550),0),0)","v":{"$error":"#N/A"}},{"$error":"#N/A"},null,null,null,null,null,null,null,null,null,null,null,null,null,null,null,null,null,null,null,null,null,null,null,null,null,null,null,null,null,null,null,null,{"$f":"'2020'!A64","v":12386},{"$f":"'2020'!B64","v":"صيانة42"}]
[{"$f":"INDEX($AI$2:$AI$550,MATCH(0,COUNTIF(A$1:$A491,$AI$2:$AI$550),0),0)","v":{"$error":"#N/A"}},{"$error":"#N/A"},null,null,null,null,null,null,null,null,null,null,null,null,null,null,null,null,null,null,null,null,null,null,null,null,null,null,null,null,null,null,null,null,{"$f":"'2020'!A65","v":12387},{"$f":"'2020'!B65","v":"صيانة43"}]
[{"$f":"INDEX($AI$2:$AI$550,MATCH(0,COUNTIF(A$1:$A492,$AI$2:$AI$550),0),0)","v":{"$error":"#N/A"}},{"$error":"#N/A"},null,null,null,null,null,null,null,null,null,null,null,null,null,null,null,null,null,null,null,null,null,null,null,null,null,null,null,null,null,null,null,null,{"$f":"'2020'!A66","v":12388},{"$f":"'2020'!B66","v":"صيانة44"}]
[{"$f":"INDEX($AI$2:$AI$550,MATCH(0,COUNTIF(A$1:$A493,$AI$2:$AI$550),0),0)","v":{"$error":"#N/A"}},{"$error":"#N/A"},null,null,null,null,null,null,null,null,null,null,null,null,null,null,null,null,null,null,null,null,null,null,null,null,null,null,null,null,null,null,null,null,{"$f":"'2020'!A67","v":12389},{"$f":"'2020'!B67","v":"صيانة45"}]
[{"$f":"INDEX($AI$2:$AI$550,MATCH(0,COUNTIF(A$1:$A494,$AI$2:$AI$550),0),0)","v":{"$error":"#N/A"}},{"$error":"#N/A"},null,null,null,null,null,null,null,null,null,null,null,null,null,null,null,null,null,null,null,null,null,null,null,null,null,null,null,null,null,null,null,null,{"$f":"'2020'!A68","v":12390},{"$f":"'2020'!B68","v":"صيانة46"}]
[{"$f":"INDEX($AI$2:$AI$550,MATCH(0,COUNTIF(A$1:$A495,$AI$2:$AI$550),0),0)","v":{"$error":"#N/A"}},{"$error":"#N/A"},null,null,null,null,null,null,null,null,null,null,null,null,null,null,null,null,null,null,null,null,null,null,null,null,null,null,null,null,null,null,null,null,{"$f":"'2020'!A69","v":12391},{"$f":"'2020'!B69","v":"صيانة47"}]
[{"$f":"INDEX($AI$2:$AI$550,MATCH(0,COUNTIF(A$1:$A496,$AI$2:$AI$550),0),0)","v":{"$error":"#N/A"}},{"$error":"#N/A"},null,null,null,null,null,null,null,null,null,null,null,null,null,null,null,null,null,null,null,null,null,null,null,null,null,null,null,null,null,null,null,null,{"$f":"'2020'!A70","v":12392},{"$f":"'2020'!B70","v":"صيانة48"}]
[{"$f":"INDEX($AI$2:$AI$550,MATCH(0,COUNTIF(A$1:$A497,$AI$2:$AI$550),0),0)","v":{"$error":"#N/A"}},{"$error":"#N/A"},null,null,null,null,null,null,null,null,null,null,null,null,null,null,null,null,null,null,null,null,null,null,null,null,null,null,null,null,null,null,null,null,{"$f":"'2020'!A71","v":12393},{"$f":"'2020'!B71","v":"صيانة49"}]
[{"$f":"INDEX($AI$2:$AI$550,MATCH(0,COUNTIF(A$1:$A498,$AI$2:$AI$550),0),0)","v":{"$error":"#N/A"}},{"$error":"#N/A"},null,null,null,null,null,null,null,null,null,null,null,null,null,null,null,null,null,null,null,null,null,null,null,null,null,null,null,null,null,null,null,null,{"$f":"'2020'!A72","v":12394},{"$f":"'2020'!B72","v":"صيانة50"}]
[{"$f":"INDEX($AI$2:$AI$550,MATCH(0,COUNTIF(A$1:$A499,$AI$2:$AI$550),0),0)","v":{"$error":"#N/A"}},{"$error":"#N/A"},null,null,null,null,null,null,null,null,null,null,null,null,null,null,null,null,null,null,null,null,null,null,null,null,null,null,null,null,null,null,null,null,{"$f":"'2020'!A73","v":12395},{"$f":"'2020'!B73","v":"صيانة51"}]
[{"$f":"INDEX($AI$2:$AI$550,MATCH(0,COUNTIF(A$1:$A500,$AI$2:$AI$550),0),0)","v":{"$error":"#N/A"}},{"$error":"#N/A"},null,null,null,null,null,null,null,null,null,null,null,null,null,null,null,null,null,null,null,null,null,null,null,null,null,null,null,null,null,null,null,null,{"$f":"'2020'!A74","v":12396},{"$f":"'2020'!B74","v":"صيانة52"}]
[{"$f":"INDEX($AI$2:$AI$550,MATCH(0,COUNTIF(A$1:$A501,$AI$2:$AI$550),0),0)","v":{"$error":"#N/A"}},{"$error":"#N/A"},null,null,null,null,null,null,null,null,null,null,null,null,null,null,null,null,null,null,null,null,null,null,null,null,null,null,null,null,null,null,null,null,{"$f":"'2020'!A75","v":12397},{"$f":"'2020'!B75","v":"صيانة53"}]
[{"$f":"INDEX($AI$2:$AI$550,MATCH(0,COUNTIF(A$1:$A502,$AI$2:$AI$550),0),0)","v":{"$error":"#N/A"}},{"$error":"#N/A"},null,null,null,null,null,null,null,null,null,null,null,null,null,null,null,null,null,null,null,null,null,null,null,null,null,null,null,null,null,null,null,null,{"$f":"'2020'!A76","v":12398},{"$f":"'2020'!B76","v":"صيانة54"}]
[{"$f":"INDEX($AI$2:$AI$550,MATCH(0,COUNTIF(A$1:$A503,$AI$2:$AI$550),0),0)","v":{"$error":"#N/A"}},{"$error":"#N/A"},null,null,null,null,null,null,null,null,null,null,null,null,null,null,null,null,null,null,null,null,null,null,null,null,null,null,null,null,null,null,null,null,{"$f":"'2020'!A77","v":12399},{"$f":"'2020'!B77","v":"صيانة55"}]
[{"$f":"INDEX($AI$2:$AI$550,MATCH(0,COUNTIF(A$1:$A504,$AI$2:$AI$550),0),0)","v":{"$error":"#N/A"}},{"$error":"#N/A"},null,null,null,null,null,null,null,null,null,null,null,null,null,null,null,null,null,null,null,null,null,null,null,null,null,null,null,null,null,null,null,null,{"$f":"'2020'!A78","v":12400},{"$f":"'2020'!B78","v":"صيانة56"}]
[{"$f":"INDEX($AI$2:$AI$550,MATCH(0,COUNTIF(A$1:$A505,$AI$2:$AI$550),0),0)","v":{"$error":"#N/A"}},{"$error":"#N/A"},null,null,null,null,null,null,null,null,null,null,null,null,null,null,null,null,null,null,null,null,null,null,null,null,null,null,null,null,null,null,null,null,{"$f":"'2020'!A79","v":12401},{"$f":"'2020'!B79","v":"صيانة57"}]
[{"$f":"INDEX($AI$2:$AI$550,MATCH(0,COUNTIF(A$1:$A506,$AI$2:$AI$550),0),0)","v":{"$error":"#N/A"}},{"$error":"#N/A"},null,null,null,null,null,null,null,null,null,null,null,null,null,null,null,null,null,null,null,null,null,null,null,null,null,null,null,null,null,null,null,null,{"$f":"'2020'!A80","v":12402},{"$f":"'2020'!B80","v":"صيانة58"}]
[{"$f":"INDEX($AI$2:$AI$550,MATCH(0,COUNTIF(A$1:$A507,$AI$2:$AI$550),0),0)","v":{"$error":"#N/A"}},{"$error":"#N/A"},null,null,null,null,null,null,null,null,null,null,null,null,null,null,null,null,null,null,null,null,null,null,null,null,null,null,null,null,null,null,null,null,{"$f":"'2020'!A81","v":12403},{"$f":"'2020'!B81","v":"صيانة59"}]
[{"$f":"INDEX($AI$2:$AI$550,MATCH(0,COUNTIF(A$1:$A508,$AI$2:$AI$550),0),0)","v":{"$error":"#N/A"}},{"$error":"#N/A"},null,null,null,null,null,null,null,null,null,null,null,null,null,null,null,null,null,null,null,null,null,null,null,null,null,null,null,null,null,null,null,null,{"$f":"'2020'!A82","v":12404},{"$f":"'2020'!B82","v":"صيانة60"}]
[{"$f":"INDEX($AI$2:$AI$550,MATCH(0,COUNTIF(A$1:$A509,$AI$2:$AI$550),0),0)","v":{"$error":"#N/A"}},{"$error":"#N/A"},null,null,null,null,null,null,null,null,null,null,null,null,null,null,null,null,null,null,null,null,null,null,null,null,null,null,null,null,null,null,null,null,{"$f":"'2020'!A83","v":12405},{"$f":"'2020'!B83","v":"صيانة61"}]
[{"$f":"INDEX($AI$2:$AI$550,MATCH(0,COUNTIF(A$1:$A510,$AI$2:$AI$550),0),0)","v":{"$error":"#N/A"}},{"$error":"#N/A"},null,null,null,null,null,null,null,null,null,null,null,null,null,null,null,null,null,null,null,null,null,null,null,null,null,null,null,null,null,null,null,null,{"$f":"'2020'!A84","v":12406},{"$f":"'2020'!B84","v":"صيانة62"}]
[{"$f":"INDEX($AI$2:$AI$550,MATCH(0,COUNTIF(A$1:$A511,$AI$2:$AI$550),0),0)","v":{"$error":"#N/A"}},{"$error":"#N/A"},null,null,null,null,null,null,null,null,null,null,null,null,null,null,null,null,null,null,null,null,null,null,null,null,null,null,null,null,null,null,null,null,{"$f":"'2020'!A85","v":12407},{"$f":"'2020'!B85","v":"صيانة63"}]
[{"$f":"INDEX($AI$2:$AI$550,MATCH(0,COUNTIF(A$1:$A512,$AI$2:$AI$550),0),0)","v":{"$error":"#N/A"}},{"$error":"#N/A"},null,null,null,null,null,null,null,null,null,null,null,null,null,null,null,null,null,null,null,null,null,null,null,null,null,null,null,null,null,null,null,null,{"$f":"'2020'!A86","v":12408},{"$f":"'2020'!B86","v":"صيانة64"}]
[{"$f":"INDEX($AI$2:$AI$550,MATCH(0,COUNTIF(A$1:$A513,$AI$2:$AI$550),0),0)","v":{"$error":"#N/A"}},{"$error":"#N/A"},null,null,null,null,null,null,null,null,null,null,null,null,null,null,null,null,null,null,null,null,null,null,null,null,null,null,null,null,null,null,null,null,{"$f":"'2020'!A87","v":12409},{"$f":"'2020'!B87","v":"صيانة65"}]
[{"$f":"INDEX($AI$2:$AI$550,MATCH(0,COUNTIF(A$1:$A514,$AI$2:$AI$550),0),0)","v":{"$error":"#N/A"}},{"$f":"IF(A515=\"\",\"\",VLOOKUP(A515,$AI$2:$AJ$550,2,0))","v":{"$error":"#N/A"}},null,null,null,null,null,null,null,null,null,null,null,null,null,null,null,null,null,null,null,null,null,null,null,null,null,null,null,null,null,null,null,null,{"$f":"'2020'!A88","v":12410},{"$f":"'2020'!B88","v":"صيانة66"}]
[{"$f":"INDEX($AI$2:$AI$550,MATCH(0,COUNTIF(A$1:$A515,$AI$2:$AI$550),0),0)","v":{"$error":"#N/A"}},{"$error":"#N/A"},null,null,null,null,null,null,null,null,null,null,null,null,null,null,null,null,null,null,null,null,null,null,null,null,null,null,null,null,null,null,null,null,{"$f":"'2020'!A89","v":12411},{"$f":"'2020'!B89","v":"صيانة67"}]
[{"$f":"INDEX($AI$2:$AI$550,MATCH(0,COUNTIF(A$1:$A516,$AI$2:$AI$550),0),0)","v":{"$error":"#N/A"}},{"$error":"#N/A"},null,null,null,null,null,null,null,null,null,null,null,null,null,null,null,null,null,null,null,null,null,null,null,null,null,null,null,null,null,null,null,null,{"$f":"'2020'!A90","v":12412},{"$f":"'2020'!B90","v":"صيانة68"}]
[{"$f":"INDEX($AI$2:$AI$550,MATCH(0,COUNTIF(A$1:$A517,$AI$2:$AI$550),0),0)","v":{"$error":"#N/A"}},{"$error":"#N/A"},null,null,null,null,null,null,null,null,null,null,null,null,null,null,null,null,null,null,null,null,null,null,null,null,null,null,null,null,null,null,null,null,{"$f":"'2020'!A91","v":12413},{"$f":"'2020'!B91","v":"صيانة69"}]
[{"$f":"INDEX($AI$2:$AI$550,MATCH(0,COUNTIF(A$1:$A518,$AI$2:$AI$550),0),0)","v":{"$error":"#N/A"}},{"$error":"#N/A"},null,null,null,null,null,null,null,null,null,null,null,null,null,null,null,null,null,null,null,null,null,null,null,null,null,null,null,null,null,null,null,null,{"$f":"'2020'!A92","v":12414},{"$f":"'2020'!B92","v":"صيانة70"}]
[{"$f":"INDEX($AI$2:$AI$550,MATCH(0,COUNTIF(A$1:$A519,$AI$2:$AI$550),0),0)","v":{"$error":"#N/A"}},{"$error":"#N/A"},null,null,null,null,null,null,null,null,null,null,null,null,null,null,null,null,null,null,null,null,null,null,null,null,null,null,null,null,null,null,null,null,{"$f":"'2020'!A93","v":12415},{"$f":"'2020'!B93","v":"صيانة71"}]
[{"$f":"INDEX($AI$2:$AI$550,MATCH(0,COUNTIF(A$1:$A520,$AI$2:$AI$550),0),0)","v":{"$error":"#N/A"}},{"$error":"#N/A"},null,null,null,null,null,null,null,null,null,null,null,null,null,null,null,null,null,null,null,null,null,null,null,null,null,null,null,null,null,null,null,null,{"$f":"'2020'!A94","v":12416},{"$f":"'2020'!B94","v":"صيانة72"}]
[{"$f":"INDEX($AI$2:$AI$550,MATCH(0,COUNTIF(A$1:$A521,$AI$2:$AI$550),0),0)","v":{"$error":"#N/A"}},{"$error":"#N/A"},null,null,null,null,null,null,null,null,null,null,null,null,null,null,null,null,null,null,null,null,null,null,null,null,null,null,null,null,null,null,null,null,{"$f":"'2020'!A95","v":12417},{"$f":"'2020'!B95","v":"صيانة73"}]
[{"$f":"INDEX($AI$2:$AI$550,MATCH(0,COUNTIF(A$1:$A522,$AI$2:$AI$550),0),0)","v":{"$error":"#N/A"}},{"$error":"#N/A"},null,null,null,null,null,null,null,null,null,null,null,null,null,null,null,null,null,null,null,null,null,null,null,null,null,null,null,null,null,null,null,null,{"$f":"'2020'!A96","v":12418},{"$f":"'2020'!B96","v":"صيانة74"}]
[{"$f":"INDEX($AI$2:$AI$550,MATCH(0,COUNTIF(A$1:$A523,$AI$2:$AI$550),0),0)","v":{"$error":"#N/A"}},{"$error":"#N/A"},null,null,null,null,null,null,null,null,null,null,null,null,null,null,null,null,null,null,null,null,null,null,null,null,null,null,null,null,null,null,null,null,{"$f":"'2020'!A97","v":12419},{"$f":"'2020'!B97","v":"صيانة75"}]
[{"$f":"INDEX($AI$2:$AI$550,MATCH(0,COUNTIF(A$1:$A524,$AI$2:$AI$550),0),0)","v":{"$error":"#N/A"}},{"$error":"#N/A"},null,null,null,null,null,null,null,null,null,null,null,null,null,null,null,null,null,null,null,null,null,null,null,null,null,null,null,null,null,null,null,null,{"$f":"'2020'!A98","v":12420},{"$f":"'2020'!B98","v":"صيانة76"}]
[{"$f":"INDEX($AI$2:$AI$550,MATCH(0,COUNTIF(A$1:$A525,$AI$2:$AI$550),0),0)","v":{"$error":"#N/A"}},{"$error":"#N/A"},null,null,null,null,null,null,null,null,null,null,null,null,null,null,null,null,null,null,null,null,null,null,null,null,null,null,null,null,null,null,null,null,{"$f":"'2020'!A99","v":12421},{"$f":"'2020'!B99","v":"صيانة77"}]
[{"$f":"INDEX($AI$2:$AI$550,MATCH(0,COUNTIF(A$1:$A526,$AI$2:$AI$550),0),0)","v":{"$error":"#N/A"}},{"$error":"#N/A"},null,null,null,null,null,null,null,null,null,null,null,null,null,null,null,null,null,null,null,null,null,null,null,null,null,null,null,null,null,null,null,null,{"$f":"'2020'!A100","v":12422},{"$f":"'2020'!B100","v":"صيانة78"}]
[{"$f":"INDEX($AI$2:$AI$550,MATCH(0,COUNTIF(A$1:$A527,$AI$2:$AI$550),0),0)","v":{"$error":"#N/A"}},{"$error":"#N/A"},null,null,null,null,null,null,null,null,null,null,null,null,null,null,null,null,null,null,null,null,null,null,null,null,null,null,null,null,null,null,null,null,{"$f":"'2020'!A101","v":12423},{"$f":"'2020'!B101","v":"صيانة79"}]
[{"$f":"INDEX($AI$2:$AI$550,MATCH(0,COUNTIF(A$1:$A528,$AI$2:$AI$550),0),0)","v":{"$error":"#N/A"}},{"$error":"#N/A"},null,null,null,null,null,null,null,null,null,null,null,null,null,null,null,null,null,null,null,null,null,null,null,null,null,null,null,null,null,null,null,null,{"$f":"'2020'!A102","v":12424},{"$f":"'2020'!B102","v":"صيانة80"}]
[{"$f":"INDEX($AI$2:$AI$550,MATCH(0,COUNTIF(A$1:$A529,$AI$2:$AI$550),0),0)","v":{"$error":"#N/A"}},{"$error":"#N/A"},null,null,null,null,null,null,null,null,null,null,null,null,null,null,null,null,null,null,null,null,null,null,null,null,null,null,null,null,null,null,null,null,{"$f":"'2020'!A103","v":12445},{"$f":"'2020'!B103","v":"صيانة101"}]
[{"$f":"INDEX($AI$2:$AI$550,MATCH(0,COUNTIF(A$1:$A530,$AI$2:$AI$550),0),0)","v":{"$error":"#N/A"}},{"$error":"#N/A"},null,null,null,null,null,null,null,null,null,null,null,null,null,null,null,null,null,null,null,null,null,null,null,null,null,null,null,null,null,null,null,null,{"$f":"'2020'!A104","v":12446},{"$f":"'2020'!B104","v":"صيانة102"}]
[{"$f":"INDEX($AI$2:$AI$550,MATCH(0,COUNTIF(A$1:$A531,$AI$2:$AI$550),0),0)","v":{"$error":"#N/A"}},{"$error":"#N/A"},null,null,null,null,null,null,null,null,null,null,null,null,null,null,null,null,null,null,null,null,null,null,null,null,null,null,null,null,null,null,null,null,{"$f":"'2020'!A105","v":12447},{"$f":"'2020'!B105","v":"صيانة103"}]
[{"$f":"INDEX($AI$2:$AI$550,MATCH(0,COUNTIF(A$1:$A532,$AI$2:$AI$550),0),0)","v":{"$error":"#N/A"}},{"$error":"#N/A"},null,null,null,null,null,null,null,null,null,null,null,null,null,null,null,null,null,null,null,null,null,null,null,null,null,null,null,null,null,null,null,null,{"$f":"'2020'!A106","v":12452},{"$f":"'2020'!B106","v":"صيانة108"}]
[{"$f":"INDEX($AI$2:$AI$550,MATCH(0,COUNTIF(A$1:$A533,$AI$2:$AI$550),0),0)","v":{"$error":"#N/A"}},{"$error":"#N/A"},null,null,null,null,null,null,null,null,null,null,null,null,null,null,null,null,null,null,null,null,null,null,null,null,null,null,null,null,null,null,null,null,{"$f":"'2020'!A107","v":12453},{"$f":"'2020'!B107","v":"صيانة109"}]
[{"$f":"INDEX($AI$2:$AI$550,MATCH(0,COUNTIF(A$1:$A534,$AI$2:$AI$550),0),0)","v":{"$error":"#N/A"}},{"$error":"#N/A"},null,null,null,null,null,null,null,null,null,null,null,null,null,null,null,null,null,null,null,null,null,null,null,null,null,null,null,null,null,null,null,null,{"$f":"'2020'!A108","v":12454},{"$f":"'2020'!B108","v":"صيانة110"}]
[{"$f":"INDEX($AI$2:$AI$550,MATCH(0,COUNTIF(A$1:$A535,$AI$2:$AI$550),0),0)","v":{"$error":"#N/A"}},{"$error":"#N/A"},null,null,null,null,null,null,null,null,null,null,null,null,null,null,null,null,null,null,null,null,null,null,null,null,null,null,null,null,null,null,null,null,{"$f":"'2020'!A109","v":12455},{"$f":"'2020'!B109","v":"صيانة111"}]
[{"$f":"INDEX($AI$2:$AI$550,MATCH(0,COUNTIF(A$1:$A536,$AI$2:$AI$550),0),0)","v":{"$error":"#N/A"}},{"$error":"#N/A"},null,null,null,null,null,null,null,null,null,null,null,null,null,null,null,null,null,null,null,null,null,null,null,null,null,null,null,null,null,null,null,null,{"$f":"'2020'!A110","v":12456},{"$f":"'2020'!B110","v":"صيانة112"}]
[{"$f":"INDEX($AI$2:$AI$550,MATCH(0,COUNTIF(A$1:$A537,$AI$2:$AI$550),0),0)","v":{"$error":"#N/A"}},{"$error":"#N/A"},null,null,null,null,null,null,null,null,null,null,null,null,null,null,null,null,null,null,null,null,null,null,null,null,null,null,null,null,null,null,null,null,{"$f":"'2020'!A111","v":"HHHHHH"},{"$f":"'2020'!B111","v":"FGDGDDDGDG"}]
[{"$f":"INDEX($AI$2:$AI$550,MATCH(0,COUNTIF(A$1:$A538,$AI$2:$AI$550),0),0)","v":{"$error":"#N/A"}},{"$error":"#N/A"},null,null,null,null,null,null,null,null,null,null,null,null,null,null,null,null,null,null,null,null,null,null,null,null,null,null,null,null,null,null,null,null,{"$f":"'2020'!A112","v":0},{"$f":"'2020'!B112","v":0}]
[{"$f":"INDEX($AI$2:$AI$550,MATCH(0,COUNTIF(A$1:$A539,$AI$2:$AI$550),0),0)","v":{"$error":"#N/A"}},{"$error":"#N/A"},null,null,null,null,null,null,null,null,null,null,null,null,null,null,null,null,null,null,null,null,null,null,null,null,null,null,null,null,null,null,null,null,{"$f":"'2020'!A113","v":0},{"$f":"'2020'!B113","v":0}]
[{"$f":"INDEX($AI$2:$AI$550,MATCH(0,COUNTIF(A$1:$A540,$AI$2:$AI$550),0),0)","v":{"$error":"#N/A"}},{"$error":"#N/A"},null,null,null,null,null,null,null,null,null,null,null,null,null,null,null,null,null,null,null,null,null,null,null,null,null,null,null,null,null,null,null,null,{"$f":"'2020'!A114","v":0},{"$f":"'2020'!B114","v":0}]
[{"$f":"INDEX($AI$2:$AI$550,MATCH(0,COUNTIF(A$1:$A541,$AI$2:$AI$550),0),0)","v":{"$error":"#N/A"}},{"$error":"#N/A"},null,null,null,null,null,null,null,null,null,null,null,null,null,null,null,null,null,null,null,null,null,null,null,null,null,null,null,null,null,null,null,null,{"$f":"'2020'!A115","v":0},{"$f":"'2020'!B115","v":0}]
[{"$f":"INDEX($AI$2:$AI$550,MATCH(0,COUNTIF(A$1:$A542,$AI$2:$AI$550),0),0)","v":{"$error":"#N/A"}},{"$error":"#N/A"},null,null,null,null,null,null,null,null,null,null,null,null,null,null,null,null,null,null,null,null,null,null,null,null,null,null,null,null,null,null,null,null,{"$f":"'2020'!A116","v":0},{"$f":"'2020'!B116","v":0}]
[{"$f":"INDEX($AI$2:$AI$550,MATCH(0,COUNTIF(A$1:$A543,$AI$2:$AI$550),0),0)","v":{"$error":"#N/A"}},{"$error":"#N/A"},null,null,null,null,null,null,null,null,null,null,null,null,null,null,null,null,null,null,null,null,null,null,null,null,null,null,null,null,null,null,null,null,{"$f":"'2020'!A117","v":0},{"$f":"'2020'!B117","v":0}]
[{"$f":"INDEX($AI$2:$AI$550,MATCH(0,COUNTIF(A$1:$A544,$AI$2:$AI$550),0),0)","v":{"$error":"#N/A"}},{"$error":"#N/A"},null,null,null,null,null,null,null,null,null,null,null,null,null,null,null,null,null,null,null,null,null,null,null,null,null,null,null,null,null,null,null,null,{"$f":"'2020'!A118","v":0},{"$f":"'2020'!B118","v":0}]
[{"$f":"INDEX($AI$2:$AI$550,MATCH(0,COUNTIF(A$1:$A545,$AI$2:$AI$550),0),0)","v":{"$error":"#N/A"}},{"$error":"#N/A"},null,null,null,null,null,null,null,null,null,null,null,null,null,null,null,null,null,null,null,null,null,null,null,null,null,null,null,null,null,null,null,null,{"$f":"'2020'!A119","v":0},{"$f":"'2020'!B119","v":0}]
[{"$f":"INDEX($AI$2:$AI$550,MATCH(0,COUNTIF(A$1:$A546,$AI$2:$AI$550),0),0)","v":{"$error":"#N/A"}},{"$error":"#N/A"},null,null,null,null,null,null,null,null,null,null,null,null,null,null,null,null,null,null,null,null,null,null,null,null,null,null,null,null,null,null,null,null,{"$f":"'2020'!A120","v":0},{"$f":"'2020'!B120","v":0}]
[{"$f":"INDEX($AI$2:$AI$550,MATCH(0,COUNTIF(A$1:$A547,$AI$2:$AI$550),0),0)","v":{"$error":"#N/A"}},{"$error":"#N/A"},null,null,null,null,null,null,null,null,null,null,null,null,null,null,null,null,null,null,null,null,null,null,null,null,null,null,null,null,null,null,null,null,{"$f":"'2020'!A121","v":0},{"$f":"'2020'!B121","v":0}]
[{"$f":"INDEX($AI$2:$AI$550,MATCH(0,COUNTIF(A$1:$A548,$AI$2:$AI$550),0),0)","v":{"$error":"#N/A"}},{"$error":"#N/A"},null,null,null,null,null,null,null,null,null,null,null,null,null,null,null,null,null,null,null,null,null,null,null,null,null,null,null,null,null,null,null,null,{"$f":"'2020'!A122","v":0},{"$f":"'2020'!B122","v":0}]
[{"$f":"INDEX($AI$2:$AI$550,MATCH(0,COUNTIF(A$1:$A549,$AI$2:$AI$550),0),0)","v":{"$error":"#N/A"}},{"$error":"#N/A"},null,null,null,null,null,null,null,null,null,null,null,null,null,null,null,null,null,null,null,null,null,null,null,null,null,null,null,null,null,null,null,null,{"$f":"'2020'!A123","v":0},{"$f":"'2020'!B123","v":0}]
[null,null,null,null,null,null,null,null,null,null,null,null,null,null,null,null,null,null,null,null,null,null,null,null,null,null,null,null,null,null,null,null,null,null,{"$f":"'2020'!A124","v":0},{"$f":"'2020'!B124","v":0}]